﻿Directorate,Sub Directorate,Accounting Date,COST CENTRE,Supplier Name,Net Amount,Type
DIRECT SOCIAL SERVICES,GF ADULT SERVICES,01-May-2019,215489,Annwyl Limited t/a Bluebird Care,627.50,Revenue
DIRECT SOCIAL SERVICES,GF ADULT SERVICES,01-May-2019,215489,Annwyl Limited t/a Bluebird Care,627.50,Revenue
DIRECT SOCIAL SERVICES,GF ADULT SERVICES,01-May-2019,215489,Annwyl Limited t/a Bluebird Care,686.33,Revenue
DIRECT SOCIAL SERVICES,GF ADULT SERVICES,01-May-2019,215489,Annwyl Limited t/a Bluebird Care,686.33,Revenue
DIRECT SOCIAL SERVICES,GF ADULT SERVICES,01-May-2019,215489,Annwyl Limited t/a Bluebird Care,766.94,Revenue
DIRECT SOCIAL SERVICES,GF ADULT SERVICES,01-May-2019,215489,Annwyl Limited t/a Bluebird Care,766.94,Revenue
DIRECT LEARNING AND SKILLS,SCHOOLS DELEGATED,01-May-2019,101025,Educational Pursuits Instruction Centres Limited t/a Llangorse Multi Activity Centre,"1,200.00",Revenue
DIRECT LEARNING AND SKILLS,SCHOOLS DELEGATED,01-May-2019,101095,ParentPay Limited,513.20,Revenue
DIRECT LEARNING AND SKILLS,SCHOOLS DELEGATED,01-May-2019,101095,PEAC (UK) Limited,862.80,Revenue
DIRECT LEARNING AND SKILLS,SCHOOLS DELEGATED,01-May-2019,101095,Blue Sky Digital Solutions Limited,994.71,Revenue
DIRECT LEARNING AND SKILLS,SCHOOLS DELEGATED,01-May-2019,101095,Sovereign Design Play Systems Limited,"1,357.29",Revenue
DIRECT LEARNING AND SKILLS,ACHIEVEMENT FOR ALL,01-May-2019,102652,Kings Monkton Independent School Limited,"3,863.00",Revenue
DIRECT LEARNING AND SKILLS,ACHIEVEMENT FOR ALL,01-May-2019,102652,Kings Monkton Independent School Limited,"3,863.00",Revenue
DIRECT LEARNING AND SKILLS,ACHIEVEMENT FOR ALL,01-May-2019,102652,Kings Monkton Independent School Limited,"5,215.40",Revenue
DIRECT LEARNING AND SKILLS,ACHIEVEMENT FOR ALL,01-May-2019,102652,Kings Monkton Independent School Limited,"6,506.80",Revenue
DIRECT LEARNING AND SKILLS,ACHIEVEMENT FOR ALL,01-May-2019,102652,Kings Monkton Independent School Limited,"10,002.70",Revenue
DIRECT LEARNING AND SKILLS,ACHIEVEMENT FOR ALL,01-May-2019,102652,Kings Monkton Independent School Limited,"10,093.00",Revenue
DIRECT LEARNING AND SKILLS,ACHIEVEMENT FOR ALL,01-May-2019,102652,St Davids College Trust,"12,080.00",Revenue
DIRECT LEARNING AND SKILLS,ACHIEVEMENT FOR ALL,01-May-2019,130280,Portal Training Limited t/a Portal Educational Training Providers,"1,068.25",Revenue
DIRECT LEARNING AND SKILLS,GF CATERING,01-May-2019,150401,WR Bishop (Tonyrefail) Limited,"2,670.74",Revenue
DIRECT LEARNING AND SKILLS,GF CATERING,01-May-2019,150401,Brake Bros Limited,"13,503.74",Revenue
DIRECT LEARNING AND SKILLS,GF CATERING,01-May-2019,150401,Castell Howell Foods Limited,"15,085.82",Revenue
DIRECT LEARNING AND SKILLS,GF CATERING,01-May-2019,150671,WR Bishop (Tonyrefail) Limited,543.23,Revenue
DIRECT LEARNING AND SKILLS,GF CATERING,01-May-2019,150671,The Real Wrap Co. Limited,"1,024.83",Revenue
DIRECT LEARNING AND SKILLS,GF CATERING,01-May-2019,150671,Peter's Food Service Limited,"1,970.92",Revenue
DIRECT LEARNING AND SKILLS,GF CATERING,01-May-2019,150671,Chapple & Jenkins Limited,"2,258.43",Revenue
DIRECT LEARNING AND SKILLS,GF CATERING,01-May-2019,150671,Castell Howell Foods Limited,"4,811.40",Revenue
DIRECT LEARNING AND SKILLS,GF CATERING,01-May-2019,150671,Brake Bros Limited,"5,783.67",Revenue
DIRECT SOCIAL SERVICES,GF RESOURCES MANAGEMENT & SAFEGUARDING,01-May-2019,212731,SWLR Limited,531.80,Revenue
DIRECT SOCIAL SERVICES,GF RESOURCES MANAGEMENT & SAFEGUARDING,01-May-2019,212731,Castell Howell Foods Limited,684.51,Revenue
DIRECT SOCIAL SERVICES,GF ADULT SERVICES,01-May-2019,215803,Tai Newydd Limited,"15,625.00",Revenue
DIRECT SOCIAL SERVICES,GF RESOURCES MANAGEMENT & SAFEGUARDING,01-May-2019,239281,Lyreco UK Limited,882.71,Revenue
DIRECT SOCIAL SERVICES,GF RESOURCES MANAGEMENT & SAFEGUARDING,01-May-2019,239281,Complete Business Solutions Group Limited,936.00,Revenue
DIRECT SOCIAL SERVICES,GF CHILDREN SERVICES,01-May-2019,260210,NonStop Recruitment Limited,792.00,Revenue
DIRECT ENVIRONMENT AND HOUSING,HOUSING - HRA,01-May-2019,303905,J & D Water Consultants Limited,"4,800.00",Revenue
DIRECT ENVIRONMENT AND HOUSING,GF ENV AND VISIBLE,01-May-2019,325347,Garth Plant Hire Limited,885.00,Revenue
DIRECT ENVIRONMENT AND HOUSING,GF ENV AND VISIBLE,01-May-2019,325347,Calibre Contracting Limited,"1,538.67",Revenue
DIRECT ENVIRONMENT AND HOUSING,GF ENV AND VISIBLE,01-May-2019,325351,Calibre Contracting Limited,820.08,Revenue
DIRECT ENVIRONMENT AND HOUSING,GF ENV AND VISIBLE,01-May-2019,325351,Horizon Civil Engineering Limited,"2,191.79",Revenue
DIRECT ENVIRONMENT AND HOUSING,GF ENV AND VISIBLE,01-May-2019,325501,Calibre Contracting Limited,"1,128.63",Revenue
DIRECT ENVIRONMENT AND HOUSING,GF ENV AND VISIBLE,01-May-2019,325644,Centregreat Limited,"35,164.01",Revenue
DIRECT ENVIRONMENT AND HOUSING,GF ENV AND VISIBLE,01-May-2019,325644,Centregreat Limited,"60,326.00",Revenue
DIRECT ENVIRONMENT AND HOUSING,GF ENV AND VISIBLE,01-May-2019,325790,Calibre Contracting Limited,"1,257.58",Revenue
DIRECT ENVIRONMENT AND HOUSING,GF ENV AND VISIBLE,01-May-2019,325790,Calibre Contracting Limited,"1,318.10",Revenue
DIRECT ENVIRONMENT AND HOUSING,GF ENV AND VISIBLE,01-May-2019,325892,Centregreat Limited,"1,621.95",Revenue
DIRECT ENVIRONMENT AND HOUSING,GF PARKS AND GROUNDS,01-May-2019,333013,Ace Site Services (UK) Limited,760.00,Revenue
DIRECT ENVIRONMENT AND HOUSING,GF PARKS AND GROUNDS,01-May-2019,333037,CPA Horticulture Limited,"1,155.00",Revenue
DIRECT ENVIRONMENT AND HOUSING,GF ENV AND VISIBLE,01-May-2019,341350,Redwood Environmental Services Limited,565.90,Revenue
NEW REGENERATION,REGENERATION & PLANNING,01-May-2019,354727,Secure-a-Field Limited,"16,105.00",Revenue
DIRECT ENVIRONMENT AND HOUSING,VISIBLE SERVICES,01-May-2019,365789,Merricks Private Transport Contractors Limited,552.00,Revenue
DIRECT ENVIRONMENT AND HOUSING,VISIBLE SERVICES,01-May-2019,365789,Merricks Private Transport Contractors Limited,720.00,Revenue
DIRECT ENVIRONMENT AND HOUSING,VISIBLE SERVICES,01-May-2019,365789,Travellink Solutions Limited,814.00,Revenue
DIRECT ENVIRONMENT AND HOUSING,VISIBLE SERVICES,01-May-2019,365790,Travellink Solutions Limited,"3,096.00",Revenue
DIRECT ENVIRONMENT AND HOUSING,VISIBLE SERVICES,01-May-2019,365803,Merricks Private Transport Contractors Limited,600.00,Revenue
DIRECT ENVIRONMENT AND HOUSING,VISIBLE SERVICES,01-May-2019,365803,Merricks Private Transport Contractors Limited,900.00,Revenue
DIRECT ENVIRONMENT AND HOUSING,VISIBLE SERVICES,01-May-2019,365803,K-Tax Limited,"3,204.00",Revenue
DIRECT ENVIRONMENT AND HOUSING,GF HOUSING SERVICES,01-May-2019,405113,Knights Lettings Limited T/A Knights Estate Agents,635.00,Revenue
DIRECT ENVIRONMENT AND HOUSING,GF HOUSING SERVICES,01-May-2019,405113,Knights Lettings Limited T/A Knights Estate Agents,675.00,Revenue
DIRECT ENVIRONMENT AND HOUSING,GF HOUSING SERVICES,01-May-2019,405113,Knights Lettings Limited T/A Knights Estate Agents,750.00,Revenue
DIRECT ENVIRONMENT AND HOUSING,HRA SPECIAL SERVICES,01-May-2019,407200,Masons Moving Group Limited,575.00,Revenue
DIRECT MANAGING DIRECTOR AND RESOURCES,GF RESOURCES,01-May-2019,420220,CIPFA Business Limited,500.00,Revenue
DIRECT MANAGING DIRECTOR AND RESOURCES,GF RESOURCES,01-May-2019,420220,Capita Business Services Limited,"13,395.00",Revenue
DIRECT MANAGING DIRECTOR AND RESOURCES,GF RESOURCES,01-May-2019,422100,Chubb Fire & Security Limited,"1,250.00",Revenue
DIRECT CAPITAL VISIBLE AND HOUSING SERVICES,CAPITAL HIGHWAYS,01-May-2019,831553,Arcadis Consulting (UK) Limited,"4,839.84",Capital
DIRECT ENVIRONMENT AND HOUSING,VISIBLE SERVICES,01-May-2019,365784,Rhondda Cynon Taf County Borough Council,"1,170.00",Revenue
DIRECT ENVIRONMENT AND HOUSING,VISIBLE SERVICES,01-May-2019,365784,Rhondda Cynon Taf County Borough Council,"1,560.00",Revenue
DIRECT ENVIRONMENT AND HOUSING,GF HOUSING SERVICES,01-May-2019,405113,Elaine Hulbert & Ptn t/a Hulbert's Property Services,550.00,Revenue
DIRECT ENVIRONMENT AND HOUSING,VISIBLE SERVICES,01-May-2019,365789,Peter Harris,510.00,Revenue
DIRECT ENVIRONMENT AND HOUSING,VISIBLE SERVICES,01-May-2019,365803,Andrew Barnes,"1,080.00",Revenue
DIRECT ENVIRONMENT AND HOUSING,GF HOUSING SERVICES,01-May-2019,405113,Salvatore Cannatella,650.00,Revenue
DIRECT ENVIRONMENT AND HOUSING,GF HOUSING SERVICES,01-May-2019,405113,Ian & Jackie Rogers,675.00,Revenue
DIRECT LEARNING AND SKILLS,STRATEGY COMMUNITY LEARNING & RESOURCES,01-May-2019,100112,Disclosure and Barring Service,792.00,Revenue
DIRECT LEARNING AND SKILLS,STRATEGY COMMUNITY LEARNING & RESOURCES,01-May-2019,100130,Disclosure and Barring Service,"1,232.00",Revenue
DIRECT SOCIAL SERVICES,GF CHILDREN SERVICES,01-May-2019,260020,Disclosure and Barring Service,"1,126.00",Revenue
DIRECT SOCIAL SERVICES,GF CHILDREN SERVICES,01-May-2019,260500,Disclosure and Barring Service,968.00,Revenue
DIRECT ENVIRONMENT AND HOUSING,REGULATORY SERVICES SHARED SERVICES,01-May-2019,403162,Disclosure and Barring Service,"1,892.00",Revenue
DIRECT ENVIRONMENT AND HOUSING,REGULATORY SERVICES SHARED SERVICES,01-May-2019,403330,Disclosure and Barring Service,748.00,Revenue
DIRECT LEARNING AND SKILLS,SCHOOLS DELEGATED,01-May-2019,101095,New Directions (Education) Limited,545.93,Revenue
DIRECT LEARNING AND SKILLS,ACHIEVEMENT FOR ALL,01-May-2019,102604,New Directions (Education) Limited,567.30,Revenue
DIRECT LEARNING AND SKILLS,ACHIEVEMENT FOR ALL,01-May-2019,102604,New Directions (Education) Limited,649.65,Revenue
DIRECT LEARNING AND SKILLS,ACHIEVEMENT FOR ALL,01-May-2019,102604,New Directions (Education) Limited,853.78,Revenue
DIRECT LEARNING AND SKILLS,ACHIEVEMENT FOR ALL,01-May-2019,102604,New Directions (Education) Limited,894.45,Revenue
DIRECT LEARNING AND SKILLS,ACHIEVEMENT FOR ALL,01-May-2019,102604,New Directions (Education) Limited,952.92,Revenue
DIRECT MANAGING DIRECTOR AND RESOURCES,GF HUMAN RESOURCES,01-May-2019,140131,Randstad Solutions Limited,"96,985.76",Revenue
DIRECT MANAGING DIRECTOR AND RESOURCES,GF HUMAN RESOURCES,01-May-2019,140131,Randstad Solutions Limited,"102,539.88",Revenue
DIRECT MANAGING DIRECTOR AND RESOURCES,GF HUMAN RESOURCES,01-May-2019,140131,Randstad Solutions Limited,"106,690.63",Revenue
DIRECT ENVIRONMENT AND HOUSING,HOUSING - HRA,01-May-2019,303910,Hays Specialist Recruitment Limited,513.60,Revenue
DIRECT ENVIRONMENT AND HOUSING,HOUSING - HRA,01-May-2019,303910,Hays Specialist Recruitment Limited,545.72,Revenue
DIRECT ENVIRONMENT AND HOUSING,HOUSING - HRA,01-May-2019,303910,Hays Specialist Recruitment Limited,559.09,Revenue
DIRECT ENVIRONMENT AND HOUSING,HOUSING - HRA,01-May-2019,303910,Hays Specialist Recruitment Limited,559.09,Revenue
DIRECT ENVIRONMENT AND HOUSING,HOUSING - HRA,01-May-2019,303910,Hays Specialist Recruitment Limited,576.00,Revenue
DIRECT ENVIRONMENT AND HOUSING,HOUSING - HRA,01-May-2019,303910,Hays Specialist Recruitment Limited,586.08,Revenue
DIRECT ENVIRONMENT AND HOUSING,HOUSING - HRA,01-May-2019,303910,Hays Specialist Recruitment Limited,633.44,Revenue
DIRECT ENVIRONMENT AND HOUSING,HOUSING - HRA,01-May-2019,303910,Hays Specialist Recruitment Limited,633.44,Revenue
DIRECT ENVIRONMENT AND HOUSING,HOUSING - HRA,01-May-2019,303910,Hays Specialist Recruitment Limited,673.05,Revenue
DIRECT ENVIRONMENT AND HOUSING,HOUSING - HRA,01-May-2019,303910,Hays Specialist Recruitment Limited,673.05,Revenue
DIRECT ENVIRONMENT AND HOUSING,HOUSING - HRA,01-May-2019,303910,Hays Specialist Recruitment Limited,710.40,Revenue
DIRECT ENVIRONMENT AND HOUSING,HOUSING - HRA,01-May-2019,303910,Hays Specialist Recruitment Limited,710.40,Revenue
DIRECT ENVIRONMENT AND HOUSING,PUBLIC BUILDINGS,01-May-2019,303931,Building Recruitment Company Limited,558.30,Revenue
DIRECT ENVIRONMENT AND HOUSING,PUBLIC BUILDINGS,01-May-2019,303931,Building Recruitment Company Limited,558.30,Revenue
DIRECT ENVIRONMENT AND HOUSING,GF ENV AND VISIBLE,01-May-2019,323685,Hays Specialist Recruitment Limited,989.04,Revenue
DIRECT ENVIRONMENT AND HOUSING,GF ENV AND VISIBLE,01-May-2019,323685,Hays Specialist Recruitment Limited,989.04,Revenue
DIRECT ENVIRONMENT AND HOUSING,GF ENV AND VISIBLE,01-May-2019,323685,Hays Specialist Recruitment Limited,"1,548.75",Revenue
DIRECT ENVIRONMENT AND HOUSING,GF ENV AND VISIBLE,01-May-2019,323685,Hays Specialist Recruitment Limited,"1,548.75",Revenue
DIRECT ENVIRONMENT AND HOUSING,GF ENV AND VISIBLE,01-May-2019,323686,Hays Specialist Recruitment Limited,659.20,Revenue
DIRECT ENVIRONMENT AND HOUSING,HRA MANAGEMENT,01-May-2019,407106,Building Recruitment Company Limited,677.81,Revenue
DIRECT ENVIRONMENT AND HOUSING,HRA MANAGEMENT,01-May-2019,407108,Building Recruitment Company Limited,526.93,Revenue
DIRECT ENVIRONMENT AND HOUSING,HRA MANAGEMENT,01-May-2019,407119,Building Recruitment Company Limited,921.88,Revenue
DIRECT ENVIRONMENT AND HOUSING,HRA MANAGEMENT,01-May-2019,407119,Building Recruitment Company Limited,929.40,Revenue
DIRECT LEARNING AND SKILLS,ACHIEVEMENT FOR ALL,01-May-2019,102652,Skybound Therapies Limited,"7,617.67",Revenue
DIRECT ENVIRONMENT AND HOUSING,VISIBLE SERVICES,01-May-2019,365789,Simon Lewis t/a Cowbridge and Vale Cars,720.00,Revenue
DIRECT ENVIRONMENT AND HOUSING,VISIBLE SERVICES,01-May-2019,365789,Simon Lewis t/a Cowbridge and Vale Cars,780.00,Revenue
DIRECT ENVIRONMENT AND HOUSING,VISIBLE SERVICES,01-May-2019,365790,Simon Lewis t/a Cowbridge and Vale Cars,600.00,Revenue
DIRECT ENVIRONMENT AND HOUSING,VISIBLE SERVICES,01-May-2019,365790,Simon Lewis t/a Cowbridge and Vale Cars,720.00,Revenue
DIRECT ENVIRONMENT AND HOUSING,VISIBLE SERVICES,01-May-2019,365790,Wayne Davies t/a Denway Travel,"1,020.00",Revenue
DIRECT ENVIRONMENT AND HOUSING,VISIBLE SERVICES,01-May-2019,365802,Gary P Shaw t/a GP Shaw Taxis,680.00,Revenue
DIRECT ENVIRONMENT AND HOUSING,VISIBLE SERVICES,01-May-2019,365803,Rhys VJ Morgan t/a Windsor Cars,672.00,Revenue
DIRECT ENVIRONMENT AND HOUSING,VISIBLE SERVICES,01-May-2019,365803,Gary P Shaw t/a GP Shaw Taxis,"2,011.00",Revenue
DIRECT LEARNING AND SKILLS,SCHOOLS DELEGATED,01-May-2019,101005,Sherman Cymru,810.00,Revenue
DIRECT ENVIRONMENT AND HOUSING,HRA MANAGEMENT,01-May-2019,407130,Redlands Residents Association,"1,700.00",Revenue
DIRECT SOCIAL SERVICES,GF ADULT SERVICES,02-May-2019,215489,All Care (South Wales) Limited,661.77,Revenue
DIRECT SOCIAL SERVICES,GF ADULT SERVICES,02-May-2019,215489,All Care (South Wales) Limited,661.77,Revenue
DIRECT SOCIAL SERVICES,GF ADULT SERVICES,02-May-2019,215489,All Care (South Wales) Limited,740.96,Revenue
DIRECT SOCIAL SERVICES,GF ADULT SERVICES,02-May-2019,215489,All Care (South Wales) Limited,740.96,Revenue
DIRECT SOCIAL SERVICES,GF ADULT SERVICES,02-May-2019,215489,All Care (South Wales) Limited,767.04,Revenue
DIRECT SOCIAL SERVICES,GF ADULT SERVICES,02-May-2019,215489,All Care (South Wales) Limited,767.04,Revenue
DIRECT SOCIAL SERVICES,GF ADULT SERVICES,02-May-2019,215489,All Care (South Wales) Limited,861.23,Revenue
DIRECT SOCIAL SERVICES,GF ADULT SERVICES,02-May-2019,215489,All Care (South Wales) Limited,861.23,Revenue
DIRECT SOCIAL SERVICES,GF ADULT SERVICES,02-May-2019,216179,All Care (South Wales) Limited,710.70,Revenue
DIRECT SOCIAL SERVICES,GF ADULT SERVICES,02-May-2019,216179,All Care (South Wales) Limited,787.95,Revenue
DIRECT SOCIAL SERVICES,GF ADULT SERVICES,02-May-2019,216179,All Care (South Wales) Limited,"1,723.14",Revenue
DIRECT SOCIAL SERVICES,GF ADULT SERVICES,02-May-2019,216179,All Care (South Wales) Limited,"1,723.14",Revenue
DIRECT SOCIAL SERVICES,GF ADULT SERVICES,02-May-2019,217909,All Care (South Wales) Limited,544.75,Revenue
DIRECT SOCIAL SERVICES,GF ADULT SERVICES,02-May-2019,217909,All Care (South Wales) Limited,618.74,Revenue
DIRECT LEARNING AND SKILLS,STRATEGY COMMUNITY LEARNING & RESOURCES,02-May-2019,100121,Silversands Limited,"2,500.00",Revenue
DIRECT LEARNING AND SKILLS,STRATEGY COMMUNITY LEARNING & RESOURCES,02-May-2019,100121,GL Education Group Limited,"14,349.44",Revenue
DIRECT LEARNING AND SKILLS,STRATEGY COMMUNITY LEARNING & RESOURCES,02-May-2019,120080,Askews & Holts Library Services Limited,500.60,Revenue
DIRECT MANAGING DIRECTOR AND RESOURCES,GF HUMAN RESOURCES,02-May-2019,140117,Partnerships In Care Limited T/A Care First,726.11,Revenue
DIRECT MANAGING DIRECTOR AND RESOURCES,GF HUMAN RESOURCES,02-May-2019,140122,Childcare Vouchers Limited,"23,947.20",Revenue
DIRECT SOCIAL SERVICES,GF RESOURCES MANAGEMENT & SAFEGUARDING,02-May-2019,212791,Castell Howell Foods Limited,506.44,Revenue
DIRECT ENVIRONMENT AND HOUSING,GF ENV AND VISIBLE,02-May-2019,325647,Complete Weed Control (South Wales) Limited,"26,202.90",Revenue
DIRECT ENVIRONMENT AND HOUSING,GF PARKS AND GROUNDS,02-May-2019,333013,The Firewood Company (UK) Limited T/A Esa Tree Care,780.00,Revenue
NEW REGENERATION,REGENERATION & PLANNING,02-May-2019,359453,PPL PRS Limited,"3,619.79",Revenue
DIRECT ENVIRONMENT AND HOUSING,VISIBLE SERVICES,02-May-2019,365786,Cardiff City Transport Services Limited,"114,302.28",Revenue
DIRECT ENVIRONMENT AND HOUSING,VISIBLE SERVICES,02-May-2019,365803,Merricks Private Transport Contractors Limited,"10,374.00",Revenue
DIRECT ENVIRONMENT AND HOUSING,VISIBLE SERVICES,02-May-2019,365803,Merricks Private Transport Contractors Limited,"17,760.00",Revenue
DIRECT ENVIRONMENT AND HOUSING,REGULATORY SERVICES SHARED SERVICES,02-May-2019,403204,Childcare Vouchers Limited,"1,258.50",Revenue
DIRECT ENVIRONMENT AND HOUSING,GF HOUSING SERVICES,02-May-2019,405001,Cadwyn Housing Association Limited t/a Can Do Lettings,500.00,Revenue
DIRECT ENVIRONMENT AND HOUSING,GF HOUSING SERVICES,02-May-2019,405001,Nina Estate Agents Limited,625.00,Revenue
DIRECT ENVIRONMENT AND HOUSING,HRA MANAGEMENT,02-May-2019,407120,OpenView Security Solutions Limited,585.00,Revenue
DIRECT MANAGING DIRECTOR AND RESOURCES,GF RESOURCES,02-May-2019,421230,Xerox Finance Limited,"13,524.40",Revenue
DIRECT CAPITAL LEARN AND SKILLS,CAPITAL SCHOOLS,02-May-2019,810092,M Thomas Water Services Limited,"3,385.10",Capital
DIRECT CAPITAL LEARN AND SKILLS,AR CAPITAL SCHOOLS,02-May-2019,812277,Willis Construction Limited,"45,250.49",Capital
DIRECT CAPITAL LEARN AND SKILLS,AR CAPITAL SCHOOLS,02-May-2019,812322,Tugbury Electrical Services Limited,635.00,Capital
DIRECT CAPITAL DEVELOPMENT,CAPITAL PLANNING,02-May-2019,837212,J & HM Dickson Limited,"12,135.20",Capital
DIRECT CAPITAL DEVELOPMENT,CAPITAL PLANNING,02-May-2019,837212,J & HM Dickson Limited,"24,707.00",Capital
DIRECT CAPITAL DEVELOPMENT,CAPITAL PLANNING,02-May-2019,837212,J & HM Dickson Limited,"36,895.80",Capital
DIRECT CAPITAL DEVELOPMENT,CAPITAL PLANNING,02-May-2019,837212,J & HM Dickson Limited,"44,666.00",Capital
DIRECT CAPITAL DEVELOPMENT,CAPITAL PLANNING,02-May-2019,837212,J & HM Dickson Limited,"44,939.00",Capital
DIRECT CAPITAL DEVELOPMENT,CAPITAL PLANNING,02-May-2019,837212,J & HM Dickson Limited,"51,727.00",Capital
DIRECT CAPITAL VISIBLE AND HOUSING SERVICES,CAPITAL HRA,02-May-2019,842116,AFT Group (Wales) Limited T/A Advanced Fire Technologies Limited,717.50,Capital
DIRECT CAPITAL VISIBLE AND HOUSING SERVICES,CAPITAL HRA,02-May-2019,842116,AFT Group (Wales) Limited T/A Advanced Fire Technologies Limited,717.50,Capital
DIRECT CAPITAL VISIBLE AND HOUSING SERVICES,CAPITAL HRA,02-May-2019,842116,AFT Group (Wales) Limited T/A Advanced Fire Technologies Limited,717.50,Capital
DIRECT CAPITAL VISIBLE AND HOUSING SERVICES,CAPITAL HRA,02-May-2019,842116,AFT Group (Wales) Limited T/A Advanced Fire Technologies Limited,717.50,Capital
DIRECT CAPITAL VISIBLE AND HOUSING SERVICES,CAPITAL HRA,02-May-2019,842116,AFT Group (Wales) Limited T/A Advanced Fire Technologies Limited,717.50,Capital
DIRECT CAPITAL VISIBLE AND HOUSING SERVICES,CAPITAL HRA,02-May-2019,842116,AFT Group (Wales) Limited T/A Advanced Fire Technologies Limited,746.62,Capital
DIRECT CAPITAL VISIBLE AND HOUSING SERVICES,CAPITAL HRA,02-May-2019,842116,AFT Group (Wales) Limited T/A Advanced Fire Technologies Limited,746.62,Capital
DIRECT CAPITAL VISIBLE AND HOUSING SERVICES,CAPITAL HRA,02-May-2019,842116,AFT Group (Wales) Limited T/A Advanced Fire Technologies Limited,746.62,Capital
DIRECT CAPITAL VISIBLE AND HOUSING SERVICES,CAPITAL HRA,02-May-2019,842116,AFT Group (Wales) Limited T/A Advanced Fire Technologies Limited,746.62,Capital
DIRECT CAPITAL VISIBLE AND HOUSING SERVICES,CAPITAL HRA,02-May-2019,842116,AFT Group (Wales) Limited T/A Advanced Fire Technologies Limited,746.62,Capital
DIRECT CAPITAL VISIBLE AND HOUSING SERVICES,CAPITAL HRA,02-May-2019,842116,AFT Group (Wales) Limited T/A Advanced Fire Technologies Limited,746.62,Capital
DIRECT CAPITAL VISIBLE AND HOUSING SERVICES,CAPITAL HRA,02-May-2019,842116,AFT Group (Wales) Limited T/A Advanced Fire Technologies Limited,"1,159.82",Capital
DIRECT CAPITAL VISIBLE AND HOUSING SERVICES,CAPITAL HRA,02-May-2019,842116,AFT Group (Wales) Limited T/A Advanced Fire Technologies Limited,"1,159.82",Capital
DIRECT CAPITAL VISIBLE AND HOUSING SERVICES,CAPITAL HRA,02-May-2019,842116,AFT Group (Wales) Limited T/A Advanced Fire Technologies Limited,"1,159.82",Capital
DIRECT CAPITAL VISIBLE AND HOUSING SERVICES,CAPITAL HRA,02-May-2019,842116,AFT Group (Wales) Limited T/A Advanced Fire Technologies Limited,"1,160.32",Capital
DIRECT CAPITAL VISIBLE AND HOUSING SERVICES,CAPITAL HRA,02-May-2019,842116,AFT Group (Wales) Limited T/A Advanced Fire Technologies Limited,"1,161.32",Capital
DIRECT CAPITAL VISIBLE AND HOUSING SERVICES,CAPITAL HRA,02-May-2019,842116,AFT Group (Wales) Limited T/A Advanced Fire Technologies Limited,"1,161.32",Capital
DIRECT CAPITAL VISIBLE AND HOUSING SERVICES,CAPITAL HRA,02-May-2019,842116,AFT Group (Wales) Limited T/A Advanced Fire Technologies Limited,"1,161.32",Capital
DIRECT CAPITAL VISIBLE AND HOUSING SERVICES,CAPITAL HRA,02-May-2019,842116,AFT Group (Wales) Limited T/A Advanced Fire Technologies Limited,"1,161.32",Capital
DIRECT CAPITAL VISIBLE AND HOUSING SERVICES,CAPITAL HRA,02-May-2019,842116,AFT Group (Wales) Limited T/A Advanced Fire Technologies Limited,"1,161.32",Capital
DIRECT CAPITAL VISIBLE AND HOUSING SERVICES,CAPITAL HRA,02-May-2019,842116,AFT Group (Wales) Limited T/A Advanced Fire Technologies Limited,"1,161.32",Capital
DIRECT CAPITAL VISIBLE AND HOUSING SERVICES,CAPITAL HRA,02-May-2019,842116,AFT Group (Wales) Limited T/A Advanced Fire Technologies Limited,"1,161.32",Capital
DIRECT CAPITAL VISIBLE AND HOUSING SERVICES,CAPITAL HRA,02-May-2019,842116,AFT Group (Wales) Limited T/A Advanced Fire Technologies Limited,"1,161.32",Capital
DIRECT CAPITAL VISIBLE AND HOUSING SERVICES,CAPITAL HRA,02-May-2019,842116,AFT Group (Wales) Limited T/A Advanced Fire Technologies Limited,"1,161.32",Capital
DIRECT CAPITAL VISIBLE AND HOUSING SERVICES,CAPITAL HRA,02-May-2019,842116,AFT Group (Wales) Limited T/A Advanced Fire Technologies Limited,"1,161.32",Capital
DIRECT CAPITAL VISIBLE AND HOUSING SERVICES,CAPITAL HRA,02-May-2019,842116,AFT Group (Wales) Limited T/A Advanced Fire Technologies Limited,"1,161.32",Capital
DIRECT CAPITAL VISIBLE AND HOUSING SERVICES,CAPITAL HRA,02-May-2019,842116,AFT Group (Wales) Limited T/A Advanced Fire Technologies Limited,"1,161.32",Capital
DIRECT CAPITAL VISIBLE AND HOUSING SERVICES,CAPITAL HRA,02-May-2019,842116,AFT Group (Wales) Limited T/A Advanced Fire Technologies Limited,"1,161.32",Capital
DIRECT CAPITAL VISIBLE AND HOUSING SERVICES,CAPITAL HRA,02-May-2019,842116,AFT Group (Wales) Limited T/A Advanced Fire Technologies Limited,"1,161.32",Capital
DIRECT CAPITAL VISIBLE AND HOUSING SERVICES,CAPITAL HRA,02-May-2019,842116,AFT Group (Wales) Limited T/A Advanced Fire Technologies Limited,"1,166.32",Capital
DIRECT CAPITAL VISIBLE AND HOUSING SERVICES,CAPITAL HRA,02-May-2019,842116,AFT Group (Wales) Limited T/A Advanced Fire Technologies Limited,"1,166.32",Capital
DIRECT CAPITAL VISIBLE AND HOUSING SERVICES,CAPITAL HRA,02-May-2019,842116,AFT Group (Wales) Limited T/A Advanced Fire Technologies Limited,"1,166.32",Capital
DIRECT CAPITAL VISIBLE AND HOUSING SERVICES,CAPITAL HRA,02-May-2019,842116,AFT Group (Wales) Limited T/A Advanced Fire Technologies Limited,"1,166.32",Capital
DIRECT CAPITAL VISIBLE AND HOUSING SERVICES,CAPITAL HRA,02-May-2019,842116,AFT Group (Wales) Limited T/A Advanced Fire Technologies Limited,"1,166.32",Capital
DIRECT CAPITAL VISIBLE AND HOUSING SERVICES,CAPITAL HRA,02-May-2019,842116,AFT Group (Wales) Limited T/A Advanced Fire Technologies Limited,"1,166.32",Capital
DIRECT CAPITAL VISIBLE AND HOUSING SERVICES,CAPITAL HRA,02-May-2019,842116,AFT Group (Wales) Limited T/A Advanced Fire Technologies Limited,"1,166.32",Capital
DIRECT CAPITAL VISIBLE AND HOUSING SERVICES,CAPITAL HRA,02-May-2019,842116,AFT Group (Wales) Limited T/A Advanced Fire Technologies Limited,"1,166.32",Capital
DIRECT CAPITAL VISIBLE AND HOUSING SERVICES,CAPITAL HRA,02-May-2019,842116,AFT Group (Wales) Limited T/A Advanced Fire Technologies Limited,"1,586.05",Capital
DIRECT CAPITAL VISIBLE AND HOUSING SERVICES,CAPITAL HRA,02-May-2019,842116,AFT Group (Wales) Limited T/A Advanced Fire Technologies Limited,"1,586.05",Capital
DIRECT CAPITAL VISIBLE AND HOUSING SERVICES,CAPITAL HRA,02-May-2019,842116,AFT Group (Wales) Limited T/A Advanced Fire Technologies Limited,"1,586.05",Capital
DIRECT CAPITAL VISIBLE AND HOUSING SERVICES,CAPITAL HRA,02-May-2019,842116,AFT Group (Wales) Limited T/A Advanced Fire Technologies Limited,"1,586.05",Capital
DIRECT CAPITAL VISIBLE AND HOUSING SERVICES,CAPITAL HRA,02-May-2019,842116,AFT Group (Wales) Limited T/A Advanced Fire Technologies Limited,"1,586.05",Capital
DIRECT CAPITAL VISIBLE AND HOUSING SERVICES,CAPITAL HRA,02-May-2019,842116,AFT Group (Wales) Limited T/A Advanced Fire Technologies Limited,"1,586.05",Capital
DIRECT CAPITAL VISIBLE AND HOUSING SERVICES,CAPITAL HRA,02-May-2019,842116,AFT Group (Wales) Limited T/A Advanced Fire Technologies Limited,"1,586.05",Capital
DIRECT CAPITAL VISIBLE AND HOUSING SERVICES,CAPITAL HRA,02-May-2019,842116,AFT Group (Wales) Limited T/A Advanced Fire Technologies Limited,"1,586.05",Capital
DIRECT CAPITAL VISIBLE AND HOUSING SERVICES,CAPITAL HRA,02-May-2019,842116,AFT Group (Wales) Limited T/A Advanced Fire Technologies Limited,"1,596.05",Capital
DIRECT CAPITAL VISIBLE AND HOUSING SERVICES,CAPITAL HRA,02-May-2019,843001,Pinit Building & Civil Engineering Limited,"35,197.80",Capital
DIRECT CAPITAL VISIBLE AND HOUSING SERVICES,CAPITAL HRA,02-May-2019,843002,Pinit Building & Civil Engineering Limited,"20,020.95",Capital
DIRECT ENVIRONMENT AND HOUSING,GF HOUSING SERVICES,02-May-2019,405113,Cardiff County Council,"51,354.35",Revenue
DIRECT MANAGING DIRECTOR AND RESOURCES,GF CORPORATE AND CUSTOMER SERVICES,02-May-2019,440530,Carmarthenshire County Council,"1,250.00",Revenue
DIRECT MANAGING DIRECTOR AND RESOURCES,GF CORPORATE AND CUSTOMER SERVICES,02-May-2019,440530,Carmarthenshire County Council,"4,650.00",Revenue
DIRECT ENVIRONMENT AND HOUSING,GF PARKS AND GROUNDS,02-May-2019,333600,Jonathan Edwards & Ptn T/A Jonathan Edwards & Son,"1,162.50",Revenue
DIRECT ENVIRONMENT AND HOUSING,GF HOUSING SERVICES,02-May-2019,405001,Nicholas Moore,500.00,Revenue
DIRECT ENVIRONMENT AND HOUSING,GF HOUSING SERVICES,02-May-2019,405001,Nicholas Moore,500.00,Revenue
DIRECT SOCIAL SERVICES,GF CHILDREN SERVICES,02-May-2019,260118,Cardiff & Vale College,910.00,Revenue
DIRECT SOCIAL SERVICES,GF CHILDREN SERVICES,02-May-2019,260150,The Fostering Network - London office,"5,014.00",Revenue
DIRECT ENVIRONMENT AND HOUSING,GF HOUSING SERVICES,02-May-2019,405305,James Andrews Recruitment Solutions Limited,722.75,Revenue
DIRECT ENVIRONMENT AND HOUSING,HRA MANAGEMENT,02-May-2019,407118,James Andrews Recruitment Solutions Limited,919.20,Revenue
DIRECT ENVIRONMENT AND HOUSING,HRA MANAGEMENT,02-May-2019,407118,James Andrews Recruitment Solutions Limited,934.50,Revenue
DIRECT ENVIRONMENT AND HOUSING,HRA MANAGEMENT,02-May-2019,407118,James Andrews Recruitment Solutions Limited,"1,057.50",Revenue
DIRECT ENVIRONMENT AND HOUSING,HRA MANAGEMENT,02-May-2019,407119,Hays Specialist Recruitment Limited,"1,367.17",Revenue
DIRECT ENVIRONMENT AND HOUSING,HRA MANAGEMENT,02-May-2019,407119,Hays Specialist Recruitment Limited,"1,367.17",Revenue
DIRECT ENVIRONMENT AND HOUSING,HRA MANAGEMENT,02-May-2019,407119,Hays Specialist Recruitment Limited,"1,367.17",Revenue
DIRECT ENVIRONMENT AND HOUSING,GF ENV AND VISIBLE,02-May-2019,341220,Lee Robins t/a Robins Haulage,"1,620.00",Revenue
DIRECT ENVIRONMENT AND HOUSING,VISIBLE SERVICES,02-May-2019,365789,Paula Smith t/a Smiths Travel,900.00,Revenue
DIRECT ENVIRONMENT AND HOUSING,VISIBLE SERVICES,02-May-2019,365803,Rhys VJ Morgan t/a Windsor Cars,682.00,Revenue
DIRECT LEARNING AND SKILLS,STRATEGY COMMUNITY LEARNING & RESOURCES,02-May-2019,120051,Wales Council For Deaf People,560.00,Revenue
DIRECT LEARNING AND SKILLS,ACHIEVEMENT FOR ALL,02-May-2019,130271,The Brilliant Club,"7,680.00",Revenue
DIRECT SOCIAL SERVICES,GF ADULT SERVICES,03-May-2019,215489,Annwyl Limited t/a Bluebird Care,503.08,Revenue
DIRECT SOCIAL SERVICES,GF ADULT SERVICES,03-May-2019,215489,Willowmere Home Care Agency Limited,540.60,Revenue
DIRECT SOCIAL SERVICES,GF ADULT SERVICES,03-May-2019,215489,Hallows Care Limited T/A Hallows Care,552.25,Revenue
DIRECT SOCIAL SERVICES,GF ADULT SERVICES,03-May-2019,215489,1st Grade Care Limited,560.60,Revenue
DIRECT SOCIAL SERVICES,GF ADULT SERVICES,03-May-2019,215489,Caring Companions Limited,565.55,Revenue
DIRECT SOCIAL SERVICES,GF ADULT SERVICES,03-May-2019,215489,Caring Companions Limited,572.88,Revenue
DIRECT SOCIAL SERVICES,GF ADULT SERVICES,03-May-2019,215489,1st Grade Care Limited,583.31,Revenue
DIRECT SOCIAL SERVICES,GF ADULT SERVICES,03-May-2019,215489,GJ Care & Training Limited,585.28,Revenue
DIRECT SOCIAL SERVICES,GF ADULT SERVICES,03-May-2019,215489,1st Grade Care Limited,637.76,Revenue
DIRECT SOCIAL SERVICES,GF ADULT SERVICES,03-May-2019,215489,Cherish Cymru Limited,641.12,Revenue
DIRECT SOCIAL SERVICES,GF ADULT SERVICES,03-May-2019,215489,Caring Companions Limited,651.20,Revenue
DIRECT SOCIAL SERVICES,GF ADULT SERVICES,03-May-2019,215489,Caring Companions Limited,651.20,Revenue
DIRECT SOCIAL SERVICES,GF ADULT SERVICES,03-May-2019,215489,Cherish Cymru Limited,656.57,Revenue
DIRECT SOCIAL SERVICES,GF ADULT SERVICES,03-May-2019,215489,GJ Care & Training Limited,665.18,Revenue
DIRECT SOCIAL SERVICES,GF ADULT SERVICES,03-May-2019,215489,GJ Care & Training Limited,666.64,Revenue
DIRECT SOCIAL SERVICES,GF ADULT SERVICES,03-May-2019,215489,GJ Care & Training Limited,668.41,Revenue
DIRECT SOCIAL SERVICES,GF ADULT SERVICES,03-May-2019,215489,Caring Companions Limited,684.08,Revenue
DIRECT SOCIAL SERVICES,GF ADULT SERVICES,03-May-2019,215489,GJ Care & Training Limited,687.41,Revenue
DIRECT SOCIAL SERVICES,GF ADULT SERVICES,03-May-2019,215489,GJ Care & Training Limited,687.41,Revenue
DIRECT SOCIAL SERVICES,GF ADULT SERVICES,03-May-2019,215489,GJ Care & Training Limited,705.08,Revenue
DIRECT SOCIAL SERVICES,GF ADULT SERVICES,03-May-2019,215489,Annwyl Limited t/a Bluebird Care,706.80,Revenue
DIRECT SOCIAL SERVICES,GF ADULT SERVICES,03-May-2019,215489,Hallows Care Limited T/A Hallows Care,707.84,Revenue
DIRECT SOCIAL SERVICES,GF ADULT SERVICES,03-May-2019,215489,Hallows Care Limited T/A Hallows Care,707.84,Revenue
DIRECT SOCIAL SERVICES,GF ADULT SERVICES,03-May-2019,215489,Caring Companions Limited,717.12,Revenue
DIRECT SOCIAL SERVICES,GF ADULT SERVICES,03-May-2019,215489,GJ Care & Training Limited,730.21,Revenue
DIRECT SOCIAL SERVICES,GF ADULT SERVICES,03-May-2019,215489,1st Grade Care Limited,734.88,Revenue
DIRECT SOCIAL SERVICES,GF ADULT SERVICES,03-May-2019,215489,Hallows Care Limited T/A Hallows Care,736.41,Revenue
DIRECT SOCIAL SERVICES,GF ADULT SERVICES,03-May-2019,215489,Hallows Care Limited T/A Hallows Care,737.69,Revenue
DIRECT SOCIAL SERVICES,GF ADULT SERVICES,03-May-2019,215489,1st Grade Care Limited,744.16,Revenue
DIRECT SOCIAL SERVICES,GF ADULT SERVICES,03-May-2019,215489,1st Grade Care Limited,750.33,Revenue
DIRECT SOCIAL SERVICES,GF ADULT SERVICES,03-May-2019,215489,Cherish Cymru Limited,759.18,Revenue
DIRECT SOCIAL SERVICES,GF ADULT SERVICES,03-May-2019,215489,Hallows Care Limited T/A Hallows Care,760.32,Revenue
DIRECT SOCIAL SERVICES,GF ADULT SERVICES,03-May-2019,215489,Hallows Care Limited T/A Hallows Care,760.32,Revenue
DIRECT SOCIAL SERVICES,GF ADULT SERVICES,03-May-2019,215489,Cherish Cymru Limited,773.65,Revenue
DIRECT SOCIAL SERVICES,GF ADULT SERVICES,03-May-2019,215489,Annwyl Limited t/a Bluebird Care,782.17,Revenue
DIRECT SOCIAL SERVICES,GF ADULT SERVICES,03-May-2019,215489,Hallows Care Limited T/A Hallows Care,824.53,Revenue
DIRECT SOCIAL SERVICES,GF ADULT SERVICES,03-May-2019,215489,Annwyl Limited t/a Bluebird Care,874.70,Revenue
DIRECT SOCIAL SERVICES,GF ADULT SERVICES,03-May-2019,215489,Caring Companions Limited,898.40,Revenue
DIRECT SOCIAL SERVICES,GF ADULT SERVICES,03-May-2019,216179,Cherish Cymru Limited,"2,020.68",Revenue
DIRECT SOCIAL SERVICES,GF ADULT SERVICES,03-May-2019,217909,GJ Care & Training Limited,651.56,Revenue
DIRECT SOCIAL SERVICES,GF ADULT SERVICES,03-May-2019,217909,GJ Care & Training Limited,848.27,Revenue
DIRECT SOCIAL SERVICES,GF ADULT SERVICES,03-May-2019,218321,GJ Care & Training Limited,674.32,Revenue
DIRECT SOCIAL SERVICES,GF ADULT SERVICES,03-May-2019,218321,GJ Care & Training Limited,674.32,Revenue
DIRECT SOCIAL SERVICES,GF ADULT SERVICES,03-May-2019,218419,Hallows Care Limited T/A Hallows Care,528.57,Revenue
DIRECT LEARNING AND SKILLS,SCHOOLS NON DELEGATED,03-May-2019,100920,Eteach UK Limited T/A Eteach.com,"9,200.00",Revenue
DIRECT LEARNING AND SKILLS,SCHOOLS DELEGATED,03-May-2019,101007,The Learning Partnership (Wales) Limited,580.00,Revenue
DIRECT LEARNING AND SKILLS,SCHOOLS DELEGATED,03-May-2019,101007,3P Learning Limited,"1,411.20",Revenue
DIRECT LEARNING AND SKILLS,SCHOOLS DELEGATED,03-May-2019,101025,CF Corporate Finance Limited,999.99,Revenue
DIRECT LEARNING AND SKILLS,SCHOOLS DELEGATED,03-May-2019,101025,The Consortium for Purchasing and Distribution Limited,"1,444.43",Revenue
DIRECT LEARNING AND SKILLS,SCHOOLS DELEGATED,03-May-2019,101134,DSG Retail Limited,"1,040.30",Revenue
DIRECT LEARNING AND SKILLS,SCHOOLS DELEGATED,03-May-2019,101134,DSG Retail Limited,"2,755.50",Revenue
DIRECT LEARNING AND SKILLS,SCHOOLS DELEGATED,03-May-2019,101137,Computacenter (UK) Limited,"1,138.18",Revenue
DIRECT LEARNING AND SKILLS,SCHOOLS DELEGATED,03-May-2019,101173,Dwr Cymru Cyf,"1,627.10",Revenue
DIRECT LEARNING AND SKILLS,ACHIEVEMENT FOR ALL,03-May-2019,102801,CJ Contract Travel Services Limited,550.80,Revenue
DIRECT LEARNING AND SKILLS,GF CATERING,03-May-2019,154401,ABM Catering for Leisure Limited,"2,105.91",Revenue
DIRECT SOCIAL SERVICES,GF ADULT SERVICES,03-May-2019,215489,Cardiff Homecare Limited,652.68,Revenue
DIRECT ENVIRONMENT AND HOUSING,GF ENV AND VISIBLE,03-May-2019,325353,Siemens Mobility Limited,"1,128.00",Revenue
DIRECT ENVIRONMENT AND HOUSING,GF ENV AND VISIBLE,03-May-2019,325890,Centregreat Limited,"2,707.89",Revenue
DIRECT ENVIRONMENT AND HOUSING,GF ENV AND VISIBLE,03-May-2019,325890,Centregreat Limited,"4,569.53",Revenue
DIRECT ENVIRONMENT AND HOUSING,GF ENV AND VISIBLE,03-May-2019,325940,Centregreat Limited,"3,788.00",Revenue
DIRECT ENVIRONMENT AND HOUSING,GF ENV AND VISIBLE,03-May-2019,325945,Centregreat Limited,"1,302.36",Revenue
DIRECT ENVIRONMENT AND HOUSING,GF PARKS AND GROUNDS,03-May-2019,333013,The Firewood Company (UK) Limited T/A Esa Tree Care,"1,680.00",Revenue
DIRECT ENVIRONMENT AND HOUSING,VISIBLE SERVICES,03-May-2019,365803,CJ Contract Travel Services Limited,"7,255.68",Revenue
DIRECT ENVIRONMENT AND HOUSING,VISIBLE SERVICES,03-May-2019,365803,CJ Contract Travel Services Limited,"22,595.24",Revenue
DIRECT ENVIRONMENT AND HOUSING,GF HOUSING SERVICES,03-May-2019,402450,IV Hosting Limited,850.00,Revenue
DIRECT MANAGING DIRECTOR AND RESOURCES,GF RESOURCES,03-May-2019,420212,Capita Business Services Limited,"2,400.00",Revenue
DIRECT POLICY,GF CORPORATE POLICY MAKING,03-May-2019,460203,Worcestershire Medal Service Limited,855.00,Revenue
DIRECT POLICY,GF ELECTIONS,03-May-2019,463051,Royal Mail Group Limited,662.08,Revenue
DIRECT POLICY,GF ELECTIONS,03-May-2019,463051,MPS Marketing Services Limited,"1,166.86",Revenue
DIRECT POLICY,GF ELECTIONS,03-May-2019,463051,MPS Marketing Services Limited,"1,557.49",Revenue
DIRECT POLICY,GF ELECTIONS,03-May-2019,463051,MPS Marketing Services Limited,"34,385.60",Revenue
DIRECT POLICY,GF ELECTIONS,03-May-2019,463052,MPS Marketing Services Limited,"4,750.08",Revenue
DIRECT CAPITAL LEARN AND SKILLS,AR CAPITAL SCHOOLS,03-May-2019,812276,CD Gray & Associates Limited,500.00,Capital
DIRECT CAPITAL VISIBLE AND HOUSING SERVICES,CAPITAL HIGHWAYS,03-May-2019,831548,Centregreat Limited,754.26,Capital
DIRECT CAPITAL VISIBLE AND HOUSING SERVICES,AR CAPITAL GROUNDS MAINT,03-May-2019,832290,Wybone Limited,"8,307.60",Capital
DIRECT CAPITAL VISIBLE AND HOUSING SERVICES,AR CAPITAL GROUNDS MAINT,03-May-2019,832290,Wybone Limited,"43,522.52",Capital
DIRECT CAPITAL VISIBLE AND HOUSING SERVICES,CAPITAL HRA,03-May-2019,842116,AFT Group (Wales) Limited T/A Advanced Fire Technologies Limited,"-1,161.32",Capital
DIRECT CAPITAL VISIBLE AND HOUSING SERVICES,CAPITAL HRA,03-May-2019,842116,AFT Group (Wales) Limited T/A Advanced Fire Technologies Limited,717.50,Capital
DIRECT CAPITAL VISIBLE AND HOUSING SERVICES,CAPITAL HRA,03-May-2019,842116,AFT Group (Wales) Limited T/A Advanced Fire Technologies Limited,"1,161.32",Capital
DIRECT CAPITAL VISIBLE AND HOUSING SERVICES,CAPITAL HRA,03-May-2019,842116,AFT Group (Wales) Limited T/A Advanced Fire Technologies Limited,"1,161.32",Capital
DIRECT LEARNING AND SKILLS,ACHIEVEMENT FOR ALL,03-May-2019,102632,Cardiff County Council,715.00,Revenue
DIRECT MANAGING DIRECTOR AND RESOURCES,GF LEGAL AND DEMOCRATIC,03-May-2019,400050,Elizabeth McGahey,"5,966.00",Revenue
DIRECT ENVIRONMENT AND HOUSING,GF HOUSING SERVICES,03-May-2019,405100,Duncan M Evans,"1,255.25",Revenue
DIRECT LEARNING AND SKILLS,SCHOOLS DELEGATED,03-May-2019,101013,New Directions (Education) Limited,"1,031.84",Revenue
DIRECT LEARNING AND SKILLS,SCHOOLS DELEGATED,03-May-2019,102593,Teaching Personnel Limited,509.95,Revenue
DIRECT LEARNING AND SKILLS,SCHOOLS DELEGATED,03-May-2019,102593,Teaching Personnel Limited,520.20,Revenue
DIRECT LEARNING AND SKILLS,SCHOOLS NON DELEGATED,03-May-2019,103006,New Directions (Education) Limited,526.00,Revenue
DIRECT LEARNING AND SKILLS,SCHOOLS NON DELEGATED,03-May-2019,103013,New Directions (Education) Limited,540.00,Revenue
DIRECT LEARNING AND SKILLS,SCHOOLS NON DELEGATED,03-May-2019,103213,New Directions (Education) Limited,652.50,Revenue
DIRECT LEARNING AND SKILLS,SCHOOLS NON DELEGATED,03-May-2019,103227,New Directions (Education) Limited,532.00,Revenue
DIRECT LEARNING AND SKILLS,SCHOOLS NON DELEGATED,03-May-2019,103227,Bay Resourcing Limited,605.65,Revenue
DIRECT ENVIRONMENT AND HOUSING,HRA MANAGEMENT,03-May-2019,407119,Hays Specialist Recruitment Limited,"1,108.52",Revenue
DIRECT ENVIRONMENT AND HOUSING,HRA MANAGEMENT,03-May-2019,407119,Hays Specialist Recruitment Limited,"1,108.52",Revenue
DIRECT ENVIRONMENT AND HOUSING,HRA MANAGEMENT,03-May-2019,407119,Hays Specialist Recruitment Limited,"1,108.52",Revenue
DIRECT LEARNING AND SKILLS,ACHIEVEMENT FOR ALL,03-May-2019,130486,Joe Jordan t/a Canoe Sport Coaching,600.00,Revenue
DIRECT ENVIRONMENT AND HOUSING,GF PARKS AND GROUNDS,03-May-2019,333530,Jeffrey Ball T/A Gates 'N' Railings,"2,935.00",Revenue
DIRECT LEARNING AND SKILLS,STRATEGY COMMUNITY LEARNING & RESOURCES,03-May-2019,130045,The Gathering Place,534.00,Revenue
DIRECT SOCIAL SERVICES,GF ADULT SERVICES,07-May-2019,215489,Cardiff & Vale Caring 4 U Limited T/A Caremark Cardiff & The Vale of Glamorgan,525.68,Revenue
DIRECT SOCIAL SERVICES,GF ADULT SERVICES,07-May-2019,215489,Cardiff & Vale Caring 4 U Limited T/A Caremark Cardiff & The Vale of Glamorgan,532.80,Revenue
DIRECT SOCIAL SERVICES,GF ADULT SERVICES,07-May-2019,215489,Cardiff & Vale Caring 4 U Limited T/A Caremark Cardiff & The Vale of Glamorgan,534.26,Revenue
DIRECT SOCIAL SERVICES,GF ADULT SERVICES,07-May-2019,215489,Parkrow Care Limited,624.64,Revenue
DIRECT SOCIAL SERVICES,GF ADULT SERVICES,07-May-2019,215489,Parkrow Care Limited,629.06,Revenue
DIRECT SOCIAL SERVICES,GF ADULT SERVICES,07-May-2019,215489,1st Grade Care Limited,659.34,Revenue
DIRECT SOCIAL SERVICES,GF ADULT SERVICES,07-May-2019,215489,Cardiff & Vale Caring 4 U Limited T/A Caremark Cardiff & The Vale of Glamorgan,767.88,Revenue
DIRECT SOCIAL SERVICES,GF ADULT SERVICES,07-May-2019,215489,Cardiff & Vale Caring 4 U Limited T/A Caremark Cardiff & The Vale of Glamorgan,771.84,Revenue
DIRECT SOCIAL SERVICES,GF ADULT SERVICES,07-May-2019,215489,Cardiff & Vale Caring 4 U Limited T/A Caremark Cardiff & The Vale of Glamorgan,796.70,Revenue
DIRECT SOCIAL SERVICES,GF ADULT SERVICES,07-May-2019,215489,Cardiff & Vale Caring 4 U Limited T/A Caremark Cardiff & The Vale of Glamorgan,796.76,Revenue
DIRECT SOCIAL SERVICES,GF ADULT SERVICES,07-May-2019,215489,Cardiff & Vale Caring 4 U Limited T/A Caremark Cardiff & The Vale of Glamorgan,843.28,Revenue
DIRECT SOCIAL SERVICES,GF ADULT SERVICES,07-May-2019,215489,Cardiff & Vale Caring 4 U Limited T/A Caremark Cardiff & The Vale of Glamorgan,849.28,Revenue
DIRECT SOCIAL SERVICES,GF ADULT SERVICES,07-May-2019,215489,Cardiff & Vale Caring 4 U Limited T/A Caremark Cardiff & The Vale of Glamorgan,885.00,Revenue
DIRECT SOCIAL SERVICES,GF ADULT SERVICES,07-May-2019,216179,Cardiff & Vale Caring 4 U Limited T/A Caremark Cardiff & The Vale of Glamorgan,"1,033.16",Revenue
DIRECT SOCIAL SERVICES,GF ADULT SERVICES,07-May-2019,217909,Cardiff & Vale Caring 4 U Limited T/A Caremark Cardiff & The Vale of Glamorgan,983.23,Revenue
DIRECT SOCIAL SERVICES,GF ADULT SERVICES,07-May-2019,217909,Cardiff & Vale Caring 4 U Limited T/A Caremark Cardiff & The Vale of Glamorgan,"1,038.40",Revenue
DIRECT SOCIAL SERVICES,GF ADULT SERVICES,07-May-2019,218419,Parkrow Care Limited,655.54,Revenue
DIRECT LEARNING AND SKILLS,SCHOOLS NON DELEGATED,07-May-2019,100680,The Copyright Licensing Agency Limited,"48,719.40",Revenue
DIRECT LEARNING AND SKILLS,SCHOOLS DELEGATED,07-May-2019,101004,Superstars School Services Limited,"1,210.08",Revenue
DIRECT LEARNING AND SKILLS,SCHOOLS DELEGATED,07-May-2019,101004,Blue Sky Digital Solutions Limited,"1,775.31",Revenue
DIRECT LEARNING AND SKILLS,SCHOOLS DELEGATED,07-May-2019,101007,The Assessment Foundation CIC,996.00,Revenue
DIRECT LEARNING AND SKILLS,SCHOOLS DELEGATED,07-May-2019,101013,Groupcall Limited,-518.00,Revenue
DIRECT LEARNING AND SKILLS,SCHOOLS DELEGATED,07-May-2019,101047,ParentPay Limited,508.40,Revenue
DIRECT LEARNING AND SKILLS,SCHOOLS DELEGATED,07-May-2019,101047,Laurel Landscapes UK Limited,"2,600.00",Revenue
DIRECT LEARNING AND SKILLS,SCHOOLS DELEGATED,07-May-2019,101065,Ricoh UK Limited,647.68,Revenue
DIRECT LEARNING AND SKILLS,SCHOOLS DELEGATED,07-May-2019,101065,EDF Energy Plc,"1,388.39",Revenue
DIRECT LEARNING AND SKILLS,SCHOOLS DELEGATED,07-May-2019,101075,Llandaff Diocesan Board of Finance,623.00,Revenue
DIRECT LEARNING AND SKILLS,SCHOOLS DELEGATED,07-May-2019,101137,I Teach (Wales) Limited,"2,750.00",Revenue
DIRECT LEARNING AND SKILLS,SCHOOLS DELEGATED,07-May-2019,101137,PEAC (UK) Limited,833.97,Revenue
DIRECT LEARNING AND SKILLS,SCHOOLS DELEGATED,07-May-2019,101137,Legacy Leisure Limited,"1,046.25",Revenue
DIRECT LEARNING AND SKILLS,SCHOOLS DELEGATED,07-May-2019,101137,Glen Cleaning Company Limited,"2,068.41",Revenue
DIRECT LEARNING AND SKILLS,SCHOOLS DELEGATED,07-May-2019,101213,Pinnacle Telecom (Wales) Limited,500.00,Revenue
DIRECT LEARNING AND SKILLS,SCHOOLS DELEGATED,07-May-2019,101304,Legacy Leisure Limited,"1,327.50",Revenue
DIRECT LEARNING AND SKILLS,ACHIEVEMENT FOR ALL,07-May-2019,102632,Inspired Learners Limited,640.00,Revenue
DIRECT LEARNING AND SKILLS,ACHIEVEMENT FOR ALL,07-May-2019,102632,Inspired Learners Limited,720.00,Revenue
DIRECT LEARNING AND SKILLS,ACHIEVEMENT FOR ALL,07-May-2019,102636,Merricks Private Transport Contractors Limited,784.00,Revenue
DIRECT LEARNING AND SKILLS,ACHIEVEMENT FOR ALL,07-May-2019,102636,Empowering Learning Limited,830.48,Revenue
DIRECT LEARNING AND SKILLS,ACHIEVEMENT FOR ALL,07-May-2019,102636,Complete Business Solutions Group Limited,958.50,Revenue
DIRECT LEARNING AND SKILLS,ACHIEVEMENT FOR ALL,07-May-2019,102636,Empire Fighting Chance,"1,125.00",Revenue
DIRECT LEARNING AND SKILLS,ACHIEVEMENT FOR ALL,07-May-2019,102636,Merricks Private Transport Contractors Limited,"1,778.00",Revenue
DIRECT MANAGING DIRECTOR AND RESOURCES,GF HUMAN RESOURCES,07-May-2019,140100,Golley Slater Group Limited,"1,862.48",Revenue
DIRECT MANAGING DIRECTOR AND RESOURCES,GF HUMAN RESOURCES,07-May-2019,140122,Data Interchange PLC (DINET),"1,137.00",Revenue
DIRECT LEARNING AND SKILLS,GF CATERING,07-May-2019,150401,WR Bishop (Tonyrefail) Limited,"2,203.11",Revenue
DIRECT LEARNING AND SKILLS,GF CATERING,07-May-2019,150401,Castell Howell Foods Limited,"11,631.05",Revenue
DIRECT LEARNING AND SKILLS,GF CATERING,07-May-2019,150671,The Real Wrap Co. Limited,781.81,Revenue
DIRECT LEARNING AND SKILLS,GF CATERING,07-May-2019,150671,Peter's Food Service Limited,"1,412.31",Revenue
DIRECT LEARNING AND SKILLS,GF CATERING,07-May-2019,150671,Chapple & Jenkins Limited,"1,475.01",Revenue
DIRECT LEARNING AND SKILLS,GF CATERING,07-May-2019,150671,Castell Howell Foods Limited,"6,334.94",Revenue
DIRECT LEARNING AND SKILLS,GF CATERING,07-May-2019,154401,Revival Trading Limited,"11,650.00",Revenue
DIRECT LEARNING AND SKILLS,GF CATERING,07-May-2019,157800,DairyLink UK Limited,769.22,Revenue
DIRECT LEARNING AND SKILLS,GF CATERING,07-May-2019,157800,Castell Howell Foods Limited,"1,307.10",Revenue
DIRECT SOCIAL SERVICES,GF CHILDREN SERVICES,07-May-2019,209151,Computacenter (UK) Limited,789.20,Revenue
DIRECT SOCIAL SERVICES,GF RESOURCES MANAGEMENT & SAFEGUARDING,07-May-2019,212781,Castell Howell Foods Limited,502.74,Revenue
DIRECT SOCIAL SERVICES,GF ADULT SERVICES,07-May-2019,215121,Tunstall Healthcare (UK) Limited,"1,225.00",Revenue
DIRECT SOCIAL SERVICES,GF ADULT SERVICES,07-May-2019,215489,Grangelodge Residential Home Limited t/a Grangelodge,533.36,Revenue
DIRECT SOCIAL SERVICES,GF ADULT SERVICES,07-May-2019,215489,E&G Senior Care Limited t/a Right at Home (Bridgend & Vale of Glamorgan),543.18,Revenue
DIRECT SOCIAL SERVICES,GF ADULT SERVICES,07-May-2019,216179,Grangelodge Residential Home Limited t/a Grangelodge,851.05,Revenue
DIRECT SOCIAL SERVICES,GF ADULT SERVICES,07-May-2019,217909,Merricks Private Transport Contractors Limited,544.00,Revenue
DIRECT SOCIAL SERVICES,GF ADULT SERVICES,07-May-2019,217909,E&G Senior Care Limited t/a Right at Home (Bridgend & Vale of Glamorgan),559.32,Revenue
DIRECT SOCIAL SERVICES,GF ADULT SERVICES,07-May-2019,217909,Everycare (Cardiff) Limited,878.68,Revenue
DIRECT SOCIAL SERVICES,GF ADULT SERVICES,07-May-2019,217909,Everycare (Cardiff) Limited,"1,080.04",Revenue
DIRECT SOCIAL SERVICES,GF ADULT SERVICES,07-May-2019,217909,Everycare (Cardiff) Limited,"1,160.64",Revenue
DIRECT SOCIAL SERVICES,GF ADULT SERVICES,07-May-2019,217909,Ategi Limited,"1,583.64",Revenue
DIRECT SOCIAL SERVICES,GF ADULT SERVICES,07-May-2019,217909,Consensus Support Services Limited t/a Ty Machen,"2,353.68",Revenue
DIRECT SOCIAL SERVICES,GF ADULT SERVICES,07-May-2019,217909,Cartrefi Cymru Co-Operative Limited,"5,187.59",Revenue
DIRECT SOCIAL SERVICES,GF ADULT SERVICES,07-May-2019,217909,Cartrefi Cymru Co-Operative Limited,"5,676.19",Revenue
DIRECT SOCIAL SERVICES,GF ADULT SERVICES,07-May-2019,217909,Cartrefi Cymru Co-Operative Limited,"5,731.50",Revenue
DIRECT SOCIAL SERVICES,GF ADULT SERVICES,07-May-2019,217909,Cartrefi Cymru Co-Operative Limited,"7,809.35",Revenue
DIRECT SOCIAL SERVICES,GF ADULT SERVICES,07-May-2019,217909,Cartrefi Cymru Co-Operative Limited,"9,524.13",Revenue
DIRECT SOCIAL SERVICES,GF ADULT SERVICES,07-May-2019,218310,Celtic Community Services Limited,708.75,Revenue
DIRECT SOCIAL SERVICES,GF ADULT SERVICES,07-May-2019,218310,Celtic Community Services Limited,799.82,Revenue
DIRECT SOCIAL SERVICES,GF CHILDREN SERVICES,07-May-2019,260050,E4Law Limited t/a Lextox,929.00,Revenue
DIRECT SOCIAL SERVICES,GF CHILDREN SERVICES,07-May-2019,260140,PayPoint Payment Services Limited t/a CSGA Glamorgan,"1,079.80",Revenue
DIRECT ENVIRONMENT AND HOUSING,HOUSING - HRA,07-May-2019,303910,Woodland Electrical Barry Limited,"1,201.95",Revenue
DIRECT ENVIRONMENT AND HOUSING,HOUSING - MRA,07-May-2019,304103,AKW Medi-Care Limited,630.80,Revenue
DIRECT ENVIRONMENT AND HOUSING,GARAGE,07-May-2019,319010,Fleetwheel Limited,642.79,Revenue
DIRECT ENVIRONMENT AND HOUSING,GARAGE,07-May-2019,319010,Safewear Cardiff Limited,"1,044.00",Revenue
DIRECT ENVIRONMENT AND HOUSING,GARAGE,07-May-2019,319010,Fleetwheel Limited,"1,136.35",Revenue
DIRECT ENVIRONMENT AND HOUSING,GARAGE,07-May-2019,319010,Euro Commercials (South Wales) Limited,"7,250.35",Revenue
DIRECT ENVIRONMENT AND HOUSING,GF ENV AND VISIBLE,07-May-2019,325347,Calibre Contracting Limited,"1,437.18",Revenue
DIRECT ENVIRONMENT AND HOUSING,GF PARKS AND GROUNDS,07-May-2019,333550,Fabmec Limited,"1,410.00",Revenue
DIRECT ENVIRONMENT AND HOUSING,GF PARKS AND GROUNDS,07-May-2019,333550,British Soil (Western) Limited,"2,400.75",Revenue
NEW REGENERATION,REGENERATION & PLANNING,07-May-2019,355716,David Evans Agricultural Limited,643.06,Revenue
NEW REGENERATION,REGENERATION & PLANNING,07-May-2019,359750,The Chelsea Magazine Company Limited,700.00,Revenue
DIRECT ENVIRONMENT AND HOUSING,VISIBLE SERVICES,07-May-2019,365787,New Adventure Travel Limited,"19,170.00",Revenue
DIRECT ENVIRONMENT AND HOUSING,VISIBLE SERVICES,07-May-2019,365789,Easyway Minicoach Hire Limited,"2,906.00",Revenue
DIRECT ENVIRONMENT AND HOUSING,VISIBLE SERVICES,07-May-2019,365789,Watts Coaches Limited,"5,395.68",Revenue
DIRECT ENVIRONMENT AND HOUSING,VISIBLE SERVICES,07-May-2019,365790,Easyway Minicoach Hire Limited,"4,356.00",Revenue
DIRECT ENVIRONMENT AND HOUSING,VISIBLE SERVICES,07-May-2019,365790,Watts Coaches Limited,"34,508.40",Revenue
DIRECT ENVIRONMENT AND HOUSING,VISIBLE SERVICES,07-May-2019,365791,New Adventure Travel Limited,"11,670.00",Revenue
DIRECT ENVIRONMENT AND HOUSING,VISIBLE SERVICES,07-May-2019,365791,New Adventure Travel Limited,"21,237.50",Revenue
DIRECT ENVIRONMENT AND HOUSING,VISIBLE SERVICES,07-May-2019,365793,Edwards Coaches Limited,"3,348.00",Revenue
DIRECT ENVIRONMENT AND HOUSING,VISIBLE SERVICES,07-May-2019,365793,Creigiau Travel Limited,"4,176.00",Revenue
DIRECT ENVIRONMENT AND HOUSING,VISIBLE SERVICES,07-May-2019,365794,Watts Coaches Limited,"4,242.32",Revenue
DIRECT ENVIRONMENT AND HOUSING,VISIBLE SERVICES,07-May-2019,365795,Watts Coaches Limited,"3,867.60",Revenue
DIRECT ENVIRONMENT AND HOUSING,VISIBLE SERVICES,07-May-2019,365796,New Adventure Travel Limited,"45,930.00",Revenue
DIRECT MANAGING DIRECTOR AND RESOURCES,GF LEGAL AND DEMOCRATIC,07-May-2019,400050,Golley Slater Group Limited,876.37,Revenue
DIRECT ENVIRONMENT AND HOUSING,REGULATORY SERVICES SHARED SERVICES,07-May-2019,403102,Thomson Reuters (Professional) Limited T/A Sweet and Maxwell,692.00,Revenue
DIRECT ENVIRONMENT AND HOUSING,REGULATORY SERVICES SHARED SERVICES,07-May-2019,403217,Golley Slater Group Limited,773.49,Revenue
DIRECT ENVIRONMENT AND HOUSING,REGULATORY SERVICES SHARED SERVICES,07-May-2019,403219,Golley Slater Group Limited,"1,396.98",Revenue
DIRECT ENVIRONMENT AND HOUSING,GF HOUSING SERVICES,07-May-2019,405001,Masons Moving Group Limited,661.09,Revenue
DIRECT ENVIRONMENT AND HOUSING,HRA MANAGEMENT,07-May-2019,407102,Housing Partners Limited,"3,000.00",Revenue
DIRECT ENVIRONMENT AND HOUSING,HRA RECONCILIATIONS,07-May-2019,407501,Pamela Carter,500.00,Revenue
DIRECT MANAGING DIRECTOR AND RESOURCES,GF RESOURCES,07-May-2019,421230,Computacenter (UK) Limited,"1,138.18",Revenue
DIRECT CAPITAL VISIBLE AND HOUSING SERVICES,CAPITAL HRA,07-May-2019,842067,Fusion Electrical & Building Services Engineering Limited,"1,386.00",Capital
DIRECT CAPITAL VISIBLE AND HOUSING SERVICES,CAPITAL HRA,07-May-2019,842067,Fusion Electrical & Building Services Engineering Limited,"1,386.00",Capital
DIRECT CAPITAL VISIBLE AND HOUSING SERVICES,CAPITAL HRA,07-May-2019,842067,Fusion Electrical & Building Services Engineering Limited,"1,386.00",Capital
DIRECT CAPITAL VISIBLE AND HOUSING SERVICES,CAPITAL HRA,07-May-2019,842067,Fusion Electrical & Building Services Engineering Limited,"1,504.80",Capital
DIRECT CAPITAL VISIBLE AND HOUSING SERVICES,CAPITAL HRA,07-May-2019,842067,Fusion Electrical & Building Services Engineering Limited,"1,524.60",Capital
DIRECT CAPITAL VISIBLE AND HOUSING SERVICES,CAPITAL HRA,07-May-2019,842067,Fusion Electrical & Building Services Engineering Limited,"1,524.60",Capital
DIRECT CAPITAL VISIBLE AND HOUSING SERVICES,CAPITAL HRA,07-May-2019,842067,Fusion Electrical & Building Services Engineering Limited,"1,851.30",Capital
DIRECT CAPITAL VISIBLE AND HOUSING SERVICES,CAPITAL HRA,07-May-2019,842067,Fusion Electrical & Building Services Engineering Limited,"1,851.30",Capital
DIRECT CAPITAL VISIBLE AND HOUSING SERVICES,CAPITAL HRA,07-May-2019,842149,Savills (UK) Limited,"4,560.70",Capital
DIRECT MANAGING DIRECTOR AND RESOURCES,GF RESOURCES,07-May-2019,420212,Nicholas Pointon,"1,750.00",Revenue
DIRECT MANAGING DIRECTOR AND RESOURCES,GF RESOURCES,07-May-2019,420212,Owain James,"4,250.00",Revenue
DIRECT LEARNING AND SKILLS,ACHIEVEMENT FOR ALL,07-May-2019,102632,Apollo Teaching Services Limited,816.00,Revenue
DIRECT LEARNING AND SKILLS,ACHIEVEMENT FOR ALL,07-May-2019,102636,New Directions (Education) Limited,506.80,Revenue
DIRECT SOCIAL SERVICES,GF ADULT SERVICES,07-May-2019,215489,April Complete Care Solutions Limited,519.08,Revenue
DIRECT SOCIAL SERVICES,GF ADULT SERVICES,07-May-2019,215489,April Complete Care Solutions Limited,519.08,Revenue
DIRECT SOCIAL SERVICES,GF ADULT SERVICES,07-May-2019,215489,April Complete Care Solutions Limited,649.55,Revenue
DIRECT SOCIAL SERVICES,GF ADULT SERVICES,07-May-2019,215489,April Complete Care Solutions Limited,649.55,Revenue
DIRECT SOCIAL SERVICES,GF ADULT SERVICES,07-May-2019,216179,April Complete Care Solutions Limited,"1,014.45",Revenue
DIRECT SOCIAL SERVICES,GF ADULT SERVICES,07-May-2019,216179,April Complete Care Solutions Limited,"1,024.40",Revenue
DIRECT SOCIAL SERVICES,GF ADULT SERVICES,07-May-2019,217909,April Complete Care Solutions Limited,774.40,Revenue
DIRECT SOCIAL SERVICES,GF ADULT SERVICES,07-May-2019,217909,April Complete Care Solutions Limited,912.36,Revenue
DIRECT ENVIRONMENT AND HOUSING,PUBLIC BUILDINGS,07-May-2019,303931,Building Recruitment Company Limited,549.00,Revenue
DIRECT ENVIRONMENT AND HOUSING,HRA MANAGEMENT,07-May-2019,407106,Building Recruitment Company Limited,733.84,Revenue
DIRECT SOCIAL SERVICES,GF ADULT SERVICES,07-May-2019,215489,Llangoedmor Properties Limited T/A Parkside Residential Home,500.63,Revenue
DIRECT SOCIAL SERVICES,GF ADULT SERVICES,07-May-2019,215489,Oakville Care Limited t/a Romilly Nursing Home,500.96,Revenue
DIRECT SOCIAL SERVICES,GF ADULT SERVICES,07-May-2019,215489,Middlepatch Limited T/A College Fields Nursing Home,501.38,Revenue
DIRECT SOCIAL SERVICES,GF ADULT SERVICES,07-May-2019,215489,Middlepatch Limited T/A College Fields Nursing Home,504.30,Revenue
DIRECT SOCIAL SERVICES,GF ADULT SERVICES,07-May-2019,215489,Bellavista Nursing Homes (Wales) Limited t/a Bellavista Care Home,507.05,Revenue
DIRECT SOCIAL SERVICES,GF ADULT SERVICES,07-May-2019,215489,Springbank Care Home Limited T/A Springbank Nursing Home,508.51,Revenue
DIRECT SOCIAL SERVICES,GF ADULT SERVICES,07-May-2019,215489,Springbank Care Home Limited T/A Springbank Nursing Home,514.48,Revenue
DIRECT SOCIAL SERVICES,GF ADULT SERVICES,07-May-2019,215489,Waverley Care Centre Limited,516.48,Revenue
DIRECT SOCIAL SERVICES,GF ADULT SERVICES,07-May-2019,215489,Hebron Hall Limited,516.90,Revenue
DIRECT SOCIAL SERVICES,GF ADULT SERVICES,07-May-2019,215489,Waverley Care Centre Limited,518.25,Revenue
DIRECT SOCIAL SERVICES,GF ADULT SERVICES,07-May-2019,215489,Middlepatch Limited T/A College Fields Nursing Home,518.74,Revenue
DIRECT SOCIAL SERVICES,GF ADULT SERVICES,07-May-2019,215489,The Manor House St Hilary Limited T/A Milsom House,522.42,Revenue
DIRECT SOCIAL SERVICES,GF ADULT SERVICES,07-May-2019,215489,Bellavista Care (Cardiff) Limited T/A Bellavista Nursing Home Cardiff,524.19,Revenue
DIRECT SOCIAL SERVICES,GF ADULT SERVICES,07-May-2019,215489,Springbank Care Home Limited T/A Springbank Nursing Home,526.43,Revenue
DIRECT SOCIAL SERVICES,GF ADULT SERVICES,07-May-2019,215489,MHA Care Group t/a Morel Court,527.59,Revenue
DIRECT SOCIAL SERVICES,GF ADULT SERVICES,07-May-2019,215489,Waverley Care Centre Limited,528.69,Revenue
DIRECT SOCIAL SERVICES,GF ADULT SERVICES,07-May-2019,215489,Northcote Developments Limited,531.92,Revenue
DIRECT SOCIAL SERVICES,GF ADULT SERVICES,07-May-2019,215489,Baltimore Care Limited,532.65,Revenue
DIRECT SOCIAL SERVICES,GF ADULT SERVICES,07-May-2019,215489,Broadway Care Centre Limited T/A Hazelhurst Nursing Home,532.65,Revenue
DIRECT SOCIAL SERVICES,GF ADULT SERVICES,07-May-2019,215489,Harrison Care Enterprises Barry Limited t/a Island View,532.65,Revenue
DIRECT SOCIAL SERVICES,GF ADULT SERVICES,07-May-2019,215489,Llangoedmor Properties Limited T/A Parkside Residential Home,532.65,Revenue
DIRECT SOCIAL SERVICES,GF ADULT SERVICES,07-May-2019,215489,Baltimore Care Limited,533.25,Revenue
DIRECT SOCIAL SERVICES,GF ADULT SERVICES,07-May-2019,215489,Hafod Housing Association Limited T/A Brocastle Manor (Care Home),533.68,Revenue
DIRECT SOCIAL SERVICES,GF ADULT SERVICES,07-May-2019,215489,The Manor House St Hilary Limited T/A Milsom House,534.31,Revenue
DIRECT SOCIAL SERVICES,GF ADULT SERVICES,07-May-2019,215489,Northcote Developments Limited,534.54,Revenue
DIRECT SOCIAL SERVICES,GF ADULT SERVICES,07-May-2019,215489,Middlepatch Limited T/A College Fields Nursing Home,535.80,Revenue
DIRECT SOCIAL SERVICES,GF ADULT SERVICES,07-May-2019,215489,Waverley Care Centre Limited,535.83,Revenue
DIRECT SOCIAL SERVICES,GF ADULT SERVICES,07-May-2019,215489,Northcote Developments Limited,537.07,Revenue
DIRECT SOCIAL SERVICES,GF ADULT SERVICES,07-May-2019,215489,Middlepatch Limited T/A College Fields Nursing Home,538.39,Revenue
DIRECT SOCIAL SERVICES,GF ADULT SERVICES,07-May-2019,215489,Baltimore Care Limited,542.65,Revenue
DIRECT SOCIAL SERVICES,GF ADULT SERVICES,07-May-2019,215489,Northcote Developments Limited,544.80,Revenue
DIRECT SOCIAL SERVICES,GF ADULT SERVICES,07-May-2019,215489,MHA Care Group t/a Morel Court,547.47,Revenue
DIRECT SOCIAL SERVICES,GF ADULT SERVICES,07-May-2019,215489,Springbank Care Home Limited T/A Springbank Nursing Home,557.39,Revenue
DIRECT SOCIAL SERVICES,GF ADULT SERVICES,07-May-2019,215489,Waverley Care Centre Limited,557.84,Revenue
DIRECT SOCIAL SERVICES,GF ADULT SERVICES,07-May-2019,215489,Waverley Care Centre Limited,559.25,Revenue
DIRECT SOCIAL SERVICES,GF ADULT SERVICES,07-May-2019,215489,Middlepatch Limited T/A College Fields Nursing Home,560.41,Revenue
DIRECT SOCIAL SERVICES,GF ADULT SERVICES,07-May-2019,215489,Waverley Care Centre Limited,562.32,Revenue
DIRECT SOCIAL SERVICES,GF ADULT SERVICES,07-May-2019,215489,Middlepatch Limited T/A College Fields Nursing Home,566.94,Revenue
DIRECT SOCIAL SERVICES,GF ADULT SERVICES,07-May-2019,215489,Waverley Care Centre Limited,572.64,Revenue
DIRECT SOCIAL SERVICES,GF ADULT SERVICES,07-May-2019,215489,Llangoedmor Properties Limited T/A Parkside Residential Home,572.90,Revenue
DIRECT SOCIAL SERVICES,GF ADULT SERVICES,07-May-2019,215489,Acorn Luxury Care Limited,579.82,Revenue
DIRECT SOCIAL SERVICES,GF ADULT SERVICES,07-May-2019,215489,Beatrice Webb Residential Home,587.00,Revenue
DIRECT SOCIAL SERVICES,GF ADULT SERVICES,07-May-2019,215489,Middlepatch Limited T/A College Fields Nursing Home,605.60,Revenue
DIRECT SOCIAL SERVICES,GF ADULT SERVICES,07-May-2019,215489,Waverley Care Centre Limited,606.00,Revenue
DIRECT SOCIAL SERVICES,GF ADULT SERVICES,07-May-2019,215489,Waverley Care Centre Limited,607.00,Revenue
DIRECT SOCIAL SERVICES,GF ADULT SERVICES,07-May-2019,215489,Springbank Care Home Limited T/A Springbank Nursing Home,612.66,Revenue
DIRECT SOCIAL SERVICES,GF ADULT SERVICES,07-May-2019,215489,Middlepatch Limited T/A College Fields Nursing Home,614.41,Revenue
DIRECT SOCIAL SERVICES,GF ADULT SERVICES,07-May-2019,215489,Middlepatch Limited T/A College Fields Nursing Home,616.01,Revenue
DIRECT SOCIAL SERVICES,GF ADULT SERVICES,07-May-2019,215489,Middlepatch Limited T/A College Fields Nursing Home,619.13,Revenue
DIRECT SOCIAL SERVICES,GF ADULT SERVICES,07-May-2019,215489,Middlepatch Limited T/A College Fields Nursing Home,622.29,Revenue
DIRECT SOCIAL SERVICES,GF ADULT SERVICES,07-May-2019,215489,MHA Care Group t/a Morel Court,622.61,Revenue
DIRECT SOCIAL SERVICES,GF ADULT SERVICES,07-May-2019,215489,Waverley Care Centre Limited,623.95,Revenue
DIRECT SOCIAL SERVICES,GF ADULT SERVICES,07-May-2019,215489,Middlepatch Limited T/A College Fields Nursing Home,624.19,Revenue
DIRECT SOCIAL SERVICES,GF ADULT SERVICES,07-May-2019,215489,Middlepatch Limited T/A College Fields Nursing Home,624.19,Revenue
DIRECT SOCIAL SERVICES,GF ADULT SERVICES,07-May-2019,215489,Middlepatch Limited T/A College Fields Nursing Home,624.19,Revenue
DIRECT SOCIAL SERVICES,GF ADULT SERVICES,07-May-2019,215489,Middlepatch Limited T/A College Fields Nursing Home,624.19,Revenue
DIRECT SOCIAL SERVICES,GF ADULT SERVICES,07-May-2019,215489,Middlepatch Limited T/A College Fields Nursing Home,624.19,Revenue
DIRECT SOCIAL SERVICES,GF ADULT SERVICES,07-May-2019,215489,Middlepatch Limited T/A College Fields Nursing Home,625.79,Revenue
DIRECT SOCIAL SERVICES,GF ADULT SERVICES,07-May-2019,215489,Middlepatch Limited T/A College Fields Nursing Home,634.20,Revenue
DIRECT SOCIAL SERVICES,GF ADULT SERVICES,07-May-2019,215489,Springbank Care Home Limited T/A Springbank Nursing Home,648.26,Revenue
DIRECT SOCIAL SERVICES,GF ADULT SERVICES,07-May-2019,215489,Springbank Care Home Limited T/A Springbank Nursing Home,684.15,Revenue
DIRECT SOCIAL SERVICES,GF ADULT SERVICES,07-May-2019,215489,Glamorgan Care Limited t/a Danygraig House,690.00,Revenue
DIRECT SOCIAL SERVICES,GF ADULT SERVICES,07-May-2019,215489,Waverley Care Centre Limited,695.59,Revenue
DIRECT SOCIAL SERVICES,GF ADULT SERVICES,07-May-2019,215489,Bellavista Care (Cardiff) Limited T/A Bellavista Nursing Home Cardiff,710.33,Revenue
DIRECT SOCIAL SERVICES,GF ADULT SERVICES,07-May-2019,215489,Waverley Care Centre Limited,736.79,Revenue
DIRECT SOCIAL SERVICES,GF ADULT SERVICES,07-May-2019,215489,Waverley Care Centre Limited,736.79,Revenue
DIRECT SOCIAL SERVICES,GF ADULT SERVICES,07-May-2019,215489,Forge Care Homes Limited t/a The Forge Care Centre,925.00,Revenue
DIRECT SOCIAL SERVICES,GF ADULT SERVICES,07-May-2019,215489,Waverley Care Centre Limited,"2,452.56",Revenue
DIRECT SOCIAL SERVICES,GF ADULT SERVICES,07-May-2019,216179,Springbank Care Home Limited T/A Springbank Nursing Home,507.05,Revenue
DIRECT SOCIAL SERVICES,GF ADULT SERVICES,07-May-2019,216179,Crusader Medical Care Limited T/A St Saviours Nursing Home,561.05,Revenue
DIRECT SOCIAL SERVICES,GF ADULT SERVICES,07-May-2019,216179,Bellavista Nursing Homes (Wales) Limited t/a Bellavista Care Home,571.45,Revenue
DIRECT SOCIAL SERVICES,GF ADULT SERVICES,07-May-2019,216179,Springbank Care Home Limited T/A Springbank Nursing Home,793.10,Revenue
DIRECT SOCIAL SERVICES,GF ADULT SERVICES,07-May-2019,216179,Leonard Cheshire Disability,"1,248.73",Revenue
DIRECT SOCIAL SERVICES,GF ADULT SERVICES,07-May-2019,216179,Llysywaun Limited t/a Bayview Lodge Nursing Home,"1,340.33",Revenue
DIRECT SOCIAL SERVICES,GF ADULT SERVICES,07-May-2019,216179,Voyage 1 Limited t/a Falcons Rest & Poachers Cottage,"1,780.75",Revenue
DIRECT SOCIAL SERVICES,GF ADULT SERVICES,07-May-2019,216179,Care 4 U (Neath) Limited,"1,806.90",Revenue
DIRECT SOCIAL SERVICES,GF ADULT SERVICES,07-May-2019,216179,Amethyst Healthcare Limited t/a Hillstone House,"1,874.12",Revenue
DIRECT SOCIAL SERVICES,GF ADULT SERVICES,07-May-2019,216179,Valebrook Care Homes Limited,"1,909.55",Revenue
DIRECT SOCIAL SERVICES,GF ADULT SERVICES,07-May-2019,216179,Voyage 1 Limited t/a Brook Lodge,"2,606.71",Revenue
DIRECT SOCIAL SERVICES,GF ADULT SERVICES,07-May-2019,216179,Llysywaun Limited t/a Bayview Lodge Nursing Home,"9,765.26",Revenue
DIRECT SOCIAL SERVICES,GF ADULT SERVICES,07-May-2019,217909,Broadway Care Centre Limited T/A Hazelhurst Nursing Home,523.15,Revenue
DIRECT SOCIAL SERVICES,GF ADULT SERVICES,07-May-2019,217909,Broadway Care Centre Limited T/A Hazelhurst Nursing Home,534.51,Revenue
DIRECT SOCIAL SERVICES,GF ADULT SERVICES,07-May-2019,217909,Ocean Community Services Limited t/a Westminster Court Care Home,542.38,Revenue
DIRECT SOCIAL SERVICES,GF ADULT SERVICES,07-May-2019,217909,Glasallt Fawr Camphill Centre,"1,046.12",Revenue
DIRECT SOCIAL SERVICES,GF ADULT SERVICES,07-May-2019,217909,The Cedars Care Services Limited T/A Ashgrove Care Home,"1,056.04",Revenue
DIRECT SOCIAL SERVICES,GF ADULT SERVICES,07-May-2019,217909,The Cedars Care Services Limited T/A Oaklands,"1,092.99",Revenue
DIRECT SOCIAL SERVICES,GF ADULT SERVICES,07-May-2019,217909,Vale Phoenix Limited,"1,145.13",Revenue
DIRECT SOCIAL SERVICES,GF ADULT SERVICES,07-May-2019,217909,Vale Phoenix Limited,"1,184.41",Revenue
DIRECT SOCIAL SERVICES,GF ADULT SERVICES,07-May-2019,217909,Glasallt Fawr Camphill Centre,"1,252.24",Revenue
DIRECT SOCIAL SERVICES,GF ADULT SERVICES,07-May-2019,217909,Heatherleigh Care Limited t/a 106 Splott Road,"1,296.52",Revenue
DIRECT SOCIAL SERVICES,GF ADULT SERVICES,07-May-2019,217909,The Cedars Care Services Limited t/a The Cedars,"1,446.35",Revenue
DIRECT SOCIAL SERVICES,GF ADULT SERVICES,07-May-2019,217909,Valebrook Care Homes Limited,"1,492.18",Revenue
DIRECT SOCIAL SERVICES,GF ADULT SERVICES,07-May-2019,217909,Valebrook Care Homes Limited,"1,522.85",Revenue
DIRECT SOCIAL SERVICES,GF ADULT SERVICES,07-May-2019,217909,Amethyst Healthcare Limited t/a Hillstone House,"1,548.83",Revenue
DIRECT SOCIAL SERVICES,GF ADULT SERVICES,07-May-2019,217909,Heatherleigh Care Limited t/a 106 Splott Road,"1,656.71",Revenue
DIRECT SOCIAL SERVICES,GF ADULT SERVICES,07-May-2019,217909,The Cedars Care Services Limited t/a The Cedars,"1,669.12",Revenue
DIRECT SOCIAL SERVICES,GF ADULT SERVICES,07-May-2019,217909,Valebrook Care Homes Limited,"1,750.87",Revenue
DIRECT SOCIAL SERVICES,GF ADULT SERVICES,07-May-2019,217909,Amethyst Healthcare Limited t/a Hillstone House,"1,779.76",Revenue
DIRECT SOCIAL SERVICES,GF ADULT SERVICES,07-May-2019,217909,Accomplish Group Limited t/a Cedar House,"1,812.93",Revenue
DIRECT SOCIAL SERVICES,GF ADULT SERVICES,07-May-2019,217909,Llysywaun Limited t/a Bayview Lodge Nursing Home,"1,821.45",Revenue
DIRECT SOCIAL SERVICES,GF ADULT SERVICES,07-May-2019,217909,Valebrook Care Homes Limited,"1,861.19",Revenue
DIRECT SOCIAL SERVICES,GF ADULT SERVICES,07-May-2019,217909,Valebrook Care Homes Limited,"1,910.35",Revenue
DIRECT SOCIAL SERVICES,GF ADULT SERVICES,07-May-2019,217909,The Cedars Care Services Limited t/a Sycamore House,"1,915.42",Revenue
DIRECT SOCIAL SERVICES,GF ADULT SERVICES,07-May-2019,217909,Accomplish Group Limited,"1,928.22",Revenue
DIRECT SOCIAL SERVICES,GF ADULT SERVICES,07-May-2019,217909,Valebrook Care Homes Limited,"2,116.17",Revenue
DIRECT SOCIAL SERVICES,GF ADULT SERVICES,07-May-2019,217909,The Cedars Care Services Limited T/A Ashgrove Care Home,"2,235.31",Revenue
DIRECT SOCIAL SERVICES,GF ADULT SERVICES,07-May-2019,217909,Accomplish Group Limited,"2,271.33",Revenue
DIRECT SOCIAL SERVICES,GF ADULT SERVICES,07-May-2019,218321,Isman & Kinze Essa T/A Haven House,507.25,Revenue
DIRECT SOCIAL SERVICES,GF ADULT SERVICES,07-May-2019,218321,Liam George t/a Claremont Care Home,523.05,Revenue
DIRECT SOCIAL SERVICES,GF ADULT SERVICES,07-May-2019,218321,Sanda Mitchel & Ptn t/a Canola House Residential Home,523.05,Revenue
DIRECT SOCIAL SERVICES,GF ADULT SERVICES,07-May-2019,218321,Harrison Care Enterprises Barry Limited t/a Island View,547.40,Revenue
DIRECT SOCIAL SERVICES,GF ADULT SERVICES,07-May-2019,218321,Adriana Limited T/A The Priory Nursing Home,608.00,Revenue
DIRECT SOCIAL SERVICES,GF ADULT SERVICES,07-May-2019,218321,J and P Residential Homes Limited T/A Monkstone House,622.00,Revenue
DIRECT SOCIAL SERVICES,GF ADULT SERVICES,07-May-2019,218321,Sanda Mitchel & Ptn t/a Canola House Residential Home,622.00,Revenue
DIRECT SOCIAL SERVICES,GF ADULT SERVICES,07-May-2019,218321,Hafod Care Association Limited,645.50,Revenue
DIRECT SOCIAL SERVICES,GF ADULT SERVICES,07-May-2019,218321,Waverley Care Centre Limited,783.12,Revenue
DIRECT SOCIAL SERVICES,GF ADULT SERVICES,07-May-2019,218321,Waverley Care Centre Limited,814.04,Revenue
DIRECT SOCIAL SERVICES,GF ADULT SERVICES,07-May-2019,218419,Harrison Care Enterprises Barry Limited t/a Island View,501.06,Revenue
DIRECT SOCIAL SERVICES,GF ADULT SERVICES,07-May-2019,218419,Northcote Developments Limited,506.00,Revenue
DIRECT SOCIAL SERVICES,GF ADULT SERVICES,07-May-2019,218419,Northcote Developments Limited,508.88,Revenue
DIRECT SOCIAL SERVICES,GF ADULT SERVICES,07-May-2019,218419,Hebron Hall Limited,514.21,Revenue
DIRECT SOCIAL SERVICES,GF ADULT SERVICES,07-May-2019,218419,E & E Homes Limited T/A Cliffhaven Residential Home,515.71,Revenue
DIRECT SOCIAL SERVICES,GF ADULT SERVICES,07-May-2019,218419,Harrison Care Enterprises Barry Limited t/a Island View,516.07,Revenue
DIRECT SOCIAL SERVICES,GF ADULT SERVICES,07-May-2019,218419,Hebron Hall Limited,519.51,Revenue
DIRECT SOCIAL SERVICES,GF ADULT SERVICES,07-May-2019,218419,Baltimore Care Limited,520.13,Revenue
DIRECT SOCIAL SERVICES,GF ADULT SERVICES,07-May-2019,218419,Baltimore Care Limited,522.59,Revenue
DIRECT SOCIAL SERVICES,GF ADULT SERVICES,07-May-2019,218419,Bellavista Care (Cardiff) Limited T/A Bellavista Nursing Home Cardiff,524.57,Revenue
DIRECT SOCIAL SERVICES,GF ADULT SERVICES,07-May-2019,218419,June Zehetmayr t/a Tower Hill Residential Home,524.89,Revenue
DIRECT SOCIAL SERVICES,GF ADULT SERVICES,07-May-2019,218419,Harrison Care Enterprises Barry Limited t/a Island View,525.72,Revenue
DIRECT SOCIAL SERVICES,GF ADULT SERVICES,07-May-2019,218419,Llangoedmor Properties Limited T/A Parkside Residential Home,528.68,Revenue
DIRECT SOCIAL SERVICES,GF ADULT SERVICES,07-May-2019,218419,Baltimore Care Limited,529.93,Revenue
DIRECT SOCIAL SERVICES,GF ADULT SERVICES,07-May-2019,218419,June Zehetmayr t/a Tower Hill Residential Home,530.75,Revenue
DIRECT SOCIAL SERVICES,GF ADULT SERVICES,07-May-2019,218419,Harrison Care Enterprises Barry Limited t/a Island View,531.15,Revenue
DIRECT SOCIAL SERVICES,GF ADULT SERVICES,07-May-2019,218419,Harrison Care Enterprises Barry Limited t/a Island View,532.49,Revenue
DIRECT SOCIAL SERVICES,GF ADULT SERVICES,07-May-2019,218419,Harrison Care Enterprises Barry Limited t/a Island View,532.65,Revenue
DIRECT SOCIAL SERVICES,GF ADULT SERVICES,07-May-2019,218419,Harrison Care Enterprises Barry Limited t/a Island View,532.65,Revenue
DIRECT SOCIAL SERVICES,GF ADULT SERVICES,07-May-2019,218419,Harrison Care Enterprises Barry Limited t/a Island View,532.65,Revenue
DIRECT SOCIAL SERVICES,GF ADULT SERVICES,07-May-2019,218419,Harrison Care Enterprises Barry Limited t/a Island View,532.65,Revenue
DIRECT SOCIAL SERVICES,GF ADULT SERVICES,07-May-2019,218419,June Zehetmayr t/a Tower Hill Residential Home,532.65,Revenue
DIRECT SOCIAL SERVICES,GF ADULT SERVICES,07-May-2019,218419,Waverley Care Centre Limited,532.65,Revenue
DIRECT SOCIAL SERVICES,GF ADULT SERVICES,07-May-2019,218419,Hebron Hall Limited,534.65,Revenue
DIRECT SOCIAL SERVICES,GF ADULT SERVICES,07-May-2019,218419,June Zehetmayr t/a Tower Hill Residential Home,535.57,Revenue
DIRECT SOCIAL SERVICES,GF ADULT SERVICES,07-May-2019,218419,Baltimore Care Limited,540.65,Revenue
DIRECT SOCIAL SERVICES,GF ADULT SERVICES,07-May-2019,218419,Baltimore Care Limited,543.65,Revenue
DIRECT SOCIAL SERVICES,GF ADULT SERVICES,07-May-2019,218419,Harrison Care Enterprises Barry Limited t/a Island View,561.00,Revenue
DIRECT SOCIAL SERVICES,GF ADULT SERVICES,07-May-2019,218419,Middlepatch Limited T/A College Fields Nursing Home,581.34,Revenue
DIRECT SOCIAL SERVICES,GF ADULT SERVICES,07-May-2019,218419,Shirwan Al-Mufti & Ptn t/a Pontcanna House,620.00,Revenue
DIRECT SOCIAL SERVICES,GF ADULT SERVICES,07-May-2019,218419,Hafod Housing Association Limited T/A Brocastle Manor (Care Home),652.00,Revenue
DIRECT SOCIAL SERVICES,GF ADULT SERVICES,07-May-2019,218419,Hafod Housing Association Limited T/A Brocastle Manor (Care Home),660.00,Revenue
DIRECT SOCIAL SERVICES,GF ADULT SERVICES,07-May-2019,218419,David Austin t/a Silverdale,660.28,Revenue
DIRECT SOCIAL SERVICES,GF ADULT SERVICES,07-May-2019,218419,E & E Homes Limited T/A Cliffhaven Residential Home,670.40,Revenue
DIRECT SOCIAL SERVICES,GF ADULT SERVICES,07-May-2019,218419,E & E Homes Limited T/A Cliffhaven Residential Home,670.40,Revenue
DIRECT SOCIAL SERVICES,GF ADULT SERVICES,07-May-2019,218419,Harrison Care Enterprises Barry Limited t/a Island View,670.40,Revenue
DIRECT SOCIAL SERVICES,GF ADULT SERVICES,07-May-2019,218419,June Zehetmayr t/a Tower Hill Residential Home,670.40,Revenue
DIRECT SOCIAL SERVICES,GF ADULT SERVICES,07-May-2019,218419,Llangoedmor Properties Limited T/A Parkside Residential Home,670.40,Revenue
DIRECT SOCIAL SERVICES,GF ADULT SERVICES,07-May-2019,218419,Waverley Care Centre Limited,670.40,Revenue
DIRECT SOCIAL SERVICES,GF ADULT SERVICES,07-May-2019,218419,Bellavista Care (Cardiff) Limited T/A Bellavista Nursing Home Cardiff,670.66,Revenue
DIRECT SOCIAL SERVICES,GF ADULT SERVICES,07-May-2019,218419,Hafod Care Association Limited t/a Woodcroft Care Home,670.88,Revenue
DIRECT SOCIAL SERVICES,GF ADULT SERVICES,07-May-2019,218419,Hebron Hall Limited,680.83,Revenue
DIRECT SOCIAL SERVICES,GF ADULT SERVICES,07-May-2019,218419,Harrison Care Enterprises Barry Limited t/a Island View,682.50,Revenue
DIRECT SOCIAL SERVICES,GF ADULT SERVICES,07-May-2019,218419,Forge Care Homes Limited t/a The Forge Care Centre,736.26,Revenue
DIRECT SOCIAL SERVICES,GF ADULT SERVICES,07-May-2019,218419,Waverley Care Centre Limited,736.79,Revenue
DIRECT SOCIAL SERVICES,GF ADULT SERVICES,07-May-2019,218419,Middlepatch Limited T/A College Fields Nursing Home,780.52,Revenue
DIRECT SOCIAL SERVICES,GF ADULT SERVICES,07-May-2019,218419,Hallmark Care Homes (Bute Town) Limited t/a Shire Hall Care Home,784.67,Revenue
DIRECT SOCIAL SERVICES,GF ADULT SERVICES,07-May-2019,218419,Waverley Care Centre Limited,814.04,Revenue
DIRECT SOCIAL SERVICES,GF ADULT SERVICES,07-May-2019,218419,Capital Care Homes Limited t/a Danesbrook House,847.00,Revenue
DIRECT SOCIAL SERVICES,GF ADULT SERVICES,07-May-2019,218419,C E Healthcare Limited t/a Roma House,914.41,Revenue
DIRECT SOCIAL SERVICES,GF ADULT SERVICES,07-May-2019,218419,Forge Care Homes Limited t/a The Forge Care Centre,925.00,Revenue
DIRECT SOCIAL SERVICES,GF ADULT SERVICES,07-May-2019,218419,Hallmark Care Homes (Bute Town) Limited t/a Shire Hall Care Home,"1,215.25",Revenue
DIRECT LEARNING AND SKILLS,ACHIEVEMENT FOR ALL,07-May-2019,102632,Helen Glynn t/a Cardiff & Vale Tutors,"1,339.50",Revenue
DIRECT LEARNING AND SKILLS,STRATEGY COMMUNITY LEARNING & RESOURCES,07-May-2019,120059,Mark Adams t/a Cratemate,833.70,Revenue
DIRECT ENVIRONMENT AND HOUSING,GARAGE,07-May-2019,319010,Ceri Williams t/a Mobile Tyre Services,"2,222.58",Revenue
DIRECT LEARNING AND SKILLS,STRATEGY COMMUNITY LEARNING & RESOURCES,08-May-2019,100773,Burner Efficiency Services Limited,"9,450.00",Revenue
DIRECT LEARNING AND SKILLS,SCHOOLS DELEGATED,08-May-2019,101031,I Teach (Wales) Limited,"2,750.00",Revenue
DIRECT LEARNING AND SKILLS,SCHOOLS DELEGATED,08-May-2019,101031,Superstars School Services Limited,648.30,Revenue
DIRECT LEARNING AND SKILLS,SCHOOLS DELEGATED,08-May-2019,101055,Corona Energy Retail 4 Limited,568.26,Revenue
DIRECT LEARNING AND SKILLS,SCHOOLS DELEGATED,08-May-2019,101055,EDF Energy Plc,645.62,Revenue
DIRECT LEARNING AND SKILLS,SCHOOLS DELEGATED,08-May-2019,101094,Legacy Leisure Limited,"1,053.00",Revenue
DIRECT LEARNING AND SKILLS,SCHOOLS DELEGATED,08-May-2019,101134,A & R Contract Cleaning Specialist Limited,"1,040.54",Revenue
DIRECT LEARNING AND SKILLS,SCHOOLS DELEGATED,08-May-2019,101171,NSM Training & Consultancy Limited,750.00,Revenue
DIRECT LEARNING AND SKILLS,SCHOOLS DELEGATED,08-May-2019,101202,ParentPay Limited,739.60,Revenue
DIRECT LEARNING AND SKILLS,SCHOOLS DELEGATED,08-May-2019,101221,Llandaff Diocesan Board of Finance,565.00,Revenue
DIRECT LEARNING AND SKILLS,SCHOOLS DELEGATED,08-May-2019,101221,A & R Contract Cleaning Specialist Limited,"2,189.11",Revenue
DIRECT LEARNING AND SKILLS,SCHOOLS DELEGATED,08-May-2019,101229,WWS 1987 Limited T/A Welsh Window Systems,590.00,Revenue
DIRECT LEARNING AND SKILLS,SCHOOLS DELEGATED,08-May-2019,101285,ParentPay Limited,550.00,Revenue
DIRECT LEARNING AND SKILLS,SCHOOLS DELEGATED,08-May-2019,101285,Unique Flooring (Wales) Limited,"3,900.00",Revenue
DIRECT LEARNING AND SKILLS,SCHOOLS DELEGATED,08-May-2019,101305,Ricoh UK Limited,619.58,Revenue
DIRECT LEARNING AND SKILLS,SCHOOLS DELEGATED,08-May-2019,101317,I Teach (Wales) Limited,814.85,Revenue
DIRECT LEARNING AND SKILLS,SCHOOLS DELEGATED,08-May-2019,101317,I Teach (Wales) Limited,"2,750.00",Revenue
DIRECT LEARNING AND SKILLS,SCHOOLS DELEGATED,08-May-2019,101317,EDF Energy Plc,745.77,Revenue
DIRECT LEARNING AND SKILLS,SCHOOLS DELEGATED,08-May-2019,101317,Globebrow Limited t/a Manor Adventure,750.00,Revenue
DIRECT LEARNING AND SKILLS,SCHOOLS DELEGATED,08-May-2019,101317,Ricoh UK Limited,"1,356.91",Revenue
DIRECT LEARNING AND SKILLS,SCHOOLS DELEGATED,08-May-2019,102593,Boiler Burner Maintenance Limited,573.50,Revenue
DIRECT LEARNING AND SKILLS,SCHOOLS DELEGATED,08-May-2019,102593,Academia Limited,881.13,Revenue
DIRECT LEARNING AND SKILLS,SCHOOLS DELEGATED,08-May-2019,102593,Academia Limited,"1,762.26",Revenue
DIRECT LEARNING AND SKILLS,SCHOOLS DELEGATED,08-May-2019,104381,A & R Contract Cleaning Specialist Limited,"1,200.92",Revenue
DIRECT SOCIAL SERVICES,GF CHILDREN SERVICES,08-May-2019,209151,Little Inspirations Limited,"2,392.00",Revenue
DIRECT SOCIAL SERVICES,GF ADULT SERVICES,08-May-2019,217909,Everycare (Cardiff) Limited,567.76,Revenue
DIRECT SOCIAL SERVICES,GF ADULT SERVICES,08-May-2019,217909,Cabs 64 Limited,576.00,Revenue
DIRECT SOCIAL SERVICES,GF ADULT SERVICES,08-May-2019,217909,Everycare (Cardiff) Limited,"1,080.04",Revenue
DIRECT SOCIAL SERVICES,GF CHILDREN SERVICES,08-May-2019,260050,IntaForensics Limited,"1,020.00",Revenue
DIRECT SOCIAL SERVICES,GF CHILDREN SERVICES,08-May-2019,260060,The National Fostering Agency Limited,696.00,Revenue
DIRECT SOCIAL SERVICES,GF CHILDREN SERVICES,08-May-2019,260060,Shared Services Connected Limited,"1,323.00",Revenue
DIRECT SOCIAL SERVICES,GF CHILDREN SERVICES,08-May-2019,260060,Shared Services Connected Limited,"1,323.00",Revenue
DIRECT SOCIAL SERVICES,GF CHILDREN SERVICES,08-May-2019,260060,Shared Services Connected Limited,"1,323.00",Revenue
DIRECT SOCIAL SERVICES,GF CHILDREN SERVICES,08-May-2019,260060,The National Fostering Agency Limited,"3,060.00",Revenue
DIRECT SOCIAL SERVICES,GF CHILDREN SERVICES,08-May-2019,260060,The National Fostering Agency Limited,"3,064.20",Revenue
DIRECT SOCIAL SERVICES,GF CHILDREN SERVICES,08-May-2019,260060,The National Fostering Agency Limited,"3,243.00",Revenue
DIRECT SOCIAL SERVICES,GF CHILDREN SERVICES,08-May-2019,260060,The National Fostering Agency Limited,"3,243.00",Revenue
DIRECT SOCIAL SERVICES,GF CHILDREN SERVICES,08-May-2019,260060,The National Fostering Agency Limited,"3,402.90",Revenue
DIRECT SOCIAL SERVICES,GF CHILDREN SERVICES,08-May-2019,260060,The National Fostering Agency Limited,"3,413.70",Revenue
DIRECT SOCIAL SERVICES,GF CHILDREN SERVICES,08-May-2019,260060,The National Fostering Agency Limited,"3,414.00",Revenue
DIRECT SOCIAL SERVICES,GF CHILDREN SERVICES,08-May-2019,260060,TLC (Wales) Independent Fostering Limited,"4,435.80",Revenue
DIRECT SOCIAL SERVICES,GF CHILDREN SERVICES,08-May-2019,260060,BetterCare Keys Limited,"13,615.71",Revenue
DIRECT SOCIAL SERVICES,GF CHILDREN SERVICES,08-May-2019,260060,BetterCare Keys Limited,"13,615.71",Revenue
DIRECT SOCIAL SERVICES,GF CHILDREN SERVICES,08-May-2019,260060,Care 4 Children Residential Services Limited,"18,214.20",Revenue
DIRECT SOCIAL SERVICES,GF CHILDREN SERVICES,08-May-2019,260060,Care 4 Children Residential Services Limited,"18,821.34",Revenue
DIRECT SOCIAL SERVICES,GF CHILDREN SERVICES,08-May-2019,260060,Birribi Limited,"20,592.99",Revenue
DIRECT SOCIAL SERVICES,GF CHILDREN SERVICES,08-May-2019,260060,Orbis Education and Care Limited,"24,327.38",Revenue
DIRECT SOCIAL SERVICES,GF CHILDREN SERVICES,08-May-2019,260190,New Directions (Recruitment) Limited,577.50,Revenue
DIRECT SOCIAL SERVICES,GF CHILDREN SERVICES,08-May-2019,260210,NonStop Recruitment Limited,"1,152.00",Revenue
DIRECT SOCIAL SERVICES,GF CHILDREN SERVICES,08-May-2019,260210,NonStop Recruitment Limited,"1,332.00",Revenue
DIRECT SOCIAL SERVICES,GF CHILDREN SERVICES,08-May-2019,260210,NonStop Recruitment Limited,"1,332.00",Revenue
DIRECT SOCIAL SERVICES,GF CHILDREN SERVICES,08-May-2019,260265,Gateway Psychology Limited,"1,008.00",Revenue
DIRECT ENVIRONMENT AND HOUSING,GF ENV AND VISIBLE,08-May-2019,323680,Capita Glamorgan Consultancy Limited T/A Redstart,"4,467.50",Revenue
DIRECT ENVIRONMENT AND HOUSING,GF ENV AND VISIBLE,08-May-2019,325347,Cemex UK Materials Limited,"1,145.54",Revenue
DIRECT ENVIRONMENT AND HOUSING,GF ENV AND VISIBLE,08-May-2019,325890,Centregreat Limited,"1,263.46",Revenue
DIRECT ENVIRONMENT AND HOUSING,GF PARKS AND GROUNDS,08-May-2019,333154,The Firewood Company (UK) Limited T/A Esa Tree Care,"2,100.00",Revenue
DIRECT ENVIRONMENT AND HOUSING,GF ENV AND VISIBLE,08-May-2019,341220,Pure Recycling Warwick Limited,"1,149.96",Revenue
DIRECT MANAGING DIRECTOR AND RESOURCES,GF LEGAL AND DEMOCRATIC,08-May-2019,400051,Democracy Counts Limited,"12,000.00",Revenue
DIRECT ENVIRONMENT AND HOUSING,GF HOUSING SERVICES,08-May-2019,405100,ACTL Limited,623.10,Revenue
DIRECT ENVIRONMENT AND HOUSING,GF HOUSING SERVICES,08-May-2019,405113,Interlet Residential Limited,650.00,Revenue
DIRECT MANAGING DIRECTOR AND RESOURCES,GF RESOURCES,08-May-2019,420217,Computacenter (UK) Limited,553.13,Revenue
DIRECT MANAGING DIRECTOR AND RESOURCES,GF RESOURCES,08-May-2019,421230,Computacenter (UK) Limited,"1,578.40",Revenue
DIRECT MANAGING DIRECTOR AND RESOURCES,GF RESOURCES,08-May-2019,422100,Brecongate Projects Limited t/a Brecongate Building Solutions,"2,193.50",Revenue
DIRECT CAPITAL LEARN AND SKILLS,CAPITAL SCHOOLS,08-May-2019,810115,Pinit Building & Civil Engineering Limited,"6,629.72",Capital
DIRECT CAPITAL LEARN AND SKILLS,AR CAPITAL SCHOOLS,08-May-2019,812293,Willis Construction Limited,"76,623.71",Capital
DIRECT CAPITAL VISIBLE AND HOUSING SERVICES,AR CAPITAL ENGINEER,08-May-2019,831207,Capita Glamorgan Consultancy Limited T/A Redstart,"3,409.00",Capital
DIRECT CAPITAL VISIBLE AND HOUSING SERVICES,CAPITAL HIGHWAYS,08-May-2019,831548,Centregreat Limited,"1,283.38",Capital
DIRECT CAPITAL VISIBLE AND HOUSING SERVICES,CAPITAL HIGHWAYS,08-May-2019,831553,Arcadis Consulting (UK) Limited,"6,142.50",Capital
DIRECT CAPITAL VISIBLE AND HOUSING SERVICES,CAPITAL HRA,08-May-2019,842068,Eco Carbon Traders Limited,"10,074.75",Capital
DIRECT CAPITAL VISIBLE AND HOUSING SERVICES,CAPITAL HRA,08-May-2019,843001,Harrison Thompson and Company Limited,"33,050.04",Capital
DIRECT CAPITAL VISIBLE AND HOUSING SERVICES,CAPITAL HRA,08-May-2019,843002,Harrison Thompson and Company Limited,"39,939.52",Capital
DIRECT CAPITAL DEVELOPMENT,CAPITAL PRIV HSG,08-May-2019,845003,R & M Williams Limited,"5,986.48",Capital
DIRECT SOCIAL SERVICES,GF CHILDREN SERVICES,08-May-2019,260040,Cardiff County Council,"154,646.00",Revenue
DIRECT POLICY,GF GENERAL EXPENDITURE POLICY,08-May-2019,471900,Peterston-super-Ely Community Council,"50,000.00",Revenue
DIRECT POLICY,GF FUNDING,08-May-2019,476972,Barry Town Council,"388,850.00",Revenue
DIRECT POLICY,GF FUNDING,08-May-2019,476973,Colwinston Community Council,"4,367.00",Revenue
DIRECT POLICY,GF FUNDING,08-May-2019,476974,Cowbridge with Llanblethian Town Council,"63,667.00",Revenue
DIRECT POLICY,GF FUNDING,08-May-2019,476975,Dinas Powys Community Council,"34,418.00",Revenue
DIRECT POLICY,GF FUNDING,08-May-2019,476976,Ewenny Community Council,"5,900.00",Revenue
DIRECT POLICY,GF FUNDING,08-May-2019,476977,Llancarfan Community Council,"3,844.00",Revenue
DIRECT POLICY,GF FUNDING,08-May-2019,476978,Llandough Community Council,"13,491.00",Revenue
DIRECT POLICY,GF FUNDING,08-May-2019,476979,Llandow Community Council,"3,100.00",Revenue
DIRECT POLICY,GF FUNDING,08-May-2019,476980,Llanfair Community Council,"1,536.00",Revenue
DIRECT POLICY,GF FUNDING,08-May-2019,476981,Llangan Community Council,"3,420.00",Revenue
DIRECT POLICY,GF FUNDING,08-May-2019,476982,Llanmaes Community Council,"4,000.00",Revenue
DIRECT POLICY,GF FUNDING,08-May-2019,476983,Llantwit Major Town Council,"80,512.00",Revenue
DIRECT POLICY,GF FUNDING,08-May-2019,476984,Michaelston Le Pitt with Leckwith Community Council,"2,025.00",Revenue
DIRECT POLICY,GF FUNDING,08-May-2019,476985,Penarth Town Council,"281,074.00",Revenue
DIRECT POLICY,GF FUNDING,08-May-2019,476986,Pendoylan Community Council,"2,214.00",Revenue
DIRECT POLICY,GF FUNDING,08-May-2019,476987,Penllyn Community Council,"3,883.00",Revenue
DIRECT POLICY,GF FUNDING,08-May-2019,476988,Peterston-super-Ely Community Council,"7,000.00",Revenue
DIRECT POLICY,GF FUNDING,08-May-2019,476989,St Athan Community Council,"9,519.00",Revenue
DIRECT POLICY,GF FUNDING,08-May-2019,476990,St Brides Major Community Council,"9,378.00",Revenue
DIRECT POLICY,GF FUNDING,08-May-2019,476991,St Donats Community Council,"1,051.00",Revenue
DIRECT POLICY,GF FUNDING,08-May-2019,476992,St Georges & St Brides Community Council,650.00,Revenue
DIRECT POLICY,GF FUNDING,08-May-2019,476993,St Nicholas & Bonvilston Community Council,"3,522.00",Revenue
DIRECT POLICY,GF FUNDING,08-May-2019,476994,Sully & Lavernock Community Council,"30,447.00",Revenue
DIRECT POLICY,GF FUNDING,08-May-2019,476995,Welsh St Donats Community Council,"2,167.00",Revenue
DIRECT POLICY,GF FUNDING,08-May-2019,476996,Wenvoe Community Council,"11,667.00",Revenue
DIRECT POLICY,GF FUNDING,08-May-2019,476997,Wick Community Council,"1,667.00",Revenue
DIRECT LEARNING AND SKILLS,SCHOOLS DELEGATED,08-May-2019,101094,Kate Derbyshire,675.00,Revenue
DIRECT SOCIAL SERVICES,GF ADULT SERVICES,08-May-2019,218411,Dayfydd Paxton,960.00,Revenue
DIRECT SOCIAL SERVICES,GF CHILDREN SERVICES,08-May-2019,260050,Ruth Henke QC,"4,064.50",Revenue
DIRECT SOCIAL SERVICES,GF CHILDREN SERVICES,08-May-2019,209151,Cardiff & Vale University Local Health Board,"53,631.57",Revenue
DIRECT SOCIAL SERVICES,GF RESOURCES MANAGEMENT & SAFEGUARDING,08-May-2019,239112,Social Care Wales,"18,000.00",Revenue
DIRECT POLICY,GF GENERAL EXPENDITURE POLICY,08-May-2019,471901,South Wales Fire and Rescue Service,"503,974.00",Revenue
DIRECT POLICY,GF FUNDING,08-May-2019,475970,The Police and Crime Commissioner for South Wales,"1,275,950.00",Revenue
DIRECT LEARNING AND SKILLS,SCHOOLS DELEGATED,08-May-2019,101195,New Directions (Education) Limited,764.53,Revenue
DIRECT LEARNING AND SKILLS,SCHOOLS DELEGATED,08-May-2019,101216,Millennium Personnel Services (Education) Limited,625.00,Revenue
DIRECT LEARNING AND SKILLS,SCHOOLS DELEGATED,08-May-2019,101305,Bay Resourcing Limited,928.09,Revenue
DIRECT LEARNING AND SKILLS,SCHOOLS DELEGATED,08-May-2019,101317,Teaching Personnel Limited,520.50,Revenue
DIRECT LEARNING AND SKILLS,SCHOOLS DELEGATED,08-May-2019,101317,Teaching Personnel Limited,624.54,Revenue
DIRECT LEARNING AND SKILLS,SCHOOLS DELEGATED,08-May-2019,102593,BS Project Services Limited,"1,230.86",Revenue
DIRECT LEARNING AND SKILLS,SCHOOLS DELEGATED,08-May-2019,102593,BS Project Services Limited,"1,418.32",Revenue
DIRECT LEARNING AND SKILLS,SCHOOLS DELEGATED,08-May-2019,102594,BS Project Services Limited,"1,289.91",Revenue
DIRECT SOCIAL SERVICES,GF CHILDREN SERVICES,08-May-2019,260150,Sanctuary Personnel Limited,"1,276.50",Revenue
DIRECT SOCIAL SERVICES,GF ADULT SERVICES,08-May-2019,217909,Crosshands Care Limited,"6,472.64",Revenue
DIRECT ENVIRONMENT AND HOUSING,GF HOUSING SERVICES,08-May-2019,405100,Susan Shepherd t/a KKG Properties,"1,246.20",Revenue
DIRECT ENVIRONMENT AND HOUSING,GF HOUSING SERVICES,08-May-2019,405100,Susan Shepherd t/a KKG Properties,"2,758.48",Revenue
DIRECT LEARNING AND SKILLS,SCHOOLS DELEGATED,08-May-2019,101055,The National Trust For Places Of Historic Interest Or Natural Beauty,"9,120.00",Revenue
DIRECT LEARNING AND SKILLS,SCHOOLS DELEGATED,08-May-2019,101094,Skill Force Development,700.00,Revenue
DIRECT LEARNING AND SKILLS,SCHOOLS DELEGATED,08-May-2019,102593,Work With Meaning,640.00,Revenue
DIRECT SOCIAL SERVICES,GF CHILDREN SERVICES,08-May-2019,260060,Barnardos Cymru,"2,978.57",Revenue
DIRECT SOCIAL SERVICES,GF CHILDREN SERVICES,08-May-2019,260060,Barnardos Cymru,"3,595.71",Revenue
DIRECT CAPITAL DEVELOPMENT,CAPITAL PLANNING,08-May-2019,837216,Old Penarthians RFC,"15,000.00",Capital
DIRECT SOCIAL SERVICES,GF ADULT SERVICES,09-May-2019,215489,GJ Care & Training Limited,585.28,Revenue
DIRECT SOCIAL SERVICES,GF ADULT SERVICES,09-May-2019,215489,Willowmere Home Care Agency Limited,607.88,Revenue
DIRECT SOCIAL SERVICES,GF ADULT SERVICES,09-May-2019,215489,Willowmere Home Care Agency Limited,625.10,Revenue
DIRECT SOCIAL SERVICES,GF ADULT SERVICES,09-May-2019,215489,Willowmere Home Care Agency Limited,625.10,Revenue
DIRECT SOCIAL SERVICES,GF ADULT SERVICES,09-May-2019,215489,Willowmere Home Care Agency Limited,625.10,Revenue
DIRECT SOCIAL SERVICES,GF ADULT SERVICES,09-May-2019,215489,GJ Care & Training Limited,647.42,Revenue
DIRECT SOCIAL SERVICES,GF ADULT SERVICES,09-May-2019,215489,GJ Care & Training Limited,648.59,Revenue
DIRECT SOCIAL SERVICES,GF ADULT SERVICES,09-May-2019,215489,Willowmere Home Care Agency Limited,658.84,Revenue
DIRECT SOCIAL SERVICES,GF ADULT SERVICES,09-May-2019,215489,Willowmere Home Care Agency Limited,674.31,Revenue
DIRECT SOCIAL SERVICES,GF ADULT SERVICES,09-May-2019,215489,GJ Care & Training Limited,687.41,Revenue
DIRECT SOCIAL SERVICES,GF ADULT SERVICES,09-May-2019,215489,Willowmere Home Care Agency Limited,702.45,Revenue
DIRECT SOCIAL SERVICES,GF ADULT SERVICES,09-May-2019,215489,Willowmere Home Care Agency Limited,702.45,Revenue
DIRECT SOCIAL SERVICES,GF ADULT SERVICES,09-May-2019,215489,Willowmere Home Care Agency Limited,729.68,Revenue
DIRECT SOCIAL SERVICES,GF ADULT SERVICES,09-May-2019,215489,Willowmere Home Care Agency Limited,824.09,Revenue
DIRECT SOCIAL SERVICES,GF ADULT SERVICES,09-May-2019,215489,Willowmere Home Care Agency Limited,"1,004.57",Revenue
DIRECT SOCIAL SERVICES,GF ADULT SERVICES,09-May-2019,217909,GJ Care & Training Limited,732.58,Revenue
DIRECT SOCIAL SERVICES,GF ADULT SERVICES,09-May-2019,218321,GJ Care & Training Limited,590.03,Revenue
DIRECT SOCIAL SERVICES,GF ADULT SERVICES,09-May-2019,218419,Willowmere Home Care Agency Limited,722.40,Revenue
DIRECT LEARNING AND SKILLS,SCHOOLS DELEGATED,09-May-2019,101004,ParentPay Limited,509.20,Revenue
DIRECT LEARNING AND SKILLS,SCHOOLS DELEGATED,09-May-2019,101004,G Wood Flooring Limited,530.00,Revenue
DIRECT LEARNING AND SKILLS,SCHOOLS DELEGATED,09-May-2019,101004,A & R Contract Cleaning Specialist Limited,"1,605.48",Revenue
DIRECT LEARNING AND SKILLS,SCHOOLS DELEGATED,09-May-2019,101004,A & R Contract Cleaning Specialist Limited,"1,605.48",Revenue
DIRECT LEARNING AND SKILLS,SCHOOLS DELEGATED,09-May-2019,101006,EDF Energy Plc,529.65,Revenue
DIRECT LEARNING AND SKILLS,SCHOOLS DELEGATED,09-May-2019,101006,ParentPay Limited,530.00,Revenue
DIRECT LEARNING AND SKILLS,SCHOOLS DELEGATED,09-May-2019,101006,Capita Business Services Limited,620.00,Revenue
DIRECT LEARNING AND SKILLS,SCHOOLS DELEGATED,09-May-2019,101006,Corona Energy Retail 4 Limited,640.44,Revenue
DIRECT LEARNING AND SKILLS,SCHOOLS DELEGATED,09-May-2019,101006,ADT Fire and Security Plc,780.00,Revenue
DIRECT LEARNING AND SKILLS,SCHOOLS DELEGATED,09-May-2019,101006,ADT Fire and Security Plc,869.00,Revenue
DIRECT LEARNING AND SKILLS,SCHOOLS DELEGATED,09-May-2019,101006,EDF Energy Plc,924.57,Revenue
DIRECT LEARNING AND SKILLS,SCHOOLS DELEGATED,09-May-2019,101006,Dwr Cymru Cyf,"2,559.82",Revenue
DIRECT LEARNING AND SKILLS,SCHOOLS DELEGATED,09-May-2019,101013,Groupcall Limited,518.00,Revenue
DIRECT LEARNING AND SKILLS,SCHOOLS DELEGATED,09-May-2019,101013,CF Corporate Finance Limited,999.99,Revenue
DIRECT LEARNING AND SKILLS,SCHOOLS DELEGATED,09-May-2019,101013,Create Development Limited,"1,795.00",Revenue
DIRECT LEARNING AND SKILLS,SCHOOLS DELEGATED,09-May-2019,101065,Ricoh UK Limited,"1,406.14",Revenue
DIRECT LEARNING AND SKILLS,SCHOOLS DELEGATED,09-May-2019,101141,Toshiba TEC UK Imaging Systems Limited,756.90,Revenue
DIRECT LEARNING AND SKILLS,SCHOOLS DELEGATED,09-May-2019,101195,Dalton Printers Limited,560.00,Revenue
DIRECT LEARNING AND SKILLS,SCHOOLS DELEGATED,09-May-2019,101195,AFT Group (Wales) Limited T/A Advanced Fire Technologies Limited,"1,140.36",Revenue
DIRECT LEARNING AND SKILLS,SCHOOLS DELEGATED,09-May-2019,101195,Academics Limited,"1,385.20",Revenue
DIRECT LEARNING AND SKILLS,SCHOOLS DELEGATED,09-May-2019,101195,Academics Limited,"2,014.14",Revenue
DIRECT LEARNING AND SKILLS,SCHOOLS DELEGATED,09-May-2019,101216,Redlynch Leisure Installations Limited,890.00,Revenue
DIRECT LEARNING AND SKILLS,SCHOOLS DELEGATED,09-May-2019,101241,Mainline Coaches Limited,-850.00,Revenue
DIRECT LEARNING AND SKILLS,SCHOOLS DELEGATED,09-May-2019,101261,Ricoh UK Limited,"1,351.36",Revenue
DIRECT LEARNING AND SKILLS,SCHOOLS DELEGATED,09-May-2019,101300,Draintech Surveys Limited,"-1,035.00",Revenue
DIRECT LEARNING AND SKILLS,SCHOOLS DELEGATED,09-May-2019,101308,Taro Nod Limited,870.00,Revenue
DIRECT LEARNING AND SKILLS,SCHOOLS DELEGATED,09-May-2019,101308,ExtraScope Limited t/a ExtraScope IT Services,"1,950.00",Revenue
DIRECT LEARNING AND SKILLS,SCHOOLS DELEGATED,09-May-2019,101308,A & R Contract Cleaning Specialist Limited,"2,664.60",Revenue
DIRECT LEARNING AND SKILLS,STRATEGY COMMUNITY LEARNING & RESOURCES,09-May-2019,120057,Tugbury Electrical Services Limited,"1,215.00",Revenue
NEW REGENERATION,REGENERATION & PLANNING,09-May-2019,130503,Computacenter (UK) Limited,918.94,Revenue
DIRECT SOCIAL SERVICES,GF CHILDREN SERVICES,09-May-2019,260150,Coram Academy Limited,"2,137.53",Revenue
DIRECT ENVIRONMENT AND HOUSING,GF ENV AND VISIBLE,09-May-2019,325502,Centregreat Limited,913.20,Revenue
NEW REGENERATION,REGENERATION & PLANNING,09-May-2019,350711,Thinking Place Limited,"10,600.00",Revenue
NEW REGENERATION,REGENERATION & PLANNING,09-May-2019,354037,Savage & Gray Design Limited,570.00,Revenue
NEW REGENERATION,REGENERATION & PLANNING,09-May-2019,365780,Telefonica UK Limited t/a O2,"1,947.00",Revenue
DIRECT ENVIRONMENT AND HOUSING,GF HOUSING SERVICES,09-May-2019,405001,Cadwyn Housing Association Limited,"1,250.00",Revenue
DIRECT MANAGING DIRECTOR AND RESOURCES,GF RESOURCES,09-May-2019,422160,Royal Institute Of Chartered Surveyors Membership Renewals T/A BCIS,"5,535.00",Revenue
DIRECT CAPITAL LEARN AND SKILLS,AR CAPITAL SCHOOLS,09-May-2019,812277,Thornlink Limited T/A Vale Consultancy,"1,837.50",Capital
DIRECT CAPITAL DEVELOPMENT,CAPITAL PLANNING,09-May-2019,837205,Thornlink Limited T/A Vale Consultancy,920.00,Capital
DIRECT CAPITAL VISIBLE AND HOUSING SERVICES,CAPITAL HRA,09-May-2019,842182,IAS Construction & Maintenance Limited,"2,230.00",Capital
DIRECT LEARNING AND SKILLS,SCHOOLS DELEGATED,09-May-2019,101065,Peter Regan & Ptn t/a Sonic Alarm Systems,"1,099.00",Revenue
DIRECT LEARNING AND SKILLS,ACHIEVEMENT FOR ALL,09-May-2019,100345,Liza Lomax,715.70,Revenue
DIRECT ENVIRONMENT AND HOUSING,GF HOUSING SERVICES,09-May-2019,405100,Duncan M Evans,"1,928.75",Revenue
DIRECT LEARNING AND SKILLS,SCHOOLS DELEGATED,09-May-2019,101006,New Directions (Education) Limited,762.71,Revenue
DIRECT LEARNING AND SKILLS,SCHOOLS DELEGATED,09-May-2019,101013,New Directions (Education) Limited,589.46,Revenue
DIRECT LEARNING AND SKILLS,SCHOOLS DELEGATED,09-May-2019,101065,New Directions (Education) Limited,771.55,Revenue
DIRECT ENVIRONMENT AND HOUSING,GF ENV AND VISIBLE,09-May-2019,323685,Hays Specialist Recruitment Limited,659.36,Revenue
DIRECT ENVIRONMENT AND HOUSING,GF ENV AND VISIBLE,09-May-2019,323686,Hays Specialist Recruitment Limited,659.20,Revenue
DIRECT ENVIRONMENT AND HOUSING,GF HOUSING SERVICES,09-May-2019,405001,James Andrews Recruitment Solutions Limited,541.13,Revenue
DIRECT ENVIRONMENT AND HOUSING,HRA MANAGEMENT,09-May-2019,407108,Building Recruitment Company Limited,654.12,Revenue
DIRECT ENVIRONMENT AND HOUSING,HRA MANAGEMENT,09-May-2019,407118,James Andrews Recruitment Solutions Limited,"1,152.82",Revenue
DIRECT ENVIRONMENT AND HOUSING,HRA MANAGEMENT,09-May-2019,407118,James Andrews Recruitment Solutions Limited,"1,292.50",Revenue
DIRECT ENVIRONMENT AND HOUSING,HRA MANAGEMENT,09-May-2019,407119,James Andrews Recruitment Solutions Limited,888.93,Revenue
DIRECT ENVIRONMENT AND HOUSING,HRA MANAGEMENT,09-May-2019,407119,Building Recruitment Company Limited,"1,146.26",Revenue
DIRECT LEARNING AND SKILLS,SCHOOLS DELEGATED,09-May-2019,101065,Skill Force Development,"3,887.50",Revenue
DIRECT LEARNING AND SKILLS,SCHOOLS DELEGATED,09-May-2019,101065,Skill Force Development,"3,887.50",Revenue
DIRECT LEARNING AND SKILLS,STRATEGY COMMUNITY LEARNING & RESOURCES,10-May-2019,100130,Capita Business Services Limited,"1,150.00",Revenue
DIRECT LEARNING AND SKILLS,SCHOOLS NON DELEGATED,10-May-2019,100680,Centre For Education & Finance Management Limited,"12,060.33",Revenue
DIRECT LEARNING AND SKILLS,SCHOOLS DELEGATED,10-May-2019,101030,Academics Limited,787.20,Revenue
DIRECT LEARNING AND SKILLS,SCHOOLS DELEGATED,10-May-2019,101030,Academics Limited,787.20,Revenue
DIRECT LEARNING AND SKILLS,SCHOOLS DELEGATED,10-May-2019,101030,Academics Limited,927.64,Revenue
DIRECT LEARNING AND SKILLS,SCHOOLS DELEGATED,10-May-2019,101030,Academics Limited,927.64,Revenue
DIRECT LEARNING AND SKILLS,SCHOOLS DELEGATED,10-May-2019,101032,ReportAssist Limited,530.00,Revenue
DIRECT LEARNING AND SKILLS,SCHOOLS DELEGATED,10-May-2019,101032,Pearson Education Limited,652.00,Revenue
DIRECT LEARNING AND SKILLS,SCHOOLS DELEGATED,10-May-2019,101032,Jewson Limited,780.81,Revenue
DIRECT LEARNING AND SKILLS,SCHOOLS DELEGATED,10-May-2019,101032,Legacy Leisure Limited,837.00,Revenue
DIRECT LEARNING AND SKILLS,SCHOOLS DELEGATED,10-May-2019,101032,Little Inspirations Limited,"1,440.00",Revenue
DIRECT LEARNING AND SKILLS,SCHOOLS DELEGATED,10-May-2019,101171,ADT Fire and Security Plc,"1,897.19",Revenue
DIRECT LEARNING AND SKILLS,SCHOOLS DELEGATED,10-May-2019,101241,Mainline Coaches Limited,850.00,Revenue
DIRECT LEARNING AND SKILLS,SCHOOLS DELEGATED,10-May-2019,101241,Mainline Coaches Limited,850.00,Revenue
DIRECT LEARNING AND SKILLS,SCHOOLS DELEGATED,10-May-2019,101241,ExtraScope Limited t/a ExtraScope IT Services,"1,450.00",Revenue
DIRECT LEARNING AND SKILLS,SCHOOLS DELEGATED,10-May-2019,101241,Metalliform Holdings Limited,"1,757.75",Revenue
DIRECT LEARNING AND SKILLS,SCHOOLS DELEGATED,10-May-2019,101300,Draintech Surveys Limited,517.50,Revenue
DIRECT LEARNING AND SKILLS,ACHIEVEMENT FOR ALL,10-May-2019,102652,Orbis Education and Care Limited,"6,051.67",Revenue
DIRECT LEARNING AND SKILLS,ACHIEVEMENT FOR ALL,10-May-2019,102652,Orbis Education and Care Limited,"8,435.37",Revenue
DIRECT LEARNING AND SKILLS,SCHOOLS NON DELEGATED,10-May-2019,103030,Academics Limited,702.20,Revenue
DIRECT LEARNING AND SKILLS,SCHOOLS NON DELEGATED,10-May-2019,103030,Academics Limited,"1,172.20",Revenue
DIRECT LEARNING AND SKILLS,SCHOOLS NON DELEGATED,10-May-2019,103030,Academics Limited,"1,172.20",Revenue
DIRECT LEARNING AND SKILLS,SCHOOLS NON DELEGATED,10-May-2019,103030,Academics Limited,"1,874.40",Revenue
DIRECT LEARNING AND SKILLS,STRATEGY COMMUNITY LEARNING & RESOURCES,10-May-2019,130041,Adapt Business Services Limited,901.98,Revenue
DIRECT SOCIAL SERVICES,GF RESOURCES MANAGEMENT & SAFEGUARDING,10-May-2019,201851,Computacenter (UK) Limited,"3,585.27",Revenue
DIRECT SOCIAL SERVICES,GF ADULT SERVICES,10-May-2019,215121,Turun UK Limited,"1,358.69",Revenue
DIRECT SOCIAL SERVICES,GF ADULT SERVICES,10-May-2019,217909,National Autistic Society,"2,170.50",Revenue
DIRECT SOCIAL SERVICES,GF ADULT SERVICES,10-May-2019,217909,HF Trust Limited,"4,463.20",Revenue
DIRECT ENVIRONMENT AND HOUSING,HOUSING - HRA,10-May-2019,303901,ADC Fire Systems Limited,903.50,Revenue
DIRECT ENVIRONMENT AND HOUSING,PUBLIC BUILDINGS,10-May-2019,303931,Hi Tech Industrial Roofing Limited,595.00,Revenue
DIRECT ENVIRONMENT AND HOUSING,PUBLIC BUILDINGS,10-May-2019,303931,G.P.H.I.T (Integrated Services) Limited,600.00,Revenue
DIRECT ENVIRONMENT AND HOUSING,PUBLIC BUILDINGS,10-May-2019,303931,G.P.H.I.T (Integrated Services) Limited,744.00,Revenue
DIRECT ENVIRONMENT AND HOUSING,PUBLIC BUILDINGS,10-May-2019,303931,G.P.H.I.T (Integrated Services) Limited,870.00,Revenue
DIRECT ENVIRONMENT AND HOUSING,PUBLIC BUILDINGS,10-May-2019,303931,B & B Industrial Doors (UK) Limited,"1,484.00",Revenue
DIRECT ENVIRONMENT AND HOUSING,HOUSING - MRA,10-May-2019,304103,AKW Medi-Care Limited,594.56,Revenue
DIRECT ENVIRONMENT AND HOUSING,HOUSING - MRA,10-May-2019,304103,Custom Steel Design Limited,"1,040.00",Revenue
DIRECT ENVIRONMENT AND HOUSING,HOUSING - MRA,10-May-2019,304103,Go Access Limited,"2,011.00",Revenue
DIRECT ENVIRONMENT AND HOUSING,HOUSING - MRA,10-May-2019,305807,SMK Building & Maintenance Limited,"20,800.58",Revenue
DIRECT ENVIRONMENT AND HOUSING,GARAGE,10-May-2019,319010,Fleetwheel Limited,642.79,Revenue
DIRECT ENVIRONMENT AND HOUSING,GARAGE,10-May-2019,319010,Fleetwheel Limited,684.13,Revenue
NEW REGENERATION,REGENERATION & PLANNING,10-May-2019,356020,The Abbey Cleaning Services Limited,610.50,Revenue
NEW REGENERATION,REGENERATION & PLANNING,10-May-2019,356020,Geo Pollution Technologies UK Limited T/A GEM,"3,855.00",Revenue
DIRECT MANAGING DIRECTOR AND RESOURCES,GF RESOURCES,10-May-2019,420211,Otech Limited,675.00,Revenue
DIRECT MANAGING DIRECTOR AND RESOURCES,GF RESOURCES,10-May-2019,420211,Capita Business Services Limited,"5,893.37",Revenue
DIRECT CAPITAL LEARN AND SKILLS,AR CAPITAL SCHOOLS,10-May-2019,812276,Willis Construction Limited,"127,176.74",Capital
DIRECT CAPITAL VISIBLE AND HOUSING SERVICES,CAPITAL BUILDING,10-May-2019,830000,Merthyr Tydfil Car Auction Limited t/a Merthyr Motor Auctions,"11,211.24",Capital
DIRECT CAPITAL VISIBLE AND HOUSING SERVICES,AR CAPITAL ENGINEER,10-May-2019,831216,Peter Brett Associates LLP,"3,565.69",Capital
DIRECT CAPITAL DEVELOPMENT,AR CAPITAL LEISURE,10-May-2019,835375,G Oakley & Sons Limited,"171,257.44",Capital
DIRECT CAPITAL DEVELOPMENT,CAPITAL PLANNING,10-May-2019,837212,Jungheinrich UK Limited,"58,403.00",Capital
DIRECT CAPITAL DEVELOPMENT,CAPITAL PLANNING,10-May-2019,837212,Holt JCB Limited,"76,450.00",Capital
DIRECT CAPITAL DEVELOPMENT,CAPITAL PLANNING,10-May-2019,837212,Romaquip Limited,"142,656.00",Capital
DIRECT CAPITAL DEVELOPMENT,CAPITAL PLANNING,10-May-2019,837212,Romaquip Limited,"142,656.00",Capital
DIRECT CAPITAL DEVELOPMENT,CAPITAL PLANNING,10-May-2019,837212,Romaquip Limited,"142,656.00",Capital
DIRECT CAPITAL DEVELOPMENT,CAPITAL PLANNING,10-May-2019,837212,Romaquip Limited,"142,656.00",Capital
DIRECT CAPITAL DEVELOPMENT,CAPITAL PLANNING,10-May-2019,837212,Romaquip Limited,"142,656.00",Capital
DIRECT CAPITAL DEVELOPMENT,CAPITAL PLANNING,10-May-2019,837212,Romaquip Limited,"142,656.00",Capital
DIRECT SOCIAL SERVICES,GF CHILDREN SERVICES,10-May-2019,260500,Cardiff County Council,700.00,Revenue
DIRECT ENVIRONMENT AND HOUSING,REGULATORY SERVICES SHARED SERVICES,10-May-2019,403001,Cardiff County Council,700.00,Revenue
DIRECT POLICY,GF GENERAL EXPENDITURE POLICY,10-May-2019,471900,Cardiff County Council,"2,015.00",Revenue
DIRECT ENVIRONMENT AND HOUSING,PUBLIC BUILDINGS,10-May-2019,303931,Michael Bryl & Ptn T/A CW Facilities Management,"3,242.00",Revenue
DIRECT LEARNING AND SKILLS,SCHOOLS NON DELEGATED,10-May-2019,103227,New Directions (Education) Limited,532.00,Revenue
DIRECT SOCIAL SERVICES,GF ADULT SERVICES,10-May-2019,215489,April Complete Care Solutions Limited,589.65,Revenue
DIRECT SOCIAL SERVICES,GF ADULT SERVICES,10-May-2019,216179,April Complete Care Solutions Limited,831.52,Revenue
DIRECT SOCIAL SERVICES,GF ADULT SERVICES,10-May-2019,217909,April Complete Care Solutions Limited,874.41,Revenue
DIRECT SOCIAL SERVICES,GF CHILDREN SERVICES,10-May-2019,260150,Sanctuary Personnel Limited,"1,276.50",Revenue
DIRECT SOCIAL SERVICES,GF CHILDREN SERVICES,10-May-2019,260150,Sanctuary Personnel Limited,"1,276.50",Revenue
DIRECT ENVIRONMENT AND HOUSING,HOUSING - HRA,10-May-2019,303910,Hays Specialist Recruitment Limited,536.62,Revenue
DIRECT ENVIRONMENT AND HOUSING,HOUSING - HRA,10-May-2019,303910,Hays Specialist Recruitment Limited,566.40,Revenue
DIRECT ENVIRONMENT AND HOUSING,PUBLIC BUILDINGS,10-May-2019,303931,Building Recruitment Company Limited,684.13,Revenue
DIRECT ENVIRONMENT AND HOUSING,PUBLIC BUILDINGS,10-May-2019,303931,Building Recruitment Company Limited,688.57,Revenue
DIRECT ENVIRONMENT AND HOUSING,PUBLIC BUILDINGS,10-May-2019,303931,Building Recruitment Company Limited,688.57,Revenue
DIRECT ENVIRONMENT AND HOUSING,HRA MANAGEMENT,10-May-2019,407106,Building Recruitment Company Limited,723.00,Revenue
DIRECT ENVIRONMENT AND HOUSING,HRA MANAGEMENT,10-May-2019,407106,James Andrews Recruitment Solutions Limited,777.00,Revenue
DIRECT ENVIRONMENT AND HOUSING,HOUSING - MRA,10-May-2019,304103,Andrew Kirke t/a Metron Wrought Ironwork,640.00,Revenue
DIRECT ENVIRONMENT AND HOUSING,HOUSING - MRA,10-May-2019,304103,Andrew Kirke t/a Metron Wrought Ironwork,800.00,Revenue
DIRECT ENVIRONMENT AND HOUSING,GARAGE,10-May-2019,319010,Paul R Curtis t/a PRC Plant Cleaning,735.00,Revenue
DIRECT LEARNING AND SKILLS,ACHIEVEMENT FOR ALL,10-May-2019,102652,Action for Children,"13,304.00",Revenue
DIRECT LEARNING AND SKILLS,ACHIEVEMENT FOR ALL,10-May-2019,102652,Action for Children,"13,936.00",Revenue
DIRECT LEARNING AND SKILLS,ACHIEVEMENT FOR ALL,10-May-2019,102652,Action for Children,"13,936.00",Revenue
DIRECT LEARNING AND SKILLS,ACHIEVEMENT FOR ALL,10-May-2019,102652,Action for Children,"13,936.00",Revenue
DIRECT SOCIAL SERVICES,GF ADULT SERVICES,10-May-2019,217909,Vision 21,790.78,Revenue
DIRECT SOCIAL SERVICES,GF ADULT SERVICES,10-May-2019,217909,Vision 21,790.78,Revenue
DIRECT POLICY,GF GRANTS,10-May-2019,465200,Cowbridge Charter Trust CIO,902.00,Revenue
DIRECT POLICY,GF GRANTS,10-May-2019,465201,Motion Control Dance,738.00,Revenue
DIRECT SOCIAL SERVICES,GF ADULT SERVICES,13-May-2019,215489,All Saints DC Limited,616.66,Revenue
DIRECT SOCIAL SERVICES,GF ADULT SERVICES,13-May-2019,215489,All Saints DC Limited,616.66,Revenue
DIRECT SOCIAL SERVICES,GF ADULT SERVICES,13-May-2019,215489,All Saints DC Limited,616.66,Revenue
DIRECT SOCIAL SERVICES,GF ADULT SERVICES,13-May-2019,215489,All Saints DC Limited,682.20,Revenue
DIRECT SOCIAL SERVICES,GF ADULT SERVICES,13-May-2019,215489,All Saints DC Limited,682.20,Revenue
DIRECT SOCIAL SERVICES,GF ADULT SERVICES,13-May-2019,215489,All Saints DC Limited,682.20,Revenue
DIRECT SOCIAL SERVICES,GF ADULT SERVICES,13-May-2019,215489,All Saints DC Limited,701.49,Revenue
DIRECT SOCIAL SERVICES,GF ADULT SERVICES,13-May-2019,215489,All Saints DC Limited,732.39,Revenue
DIRECT SOCIAL SERVICES,GF ADULT SERVICES,13-May-2019,215489,All Saints DC Limited,732.39,Revenue
DIRECT LEARNING AND SKILLS,SCHOOLS DELEGATED,13-May-2019,101005,Dwr Cymru Cyf,"1,532.00",Revenue
DIRECT LEARNING AND SKILLS,SCHOOLS DELEGATED,13-May-2019,101025,Adventure Activities Limited,"4,962.67",Revenue
DIRECT LEARNING AND SKILLS,SCHOOLS DELEGATED,13-May-2019,101094,A & R Contract Cleaning Specialist Limited,"2,050.39",Revenue
DIRECT LEARNING AND SKILLS,SCHOOLS DELEGATED,13-May-2019,101216,Dwr Cymru Cyf,"1,691.23",Revenue
DIRECT LEARNING AND SKILLS,SCHOOLS NON DELEGATED,13-May-2019,103202,Academics Limited,857.20,Revenue
DIRECT SOCIAL SERVICES,GF CHILDREN SERVICES,13-May-2019,260255,PayPoint Payment Services Limited t/a CSGA Glamorgan,678.38,Revenue
DIRECT ENVIRONMENT AND HOUSING,OVERHEAD,13-May-2019,301062,G.P.H.I.T (Integrated Services) Limited,720.00,Revenue
DIRECT ENVIRONMENT AND HOUSING,TRADING - BUILDING,13-May-2019,303000,Supra UK Limited,"1,022.39",Revenue
DIRECT ENVIRONMENT AND HOUSING,HOUSING - HRA,13-May-2019,303900,SCN Properties Limited,645.00,Revenue
DIRECT ENVIRONMENT AND HOUSING,HOUSING - HRA,13-May-2019,303900,Metro Rod Limited,"2,120.00",Revenue
DIRECT ENVIRONMENT AND HOUSING,HOUSING - HRA,13-May-2019,303901,Handicare Accessibility Limited,"1,660.00",Revenue
DIRECT ENVIRONMENT AND HOUSING,HOUSING - MRA,13-May-2019,304103,AKW Medi-Care Limited,594.56,Revenue
DIRECT ENVIRONMENT AND HOUSING,PUBLIC BUILDINGS,13-May-2019,305848,Monmouthshire Timber Supplies Limited,572.25,Revenue
DIRECT ENVIRONMENT AND HOUSING,GARAGE,13-May-2019,319010,M & M Commercials Limited,635.00,Revenue
DIRECT ENVIRONMENT AND HOUSING,GARAGE,13-May-2019,319010,NTM - GB Limited,672.30,Revenue
DIRECT ENVIRONMENT AND HOUSING,GARAGE,13-May-2019,319010,David Evans Agricultural Limited,814.95,Revenue
DIRECT ENVIRONMENT AND HOUSING,GARAGE,13-May-2019,319010,Calor Gas Limited,888.80,Revenue
DIRECT ENVIRONMENT AND HOUSING,GF ENV AND VISIBLE,13-May-2019,323655,AG Surveys Limited,"6,350.00",Revenue
DIRECT ENVIRONMENT AND HOUSING,GF ENV AND VISIBLE,13-May-2019,323655,AG Surveys Limited,"3,600.00",Revenue
DIRECT ENVIRONMENT AND HOUSING,GF ENV AND VISIBLE,13-May-2019,323655,Storm Geomatics Limited,"12,333.00",Revenue
DIRECT ENVIRONMENT AND HOUSING,GF ENV AND VISIBLE,13-May-2019,323685,Alex French Associates Limited,517.50,Revenue
DIRECT ENVIRONMENT AND HOUSING,GF ENV AND VISIBLE,13-May-2019,325097,Neal Soil Suppliers Limited,622.40,Revenue
DIRECT ENVIRONMENT AND HOUSING,GF ENV AND VISIBLE,13-May-2019,325097,Neal Soil Suppliers Limited,"1,248.80",Revenue
DIRECT ENVIRONMENT AND HOUSING,GF ENV AND VISIBLE,13-May-2019,325097,Neal Soil Suppliers Limited,"1,304.80",Revenue
DIRECT ENVIRONMENT AND HOUSING,GF ENV AND VISIBLE,13-May-2019,325097,Neal Soil Suppliers Limited,"1,309.60",Revenue
DIRECT ENVIRONMENT AND HOUSING,GF ENV AND VISIBLE,13-May-2019,325097,Neal Soil Suppliers Limited,"3,235.20",Revenue
DIRECT ENVIRONMENT AND HOUSING,GF ENV AND VISIBLE,13-May-2019,325097,Neal Soil Suppliers Limited,"3,636.00",Revenue
DIRECT ENVIRONMENT AND HOUSING,GF ENV AND VISIBLE,13-May-2019,325097,G.P.H.I.T (Integrated Services) Limited,"5,550.00",Revenue
DIRECT ENVIRONMENT AND HOUSING,GF ENV AND VISIBLE,13-May-2019,325097,Neal Soil Suppliers Limited,"5,582.40",Revenue
DIRECT ENVIRONMENT AND HOUSING,GF ENV AND VISIBLE,13-May-2019,325097,Neal Soil Suppliers Limited,"6,082.80",Revenue
DIRECT ENVIRONMENT AND HOUSING,GF ENV AND VISIBLE,13-May-2019,325347,Cemex UK Materials Limited,936.32,Revenue
DIRECT ENVIRONMENT AND HOUSING,GF ENV AND VISIBLE,13-May-2019,325600,Calibre Contracting Limited,"1,179.75",Revenue
DIRECT ENVIRONMENT AND HOUSING,GF ENV AND VISIBLE,13-May-2019,325700,Standard Signs & Traffic Systems Limited,"1,458.00",Revenue
DIRECT ENVIRONMENT AND HOUSING,GF PARKS AND GROUNDS,13-May-2019,333200,Dwr Cymru Cyf,818.41,Revenue
DIRECT ENVIRONMENT AND HOUSING,GF PARKS AND GROUNDS,13-May-2019,333600,Dwr Cymru Cyf,"2,101.97",Revenue
DIRECT ENVIRONMENT AND HOUSING,GF ENV AND VISIBLE,13-May-2019,341123,J & HM Dickson Limited,"4,950.00",Revenue
DIRECT ENVIRONMENT AND HOUSING,GF ENV AND VISIBLE,13-May-2019,341123,J & HM Dickson Limited,"4,950.00",Revenue
DIRECT ENVIRONMENT AND HOUSING,GF ENV AND VISIBLE,13-May-2019,341500,Straight Manufactoring Limited,"3,360.00",Revenue
DIRECT ENVIRONMENT AND HOUSING,GF ENV AND VISIBLE,13-May-2019,341500,Cromwell Polythene Limited,"9,628.32",Revenue
DIRECT ENVIRONMENT AND HOUSING,VISIBLE SERVICES,13-May-2019,365786,Easyway Minicoach Hire Limited,"7,764.96",Revenue
DIRECT ENVIRONMENT AND HOUSING,VISIBLE SERVICES,13-May-2019,365787,Cardiff City Transport Services Limited,"6,300.00",Revenue
DIRECT ENVIRONMENT AND HOUSING,VISIBLE SERVICES,13-May-2019,365789,Premier Cars (Cardiff) Limited,768.00,Revenue
DIRECT ENVIRONMENT AND HOUSING,VISIBLE SERVICES,13-May-2019,365790,Premier Cars (Cardiff) Limited,"1,620.00",Revenue
DIRECT ENVIRONMENT AND HOUSING,VISIBLE SERVICES,13-May-2019,365791,Cardiff City Transport Services Limited,"1,475.00",Revenue
DIRECT ENVIRONMENT AND HOUSING,VISIBLE SERVICES,13-May-2019,365791,Cardiff City Transport Services Limited,"2,500.00",Revenue
DIRECT ENVIRONMENT AND HOUSING,VISIBLE SERVICES,13-May-2019,365791,Bus Shelters Limited,"3,966.21",Revenue
DIRECT ENVIRONMENT AND HOUSING,VISIBLE SERVICES,13-May-2019,365791,Easyway Minicoach Hire Limited,"9,575.00",Revenue
DIRECT POLICY,GF GENERAL EXPENDITURE POLICY,13-May-2019,471911,The Vale of Glamorgan Hotel Limited,"3,675.00",Revenue
DIRECT CAPITAL VISIBLE AND HOUSING SERVICES,CAPITAL HRA,13-May-2019,842067,Fusion Electrical & Building Services Engineering Limited,"1,386.00",Capital
DIRECT CAPITAL VISIBLE AND HOUSING SERVICES,CAPITAL HRA,13-May-2019,842067,Fusion Electrical & Building Services Engineering Limited,"1,504.80",Capital
DIRECT CAPITAL VISIBLE AND HOUSING SERVICES,CAPITAL HRA,13-May-2019,842067,Fusion Electrical & Building Services Engineering Limited,"1,633.50",Capital
DIRECT CAPITAL VISIBLE AND HOUSING SERVICES,CAPITAL HRA,13-May-2019,842067,Fusion Electrical & Building Services Engineering Limited,"1,633.50",Capital
DIRECT CAPITAL VISIBLE AND HOUSING SERVICES,CAPITAL HRA,13-May-2019,842067,Fusion Electrical & Building Services Engineering Limited,"1,851.30",Capital
DIRECT CAPITAL VISIBLE AND HOUSING SERVICES,CAPITAL HRA,13-May-2019,842067,Fusion Electrical & Building Services Engineering Limited,"1,934.00",Capital
DIRECT CAPITAL VISIBLE AND HOUSING SERVICES,CAPITAL HRA,13-May-2019,842067,Fusion Electrical & Building Services Engineering Limited,"1,938.01",Capital
DIRECT CAPITAL VISIBLE AND HOUSING SERVICES,CAPITAL HRA,13-May-2019,842116,AFT Group (Wales) Limited T/A Advanced Fire Technologies Limited,717.50,Capital
DIRECT CAPITAL VISIBLE AND HOUSING SERVICES,CAPITAL HRA,13-May-2019,842116,AFT Group (Wales) Limited T/A Advanced Fire Technologies Limited,800.04,Capital
DIRECT CAPITAL VISIBLE AND HOUSING SERVICES,CAPITAL HRA,13-May-2019,842116,AFT Group (Wales) Limited T/A Advanced Fire Technologies Limited,"1,159.82",Capital
DIRECT CAPITAL VISIBLE AND HOUSING SERVICES,CAPITAL HRA,13-May-2019,842116,AFT Group (Wales) Limited T/A Advanced Fire Technologies Limited,"1,159.82",Capital
DIRECT CAPITAL VISIBLE AND HOUSING SERVICES,CAPITAL HRA,13-May-2019,842116,AFT Group (Wales) Limited T/A Advanced Fire Technologies Limited,"1,159.82",Capital
DIRECT CAPITAL VISIBLE AND HOUSING SERVICES,CAPITAL HRA,13-May-2019,842116,AFT Group (Wales) Limited T/A Advanced Fire Technologies Limited,"1,159.82",Capital
DIRECT CAPITAL VISIBLE AND HOUSING SERVICES,CAPITAL HRA,13-May-2019,842116,AFT Group (Wales) Limited T/A Advanced Fire Technologies Limited,"1,159.82",Capital
DIRECT CAPITAL VISIBLE AND HOUSING SERVICES,CAPITAL HRA,13-May-2019,842116,AFT Group (Wales) Limited T/A Advanced Fire Technologies Limited,"1,159.82",Capital
DIRECT CAPITAL VISIBLE AND HOUSING SERVICES,CAPITAL HRA,13-May-2019,842116,AFT Group (Wales) Limited T/A Advanced Fire Technologies Limited,"1,166.32",Capital
DIRECT CAPITAL VISIBLE AND HOUSING SERVICES,CAPITAL HRA,13-May-2019,842116,AFT Group (Wales) Limited T/A Advanced Fire Technologies Limited,"1,166.32",Capital
DIRECT CAPITAL VISIBLE AND HOUSING SERVICES,CAPITAL HRA,13-May-2019,842116,AFT Group (Wales) Limited T/A Advanced Fire Technologies Limited,"1,166.32",Capital
DIRECT CAPITAL VISIBLE AND HOUSING SERVICES,CAPITAL HRA,13-May-2019,842116,AFT Group (Wales) Limited T/A Advanced Fire Technologies Limited,"1,249.57",Capital
DIRECT CAPITAL VISIBLE AND HOUSING SERVICES,CAPITAL HRA,13-May-2019,842116,AFT Group (Wales) Limited T/A Advanced Fire Technologies Limited,"1,249.57",Capital
DIRECT LEARNING AND SKILLS,SCHOOLS NON DELEGATED,13-May-2019,100401,Cardiff County Council,"3,743.36",Revenue
DIRECT LEARNING AND SKILLS,SCHOOLS NON DELEGATED,13-May-2019,100402,Cardiff County Council,"7,209.43",Revenue
DIRECT LEARNING AND SKILLS,SCHOOLS NON DELEGATED,13-May-2019,100403,Cardiff County Council,693.21,Revenue
DIRECT LEARNING AND SKILLS,SCHOOLS NON DELEGATED,13-May-2019,100405,Cardiff County Council,"1,386.43",Revenue
DIRECT SOCIAL SERVICES,GF ADULT SERVICES,13-May-2019,239060,Beverley Winn,"1,920.00",Revenue
DIRECT POLICY,GF CORPORATE POLICY MAKING,13-May-2019,460500,Information Commissioners Office,"2,900.00",Revenue
DIRECT LEARNING AND SKILLS,SCHOOLS NON DELEGATED,13-May-2019,103229,Millennium Personnel Services (Education) Limited,500.00,Revenue
DIRECT MANAGING DIRECTOR AND RESOURCES,GF HUMAN RESOURCES,13-May-2019,140131,Randstad Solutions Limited,"93,133.58",Revenue
DIRECT LEARNING AND SKILLS,ACHIEVEMENT FOR ALL,13-May-2019,102652,Skybound Therapies Limited,"6,434.69",Revenue
DIRECT ENVIRONMENT AND HOUSING,GARAGE,13-May-2019,319010,Ceri Williams t/a Mobile Tyre Services,"3,580.82",Revenue
DIRECT LEARNING AND SKILLS,SCHOOLS DELEGATED,14-May-2019,101145,A & R Contract Cleaning Specialist Limited,992.90,Revenue
DIRECT LEARNING AND SKILLS,SCHOOLS DELEGATED,14-May-2019,101233,Wheadon Group Travel Limited,850.00,Revenue
DIRECT LEARNING AND SKILLS,SCHOOLS DELEGATED,14-May-2019,101233,Community Sports Management Limited t/a Sports Xtra,"2,625.00",Revenue
DIRECT LEARNING AND SKILLS,SCHOOLS DELEGATED,14-May-2019,101315,Siemens Financial Services Limited,629.90,Revenue
DIRECT LEARNING AND SKILLS,SCHOOLS DELEGATED,14-May-2019,102593,Power Electrics Generators Limited,540.00,Revenue
DIRECT LEARNING AND SKILLS,SCHOOLS DELEGATED,14-May-2019,102593,Capital Law Limited,674.00,Revenue
DIRECT LEARNING AND SKILLS,SCHOOLS DELEGATED,14-May-2019,102593,Brotour Limited,740.00,Revenue
DIRECT LEARNING AND SKILLS,SCHOOLS DELEGATED,14-May-2019,102593,Nustream Limited,"3,063.45",Revenue
DIRECT LEARNING AND SKILLS,ACHIEVEMENT FOR ALL,14-May-2019,102671,Barnardo Services Limited,"28,366.70",Revenue
DIRECT MANAGING DIRECTOR AND RESOURCES,GF HUMAN RESOURCES,14-May-2019,140117,GlaxoSmithKline UK Limited,649.50,Revenue
DIRECT MANAGING DIRECTOR AND RESOURCES,GF HUMAN RESOURCES,14-May-2019,140117,GlaxoSmithKline UK Limited,"2,598.40",Revenue
DIRECT LEARNING AND SKILLS,GF CATERING,14-May-2019,150401,WR Bishop (Tonyrefail) Limited,"1,492.97",Revenue
DIRECT LEARNING AND SKILLS,GF CATERING,14-May-2019,150401,Castell Howell Foods Limited,"9,336.18",Revenue
DIRECT LEARNING AND SKILLS,GF CATERING,14-May-2019,150401,Brake Bros Limited,"14,475.92",Revenue
DIRECT LEARNING AND SKILLS,GF CATERING,14-May-2019,150671,The Real Wrap Co. Limited,572.37,Revenue
DIRECT LEARNING AND SKILLS,GF CATERING,14-May-2019,150671,Peter's Food Service Limited,914.12,Revenue
DIRECT LEARNING AND SKILLS,GF CATERING,14-May-2019,150671,Chapple & Jenkins Limited,"1,951.30",Revenue
DIRECT LEARNING AND SKILLS,GF CATERING,14-May-2019,150671,Castell Howell Foods Limited,"4,219.14",Revenue
DIRECT LEARNING AND SKILLS,GF CATERING,14-May-2019,150671,Brake Bros Limited,"6,749.57",Revenue
DIRECT LEARNING AND SKILLS,GF CATERING,14-May-2019,150677,Civica UK Limited,863.78,Revenue
DIRECT LEARNING AND SKILLS,GF CATERING,14-May-2019,150678,Civica UK Limited,789.69,Revenue
DIRECT LEARNING AND SKILLS,GF CATERING,14-May-2019,150680,Civica UK Limited,821.09,Revenue
DIRECT LEARNING AND SKILLS,GF CATERING,14-May-2019,150690,Civica UK Limited,695.02,Revenue
DIRECT LEARNING AND SKILLS,GF CATERING,14-May-2019,150695,Civica UK Limited,610.21,Revenue
DIRECT LEARNING AND SKILLS,GF CATERING,14-May-2019,154401,DairyLink UK Limited,"8,180.30",Revenue
DIRECT LEARNING AND SKILLS,GF CATERING,14-May-2019,157800,Castell Howell Foods Limited,"1,126.54",Revenue
DIRECT SOCIAL SERVICES,GF RESOURCES MANAGEMENT & SAFEGUARDING,14-May-2019,212731,Castell Howell Foods Limited,558.52,Revenue
DIRECT SOCIAL SERVICES,GF ADULT SERVICES,14-May-2019,215489,Grangelodge Residential Home Limited t/a Grangelodge,533.36,Revenue
DIRECT SOCIAL SERVICES,GF ADULT SERVICES,14-May-2019,216179,Grangelodge Residential Home Limited t/a Grangelodge,851.05,Revenue
DIRECT SOCIAL SERVICES,GF ADULT SERVICES,14-May-2019,217541,Care Management Group Limited,"89,213.81",Revenue
DIRECT SOCIAL SERVICES,GF ADULT SERVICES,14-May-2019,217909,Valeplus (Cymru) & Valeplus Extra,"1,092.42",Revenue
DIRECT SOCIAL SERVICES,GF ADULT SERVICES,14-May-2019,217909,Consensus Support Services Limited t/a Ty Machen,"2,353.68",Revenue
DIRECT SOCIAL SERVICES,GF RESOURCES MANAGEMENT & SAFEGUARDING,14-May-2019,218302,Training In Mind Limited,"1,969.43",Revenue
DIRECT SOCIAL SERVICES,GF RESOURCES MANAGEMENT & SAFEGUARDING,14-May-2019,218302,Training In Mind Limited,"3,835.95",Revenue
DIRECT SOCIAL SERVICES,GF RESOURCES MANAGEMENT & SAFEGUARDING,14-May-2019,239030,Promo Cymru Trading Limited,"4,687.50",Revenue
DIRECT SOCIAL SERVICES,GF RESOURCES MANAGEMENT & SAFEGUARDING,14-May-2019,239030,Promo Cymru Trading Limited,"4,687.50",Revenue
DIRECT SOCIAL SERVICES,GF RESOURCES MANAGEMENT & SAFEGUARDING,14-May-2019,239032,Action for Children Services Limited,"26,250.00",Revenue
DIRECT SOCIAL SERVICES,GF RESOURCES MANAGEMENT & SAFEGUARDING,14-May-2019,239043,Jane Moore Associates Limited,"5,066.80",Revenue
DIRECT SOCIAL SERVICES,GF CHILDREN SERVICES,14-May-2019,260050,Vale Solicitors Limited,500.00,Revenue
DIRECT SOCIAL SERVICES,GF CHILDREN SERVICES,14-May-2019,260050,E4Law Limited t/a Lextox,623.25,Revenue
DIRECT SOCIAL SERVICES,GF CHILDREN SERVICES,14-May-2019,260060,ATS Care Limited,"11,000.00",Revenue
DIRECT SOCIAL SERVICES,GF CHILDREN SERVICES,14-May-2019,260180,Signis Limited,650.00,Revenue
DIRECT SOCIAL SERVICES,GF CHILDREN SERVICES,14-May-2019,260220,RGT Training & Consultancy Limited,745.00,Revenue
DIRECT ENVIRONMENT AND HOUSING,OVERHEAD,14-May-2019,301050,Dragon Pump Services Limited,811.32,Revenue
DIRECT ENVIRONMENT AND HOUSING,HOUSING - HRA,14-May-2019,303910,SMK Building & Maintenance Limited,548.00,Revenue
DIRECT ENVIRONMENT AND HOUSING,HOUSING - HRA,14-May-2019,303910,SMK Building & Maintenance Limited,548.00,Revenue
DIRECT ENVIRONMENT AND HOUSING,PUBLIC BUILDINGS,14-May-2019,303931,LNC Floor Coverings Limited,"4,426.00",Revenue
DIRECT ENVIRONMENT AND HOUSING,PUBLIC BUILDINGS,14-May-2019,303950,ARC Electrical Engineering Solutions Limited,"2,354.00",Revenue
DIRECT ENVIRONMENT AND HOUSING,HOUSING - MRA,14-May-2019,304103,Custom Steel Design Limited,800.00,Revenue
DIRECT ENVIRONMENT AND HOUSING,HOUSING - MRA,14-May-2019,305777,SMK Building & Maintenance Limited,"17,436.73",Revenue
DIRECT ENVIRONMENT AND HOUSING,HOUSING - MRA,14-May-2019,305797,SMK Building & Maintenance Limited,"5,629.87",Revenue
DIRECT ENVIRONMENT AND HOUSING,PUBLIC BUILDINGS,14-May-2019,305848,Kabin Hire Limited,963.80,Revenue
DIRECT ENVIRONMENT AND HOUSING,PUBLIC BUILDINGS,14-May-2019,305853,LNC Floor Coverings Limited,"5,768.00",Revenue
DIRECT ENVIRONMENT AND HOUSING,GF ENV AND VISIBLE,14-May-2019,325207,Consortio Security Limited,"3,183.21",Revenue
DIRECT ENVIRONMENT AND HOUSING,GF ENV AND VISIBLE,14-May-2019,325207,Consortio Security Limited,"3,689.28",Revenue
DIRECT ENVIRONMENT AND HOUSING,GF ENV AND VISIBLE,14-May-2019,325600,Calibre Contracting Limited,863.31,Revenue
DIRECT ENVIRONMENT AND HOUSING,GF ENV AND VISIBLE,14-May-2019,325790,Calibre Contracting Limited,"1,022.20",Revenue
DIRECT ENVIRONMENT AND HOUSING,GF ENV AND VISIBLE,14-May-2019,325852,Nolan Roadmarking Limited,"1,191.53",Revenue
DIRECT ENVIRONMENT AND HOUSING,GF ENV AND VISIBLE,14-May-2019,325852,Nolan Roadmarking Limited,"1,584.74",Revenue
DIRECT ENVIRONMENT AND HOUSING,GF PARKS AND GROUNDS,14-May-2019,333013,The Firewood Company (UK) Limited T/A Esa Tree Care,"1,630.00",Revenue
DIRECT ENVIRONMENT AND HOUSING,GF PARKS AND GROUNDS,14-May-2019,333154,The Firewood Company (UK) Limited T/A Esa Tree Care,"1,680.00",Revenue
DIRECT ENVIRONMENT AND HOUSING,GF PARKS AND GROUNDS,14-May-2019,333218,Surface Performance Limited,"1,700.00",Revenue
DIRECT ENVIRONMENT AND HOUSING,REGULATORY SERVICES SHARED SERVICES,14-May-2019,403107,Sartorius UK Limited,"-19,861.90",Revenue
DIRECT ENVIRONMENT AND HOUSING,REGULATORY SERVICES SHARED SERVICES,14-May-2019,403107,Sartorius UK Limited,"19,304.90",Revenue
DIRECT ENVIRONMENT AND HOUSING,REGULATORY SERVICES SHARED SERVICES,14-May-2019,403107,Sartorius UK Limited,"19,861.90",Revenue
DIRECT ENVIRONMENT AND HOUSING,REGULATORY SERVICES SHARED SERVICES,14-May-2019,403177,Veterinary Locums South Wales Limited,584.75,Revenue
DIRECT ENVIRONMENT AND HOUSING,REGULATORY SERVICES SHARED SERVICES,14-May-2019,403217,Astutis Limited,"1,588.00",Revenue
DIRECT ENVIRONMENT AND HOUSING,GF HOUSING SERVICES,14-May-2019,405100,Seabreeze Property Limited T/A Alexandra Guest House,600.00,Revenue
DIRECT ENVIRONMENT AND HOUSING,HRA REPAIRS,14-May-2019,409103,Heatforce (Wales) Limited,"3,798.50",Revenue
DIRECT ENVIRONMENT AND HOUSING,HRA REPAIRS,14-May-2019,409103,Heatforce (Wales) Limited,"15,408.10",Revenue
DIRECT ENVIRONMENT AND HOUSING,HRA REPAIRS,14-May-2019,409103,Heatforce (Wales) Limited,"15,978.33",Revenue
DIRECT MANAGING DIRECTOR AND RESOURCES,GF RESOURCES,14-May-2019,420220,MISL Limited,934.25,Revenue
DIRECT MANAGING DIRECTOR AND RESOURCES,GF RESOURCES,14-May-2019,421230,Complete Business Solutions Group Limited,657.00,Revenue
DIRECT MANAGING DIRECTOR AND RESOURCES,GF RESOURCES,14-May-2019,422100,Brecongate Projects Limited t/a Brecongate Building Solutions,600.00,Revenue
DIRECT LEARNING AND SKILLS,ACHIEVEMENT FOR ALL,14-May-2019,440615,Future Childcare Training Limited,"2,030.95",Revenue
DIRECT CAPITAL LEARN AND SKILLS,CAPITAL SCHOOLS,14-May-2019,810118,AECOM Limited,"5,635.00",Capital
DIRECT CAPITAL LEARN AND SKILLS,CAPITAL SCHOOLS,14-May-2019,810119,AECOM Limited,"5,630.98",Capital
DIRECT CAPITAL POLICY,CAPITAL POLICY,14-May-2019,852237,Phoenix Software Limited,950.00,Capital
DIRECT CAPITAL POLICY,CAPITAL POLICY,14-May-2019,852263,Elliott Electrical Limited,"7,384.00",Capital
DIRECT CAPITAL POLICY,CAPITAL POLICY,14-May-2019,852264,Tomorrows Energy Limited,"1,000.00",Capital
DIRECT SOCIAL SERVICES,GF ADULT SERVICES,14-May-2019,216191,Cardiff County Council,"31,009.50",Revenue
DIRECT SOCIAL SERVICES,GF RESOURCES MANAGEMENT & SAFEGUARDING,14-May-2019,239781,Cardiff County Council,"35,635.60",Revenue
NEW REGENERATION,REGENERATION & PLANNING,14-May-2019,359457,Leanne Witts & Ptn t/a Girl & Boy Studio,575.00,Revenue
NEW REGENERATION,REGENERATION & PLANNING,14-May-2019,359750,Leanne Witts & Ptn t/a Girl & Boy Studio,"4,375.00",Revenue
DIRECT LEARNING AND SKILLS,ACHIEVEMENT FOR ALL,14-May-2019,190052,Gillian Munro,500.00,Revenue
DIRECT SOCIAL SERVICES,GF ADULT SERVICES,14-May-2019,216181,Cardiff & Vale University Local Health Board,"4,417.84",Revenue
DIRECT ENVIRONMENT AND HOUSING,GF ENV AND VISIBLE,14-May-2019,323200,HM Courts & Tribunals Service - Traffic Enforcement Centre,"2,000.00",Revenue
DIRECT LEARNING AND SKILLS,SCHOOLS DELEGATED,14-May-2019,101095,New Directions (Education) Limited,538.00,Revenue
DIRECT LEARNING AND SKILLS,SCHOOLS DELEGATED,14-May-2019,101145,Celtic Teachers Limited,668.65,Revenue
DIRECT LEARNING AND SKILLS,SCHOOLS DELEGATED,14-May-2019,101145,Celtic Teachers Limited,"1,298.19",Revenue
DIRECT LEARNING AND SKILLS,SCHOOLS NON DELEGATED,14-May-2019,103285,Bay Resourcing Limited,616.88,Revenue
DIRECT SOCIAL SERVICES,GF CHILDREN SERVICES,14-May-2019,260210,Liquid Personnel Limited,"1,336.20",Revenue
DIRECT SOCIAL SERVICES,GF CHILDREN SERVICES,14-May-2019,260210,Liquid Personnel Limited,"1,432.78",Revenue
DIRECT ENVIRONMENT AND HOUSING,GF HOUSING SERVICES,14-May-2019,405001,James Andrews Recruitment Solutions Limited,661.06,Revenue
DIRECT ENVIRONMENT AND HOUSING,HRA MANAGEMENT,14-May-2019,407119,Hays Specialist Recruitment Limited,"1,090.04",Revenue
DIRECT ENVIRONMENT AND HOUSING,HRA MANAGEMENT,14-May-2019,407119,Hays Specialist Recruitment Limited,"1,256.30",Revenue
DIRECT SOCIAL SERVICES,GF ADULT SERVICES,14-May-2019,215489,Llangoedmor Properties Limited T/A Parkside Residential Home,500.63,Revenue
DIRECT SOCIAL SERVICES,GF ADULT SERVICES,14-May-2019,215489,Oakville Care Limited t/a Romilly Nursing Home,500.96,Revenue
DIRECT SOCIAL SERVICES,GF ADULT SERVICES,14-May-2019,215489,Middlepatch Limited T/A College Fields Nursing Home,501.38,Revenue
DIRECT SOCIAL SERVICES,GF ADULT SERVICES,14-May-2019,215489,Middlepatch Limited T/A College Fields Nursing Home,504.30,Revenue
DIRECT SOCIAL SERVICES,GF ADULT SERVICES,14-May-2019,215489,Bellavista Nursing Homes (Wales) Limited t/a Bellavista Care Home,507.05,Revenue
DIRECT SOCIAL SERVICES,GF ADULT SERVICES,14-May-2019,215489,Springbank Care Home Limited T/A Springbank Nursing Home,508.51,Revenue
DIRECT SOCIAL SERVICES,GF ADULT SERVICES,14-May-2019,215489,Springbank Care Home Limited T/A Springbank Nursing Home,514.48,Revenue
DIRECT SOCIAL SERVICES,GF ADULT SERVICES,14-May-2019,215489,Waverley Care Centre Limited,516.48,Revenue
DIRECT SOCIAL SERVICES,GF ADULT SERVICES,14-May-2019,215489,Hebron Hall Limited,516.90,Revenue
DIRECT SOCIAL SERVICES,GF ADULT SERVICES,14-May-2019,215489,Waverley Care Centre Limited,518.25,Revenue
DIRECT SOCIAL SERVICES,GF ADULT SERVICES,14-May-2019,215489,Middlepatch Limited T/A College Fields Nursing Home,518.74,Revenue
DIRECT SOCIAL SERVICES,GF ADULT SERVICES,14-May-2019,215489,The Manor House St Hilary Limited T/A Milsom House,522.42,Revenue
DIRECT SOCIAL SERVICES,GF ADULT SERVICES,14-May-2019,215489,Bellavista Care (Cardiff) Limited T/A Bellavista Nursing Home Cardiff,524.19,Revenue
DIRECT SOCIAL SERVICES,GF ADULT SERVICES,14-May-2019,215489,Springbank Care Home Limited T/A Springbank Nursing Home,526.43,Revenue
DIRECT SOCIAL SERVICES,GF ADULT SERVICES,14-May-2019,215489,MHA Care Group t/a Morel Court,527.59,Revenue
DIRECT SOCIAL SERVICES,GF ADULT SERVICES,14-May-2019,215489,Waverley Care Centre Limited,528.69,Revenue
DIRECT SOCIAL SERVICES,GF ADULT SERVICES,14-May-2019,215489,Northcote Developments Limited,531.92,Revenue
DIRECT SOCIAL SERVICES,GF ADULT SERVICES,14-May-2019,215489,Baltimore Care Limited,532.65,Revenue
DIRECT SOCIAL SERVICES,GF ADULT SERVICES,14-May-2019,215489,Broadway Care Centre Limited T/A Hazelhurst Nursing Home,532.65,Revenue
DIRECT SOCIAL SERVICES,GF ADULT SERVICES,14-May-2019,215489,Harrison Care Enterprises Barry Limited t/a Island View,532.65,Revenue
DIRECT SOCIAL SERVICES,GF ADULT SERVICES,14-May-2019,215489,Llangoedmor Properties Limited T/A Parkside Residential Home,532.65,Revenue
DIRECT SOCIAL SERVICES,GF ADULT SERVICES,14-May-2019,215489,Baltimore Care Limited,533.25,Revenue
DIRECT SOCIAL SERVICES,GF ADULT SERVICES,14-May-2019,215489,Hafod Housing Association Limited T/A Brocastle Manor (Care Home),533.68,Revenue
DIRECT SOCIAL SERVICES,GF ADULT SERVICES,14-May-2019,215489,The Manor House St Hilary Limited T/A Milsom House,534.31,Revenue
DIRECT SOCIAL SERVICES,GF ADULT SERVICES,14-May-2019,215489,Northcote Developments Limited,534.54,Revenue
DIRECT SOCIAL SERVICES,GF ADULT SERVICES,14-May-2019,215489,Middlepatch Limited T/A College Fields Nursing Home,535.80,Revenue
DIRECT SOCIAL SERVICES,GF ADULT SERVICES,14-May-2019,215489,Waverley Care Centre Limited,535.83,Revenue
DIRECT SOCIAL SERVICES,GF ADULT SERVICES,14-May-2019,215489,Northcote Developments Limited,537.07,Revenue
DIRECT SOCIAL SERVICES,GF ADULT SERVICES,14-May-2019,215489,Middlepatch Limited T/A College Fields Nursing Home,538.39,Revenue
DIRECT SOCIAL SERVICES,GF ADULT SERVICES,14-May-2019,215489,Baltimore Care Limited,542.65,Revenue
DIRECT SOCIAL SERVICES,GF ADULT SERVICES,14-May-2019,215489,Northcote Developments Limited,544.80,Revenue
DIRECT SOCIAL SERVICES,GF ADULT SERVICES,14-May-2019,215489,MHA Care Group t/a Morel Court,547.47,Revenue
DIRECT SOCIAL SERVICES,GF ADULT SERVICES,14-May-2019,215489,Springbank Care Home Limited T/A Springbank Nursing Home,557.39,Revenue
DIRECT SOCIAL SERVICES,GF ADULT SERVICES,14-May-2019,215489,Waverley Care Centre Limited,557.84,Revenue
DIRECT SOCIAL SERVICES,GF ADULT SERVICES,14-May-2019,215489,Waverley Care Centre Limited,559.25,Revenue
DIRECT SOCIAL SERVICES,GF ADULT SERVICES,14-May-2019,215489,Middlepatch Limited T/A College Fields Nursing Home,560.41,Revenue
DIRECT SOCIAL SERVICES,GF ADULT SERVICES,14-May-2019,215489,Waverley Care Centre Limited,562.32,Revenue
DIRECT SOCIAL SERVICES,GF ADULT SERVICES,14-May-2019,215489,Middlepatch Limited T/A College Fields Nursing Home,566.94,Revenue
DIRECT SOCIAL SERVICES,GF ADULT SERVICES,14-May-2019,215489,Waverley Care Centre Limited,572.64,Revenue
DIRECT SOCIAL SERVICES,GF ADULT SERVICES,14-May-2019,215489,Llangoedmor Properties Limited T/A Parkside Residential Home,572.90,Revenue
DIRECT SOCIAL SERVICES,GF ADULT SERVICES,14-May-2019,215489,Acorn Luxury Care Limited,579.82,Revenue
DIRECT SOCIAL SERVICES,GF ADULT SERVICES,14-May-2019,215489,Beatrice Webb Residential Home,587.00,Revenue
DIRECT SOCIAL SERVICES,GF ADULT SERVICES,14-May-2019,215489,Middlepatch Limited T/A College Fields Nursing Home,605.60,Revenue
DIRECT SOCIAL SERVICES,GF ADULT SERVICES,14-May-2019,215489,Waverley Care Centre Limited,606.00,Revenue
DIRECT SOCIAL SERVICES,GF ADULT SERVICES,14-May-2019,215489,Waverley Care Centre Limited,607.00,Revenue
DIRECT SOCIAL SERVICES,GF ADULT SERVICES,14-May-2019,215489,Springbank Care Home Limited T/A Springbank Nursing Home,612.66,Revenue
DIRECT SOCIAL SERVICES,GF ADULT SERVICES,14-May-2019,215489,Middlepatch Limited T/A College Fields Nursing Home,614.41,Revenue
DIRECT SOCIAL SERVICES,GF ADULT SERVICES,14-May-2019,215489,Middlepatch Limited T/A College Fields Nursing Home,616.01,Revenue
DIRECT SOCIAL SERVICES,GF ADULT SERVICES,14-May-2019,215489,Middlepatch Limited T/A College Fields Nursing Home,619.13,Revenue
DIRECT SOCIAL SERVICES,GF ADULT SERVICES,14-May-2019,215489,Middlepatch Limited T/A College Fields Nursing Home,622.29,Revenue
DIRECT SOCIAL SERVICES,GF ADULT SERVICES,14-May-2019,215489,MHA Care Group t/a Morel Court,622.61,Revenue
DIRECT SOCIAL SERVICES,GF ADULT SERVICES,14-May-2019,215489,Waverley Care Centre Limited,623.95,Revenue
DIRECT SOCIAL SERVICES,GF ADULT SERVICES,14-May-2019,215489,Middlepatch Limited T/A College Fields Nursing Home,624.19,Revenue
DIRECT SOCIAL SERVICES,GF ADULT SERVICES,14-May-2019,215489,Middlepatch Limited T/A College Fields Nursing Home,624.19,Revenue
DIRECT SOCIAL SERVICES,GF ADULT SERVICES,14-May-2019,215489,Middlepatch Limited T/A College Fields Nursing Home,624.19,Revenue
DIRECT SOCIAL SERVICES,GF ADULT SERVICES,14-May-2019,215489,Middlepatch Limited T/A College Fields Nursing Home,624.19,Revenue
DIRECT SOCIAL SERVICES,GF ADULT SERVICES,14-May-2019,215489,Middlepatch Limited T/A College Fields Nursing Home,624.19,Revenue
DIRECT SOCIAL SERVICES,GF ADULT SERVICES,14-May-2019,215489,Middlepatch Limited T/A College Fields Nursing Home,625.79,Revenue
DIRECT SOCIAL SERVICES,GF ADULT SERVICES,14-May-2019,215489,Middlepatch Limited T/A College Fields Nursing Home,634.20,Revenue
DIRECT SOCIAL SERVICES,GF ADULT SERVICES,14-May-2019,215489,Springbank Care Home Limited T/A Springbank Nursing Home,648.26,Revenue
DIRECT SOCIAL SERVICES,GF ADULT SERVICES,14-May-2019,215489,Springbank Care Home Limited T/A Springbank Nursing Home,684.15,Revenue
DIRECT SOCIAL SERVICES,GF ADULT SERVICES,14-May-2019,215489,Glamorgan Care Limited t/a Danygraig House,690.00,Revenue
DIRECT SOCIAL SERVICES,GF ADULT SERVICES,14-May-2019,215489,Waverley Care Centre Limited,695.59,Revenue
DIRECT SOCIAL SERVICES,GF ADULT SERVICES,14-May-2019,215489,Bellavista Care (Cardiff) Limited T/A Bellavista Nursing Home Cardiff,710.33,Revenue
DIRECT SOCIAL SERVICES,GF ADULT SERVICES,14-May-2019,215489,Waverley Care Centre Limited,736.79,Revenue
DIRECT SOCIAL SERVICES,GF ADULT SERVICES,14-May-2019,215489,Waverley Care Centre Limited,736.79,Revenue
DIRECT SOCIAL SERVICES,GF ADULT SERVICES,14-May-2019,215489,Forge Care Homes Limited t/a The Forge Care Centre,925.00,Revenue
DIRECT SOCIAL SERVICES,GF ADULT SERVICES,14-May-2019,216179,Springbank Care Home Limited T/A Springbank Nursing Home,507.05,Revenue
DIRECT SOCIAL SERVICES,GF ADULT SERVICES,14-May-2019,216179,Crusader Medical Care Limited T/A St Saviours Nursing Home,561.05,Revenue
DIRECT SOCIAL SERVICES,GF ADULT SERVICES,14-May-2019,216179,Bellavista Nursing Homes (Wales) Limited t/a Bellavista Care Home,571.45,Revenue
DIRECT SOCIAL SERVICES,GF ADULT SERVICES,14-May-2019,216179,Springbank Care Home Limited T/A Springbank Nursing Home,793.10,Revenue
DIRECT SOCIAL SERVICES,GF ADULT SERVICES,14-May-2019,216179,Leonard Cheshire Disability,"1,248.73",Revenue
DIRECT SOCIAL SERVICES,GF ADULT SERVICES,14-May-2019,216179,Llysywaun Limited t/a Bayview Lodge Nursing Home,"1,340.33",Revenue
DIRECT SOCIAL SERVICES,GF ADULT SERVICES,14-May-2019,216179,Voyage 1 Limited t/a Falcons Rest & Poachers Cottage,"1,780.75",Revenue
DIRECT SOCIAL SERVICES,GF ADULT SERVICES,14-May-2019,216179,Care 4 U (Neath) Limited,"1,806.90",Revenue
DIRECT SOCIAL SERVICES,GF ADULT SERVICES,14-May-2019,216179,Amethyst Healthcare Limited t/a Hillstone House,"1,874.12",Revenue
DIRECT SOCIAL SERVICES,GF ADULT SERVICES,14-May-2019,216179,Valebrook Care Homes Limited,"1,909.55",Revenue
DIRECT SOCIAL SERVICES,GF ADULT SERVICES,14-May-2019,216179,Voyage 1 Limited t/a Brook Lodge,"2,606.71",Revenue
DIRECT SOCIAL SERVICES,GF ADULT SERVICES,14-May-2019,217909,Broadway Care Centre Limited T/A Hazelhurst Nursing Home,523.15,Revenue
DIRECT SOCIAL SERVICES,GF ADULT SERVICES,14-May-2019,217909,Broadway Care Centre Limited T/A Hazelhurst Nursing Home,534.51,Revenue
DIRECT SOCIAL SERVICES,GF ADULT SERVICES,14-May-2019,217909,Ocean Community Services Limited t/a Westminster Court Care Home,542.38,Revenue
DIRECT SOCIAL SERVICES,GF ADULT SERVICES,14-May-2019,217909,Glasallt Fawr Camphill Centre,"1,046.12",Revenue
DIRECT SOCIAL SERVICES,GF ADULT SERVICES,14-May-2019,217909,The Cedars Care Services Limited T/A Ashgrove Care Home,"1,056.04",Revenue
DIRECT SOCIAL SERVICES,GF ADULT SERVICES,14-May-2019,217909,The Cedars Care Services Limited T/A Oaklands,"1,092.99",Revenue
DIRECT SOCIAL SERVICES,GF ADULT SERVICES,14-May-2019,217909,Vale Phoenix Limited,"1,145.13",Revenue
DIRECT SOCIAL SERVICES,GF ADULT SERVICES,14-May-2019,217909,Vale Phoenix Limited,"1,184.41",Revenue
DIRECT SOCIAL SERVICES,GF ADULT SERVICES,14-May-2019,217909,Glasallt Fawr Camphill Centre,"1,252.24",Revenue
DIRECT SOCIAL SERVICES,GF ADULT SERVICES,14-May-2019,217909,Heatherleigh Care Limited t/a 106 Splott Road,"1,296.52",Revenue
DIRECT SOCIAL SERVICES,GF ADULT SERVICES,14-May-2019,217909,The Cedars Care Services Limited t/a The Cedars,"1,446.35",Revenue
DIRECT SOCIAL SERVICES,GF ADULT SERVICES,14-May-2019,217909,Valebrook Care Homes Limited,"1,492.18",Revenue
DIRECT SOCIAL SERVICES,GF ADULT SERVICES,14-May-2019,217909,Valebrook Care Homes Limited,"1,522.85",Revenue
DIRECT SOCIAL SERVICES,GF ADULT SERVICES,14-May-2019,217909,Amethyst Healthcare Limited t/a Hillstone House,"1,548.83",Revenue
DIRECT SOCIAL SERVICES,GF ADULT SERVICES,14-May-2019,217909,Heatherleigh Care Limited t/a 106 Splott Road,"1,656.71",Revenue
DIRECT SOCIAL SERVICES,GF ADULT SERVICES,14-May-2019,217909,The Cedars Care Services Limited t/a The Cedars,"1,669.12",Revenue
DIRECT SOCIAL SERVICES,GF ADULT SERVICES,14-May-2019,217909,Valebrook Care Homes Limited,"1,750.87",Revenue
DIRECT SOCIAL SERVICES,GF ADULT SERVICES,14-May-2019,217909,Amethyst Healthcare Limited t/a Hillstone House,"1,779.76",Revenue
DIRECT SOCIAL SERVICES,GF ADULT SERVICES,14-May-2019,217909,Accomplish Group Limited t/a Cedar House,"1,812.93",Revenue
DIRECT SOCIAL SERVICES,GF ADULT SERVICES,14-May-2019,217909,Llysywaun Limited t/a Bayview Lodge Nursing Home,"1,821.45",Revenue
DIRECT SOCIAL SERVICES,GF ADULT SERVICES,14-May-2019,217909,Valebrook Care Homes Limited,"1,861.19",Revenue
DIRECT SOCIAL SERVICES,GF ADULT SERVICES,14-May-2019,217909,Valebrook Care Homes Limited,"1,910.35",Revenue
DIRECT SOCIAL SERVICES,GF ADULT SERVICES,14-May-2019,217909,The Cedars Care Services Limited t/a Sycamore House,"1,915.42",Revenue
DIRECT SOCIAL SERVICES,GF ADULT SERVICES,14-May-2019,217909,Accomplish Group Limited,"1,928.22",Revenue
DIRECT SOCIAL SERVICES,GF ADULT SERVICES,14-May-2019,217909,Valebrook Care Homes Limited,"2,116.17",Revenue
DIRECT SOCIAL SERVICES,GF ADULT SERVICES,14-May-2019,217909,The Cedars Care Services Limited T/A Ashgrove Care Home,"2,235.31",Revenue
DIRECT SOCIAL SERVICES,GF ADULT SERVICES,14-May-2019,217909,Accomplish Group Limited,"2,271.33",Revenue
DIRECT SOCIAL SERVICES,GF ADULT SERVICES,14-May-2019,218321,Isman & Kinze Essa T/A Haven House,507.25,Revenue
DIRECT SOCIAL SERVICES,GF ADULT SERVICES,14-May-2019,218321,Liam George t/a Claremont Care Home,523.05,Revenue
DIRECT SOCIAL SERVICES,GF ADULT SERVICES,14-May-2019,218321,Sanda Mitchel & Ptn t/a Canola House Residential Home,523.05,Revenue
DIRECT SOCIAL SERVICES,GF ADULT SERVICES,14-May-2019,218321,Harrison Care Enterprises Barry Limited t/a Island View,547.40,Revenue
DIRECT SOCIAL SERVICES,GF ADULT SERVICES,14-May-2019,218321,Adriana Limited T/A The Priory Nursing Home,608.00,Revenue
DIRECT SOCIAL SERVICES,GF ADULT SERVICES,14-May-2019,218321,J and P Residential Homes Limited T/A Monkstone House,622.00,Revenue
DIRECT SOCIAL SERVICES,GF ADULT SERVICES,14-May-2019,218321,Sanda Mitchel & Ptn t/a Canola House Residential Home,622.00,Revenue
DIRECT SOCIAL SERVICES,GF ADULT SERVICES,14-May-2019,218321,Hafod Care Association Limited,645.50,Revenue
DIRECT SOCIAL SERVICES,GF ADULT SERVICES,14-May-2019,218321,Waverley Care Centre Limited,783.12,Revenue
DIRECT SOCIAL SERVICES,GF ADULT SERVICES,14-May-2019,218321,Waverley Care Centre Limited,814.04,Revenue
DIRECT SOCIAL SERVICES,GF ADULT SERVICES,14-May-2019,218419,Harrison Care Enterprises Barry Limited t/a Island View,501.06,Revenue
DIRECT SOCIAL SERVICES,GF ADULT SERVICES,14-May-2019,218419,Northcote Developments Limited,506.00,Revenue
DIRECT SOCIAL SERVICES,GF ADULT SERVICES,14-May-2019,218419,Northcote Developments Limited,508.88,Revenue
DIRECT SOCIAL SERVICES,GF ADULT SERVICES,14-May-2019,218419,Hebron Hall Limited,514.21,Revenue
DIRECT SOCIAL SERVICES,GF ADULT SERVICES,14-May-2019,218419,E & E Homes Limited T/A Cliffhaven Residential Home,515.71,Revenue
DIRECT SOCIAL SERVICES,GF ADULT SERVICES,14-May-2019,218419,Harrison Care Enterprises Barry Limited t/a Island View,516.07,Revenue
DIRECT SOCIAL SERVICES,GF ADULT SERVICES,14-May-2019,218419,Hebron Hall Limited,519.51,Revenue
DIRECT SOCIAL SERVICES,GF ADULT SERVICES,14-May-2019,218419,Baltimore Care Limited,520.13,Revenue
DIRECT SOCIAL SERVICES,GF ADULT SERVICES,14-May-2019,218419,Baltimore Care Limited,522.59,Revenue
DIRECT SOCIAL SERVICES,GF ADULT SERVICES,14-May-2019,218419,Bellavista Care (Cardiff) Limited T/A Bellavista Nursing Home Cardiff,524.57,Revenue
DIRECT SOCIAL SERVICES,GF ADULT SERVICES,14-May-2019,218419,June Zehetmayr t/a Tower Hill Residential Home,524.89,Revenue
DIRECT SOCIAL SERVICES,GF ADULT SERVICES,14-May-2019,218419,Harrison Care Enterprises Barry Limited t/a Island View,525.72,Revenue
DIRECT SOCIAL SERVICES,GF ADULT SERVICES,14-May-2019,218419,Llangoedmor Properties Limited T/A Parkside Residential Home,528.68,Revenue
DIRECT SOCIAL SERVICES,GF ADULT SERVICES,14-May-2019,218419,Baltimore Care Limited,529.93,Revenue
DIRECT SOCIAL SERVICES,GF ADULT SERVICES,14-May-2019,218419,June Zehetmayr t/a Tower Hill Residential Home,530.75,Revenue
DIRECT SOCIAL SERVICES,GF ADULT SERVICES,14-May-2019,218419,Harrison Care Enterprises Barry Limited t/a Island View,531.15,Revenue
DIRECT SOCIAL SERVICES,GF ADULT SERVICES,14-May-2019,218419,Harrison Care Enterprises Barry Limited t/a Island View,532.49,Revenue
DIRECT SOCIAL SERVICES,GF ADULT SERVICES,14-May-2019,218419,Harrison Care Enterprises Barry Limited t/a Island View,532.65,Revenue
DIRECT SOCIAL SERVICES,GF ADULT SERVICES,14-May-2019,218419,Harrison Care Enterprises Barry Limited t/a Island View,532.65,Revenue
DIRECT SOCIAL SERVICES,GF ADULT SERVICES,14-May-2019,218419,Harrison Care Enterprises Barry Limited t/a Island View,532.65,Revenue
DIRECT SOCIAL SERVICES,GF ADULT SERVICES,14-May-2019,218419,Harrison Care Enterprises Barry Limited t/a Island View,532.65,Revenue
DIRECT SOCIAL SERVICES,GF ADULT SERVICES,14-May-2019,218419,June Zehetmayr t/a Tower Hill Residential Home,532.65,Revenue
DIRECT SOCIAL SERVICES,GF ADULT SERVICES,14-May-2019,218419,Waverley Care Centre Limited,532.65,Revenue
DIRECT SOCIAL SERVICES,GF ADULT SERVICES,14-May-2019,218419,Hebron Hall Limited,534.65,Revenue
DIRECT SOCIAL SERVICES,GF ADULT SERVICES,14-May-2019,218419,June Zehetmayr t/a Tower Hill Residential Home,535.57,Revenue
DIRECT SOCIAL SERVICES,GF ADULT SERVICES,14-May-2019,218419,Baltimore Care Limited,540.65,Revenue
DIRECT SOCIAL SERVICES,GF ADULT SERVICES,14-May-2019,218419,Baltimore Care Limited,543.65,Revenue
DIRECT SOCIAL SERVICES,GF ADULT SERVICES,14-May-2019,218419,Harrison Care Enterprises Barry Limited t/a Island View,561.00,Revenue
DIRECT SOCIAL SERVICES,GF ADULT SERVICES,14-May-2019,218419,Middlepatch Limited T/A College Fields Nursing Home,581.34,Revenue
DIRECT SOCIAL SERVICES,GF ADULT SERVICES,14-May-2019,218419,Shirwan Al-Mufti & Ptn t/a Pontcanna House,620.00,Revenue
DIRECT SOCIAL SERVICES,GF ADULT SERVICES,14-May-2019,218419,Hafod Housing Association Limited T/A Brocastle Manor (Care Home),652.00,Revenue
DIRECT SOCIAL SERVICES,GF ADULT SERVICES,14-May-2019,218419,Hafod Housing Association Limited T/A Brocastle Manor (Care Home),660.00,Revenue
DIRECT SOCIAL SERVICES,GF ADULT SERVICES,14-May-2019,218419,David Austin t/a Silverdale,660.28,Revenue
DIRECT SOCIAL SERVICES,GF ADULT SERVICES,14-May-2019,218419,E & E Homes Limited T/A Cliffhaven Residential Home,670.40,Revenue
DIRECT SOCIAL SERVICES,GF ADULT SERVICES,14-May-2019,218419,E & E Homes Limited T/A Cliffhaven Residential Home,670.40,Revenue
DIRECT SOCIAL SERVICES,GF ADULT SERVICES,14-May-2019,218419,Harrison Care Enterprises Barry Limited t/a Island View,670.40,Revenue
DIRECT SOCIAL SERVICES,GF ADULT SERVICES,14-May-2019,218419,June Zehetmayr t/a Tower Hill Residential Home,670.40,Revenue
DIRECT SOCIAL SERVICES,GF ADULT SERVICES,14-May-2019,218419,Llangoedmor Properties Limited T/A Parkside Residential Home,670.40,Revenue
DIRECT SOCIAL SERVICES,GF ADULT SERVICES,14-May-2019,218419,Llangoedmor Properties Limited T/A Parkside Residential Home,670.40,Revenue
DIRECT SOCIAL SERVICES,GF ADULT SERVICES,14-May-2019,218419,Waverley Care Centre Limited,670.40,Revenue
DIRECT SOCIAL SERVICES,GF ADULT SERVICES,14-May-2019,218419,Bellavista Care (Cardiff) Limited T/A Bellavista Nursing Home Cardiff,670.66,Revenue
DIRECT SOCIAL SERVICES,GF ADULT SERVICES,14-May-2019,218419,Hebron Hall Limited,680.83,Revenue
DIRECT SOCIAL SERVICES,GF ADULT SERVICES,14-May-2019,218419,Harrison Care Enterprises Barry Limited t/a Island View,682.50,Revenue
DIRECT SOCIAL SERVICES,GF ADULT SERVICES,14-May-2019,218419,Forge Care Homes Limited t/a The Forge Care Centre,736.26,Revenue
DIRECT SOCIAL SERVICES,GF ADULT SERVICES,14-May-2019,218419,Waverley Care Centre Limited,736.79,Revenue
DIRECT SOCIAL SERVICES,GF ADULT SERVICES,14-May-2019,218419,Llangoedmor Properties Limited T/A Parkside Residential Home,746.75,Revenue
DIRECT SOCIAL SERVICES,GF ADULT SERVICES,14-May-2019,218419,Middlepatch Limited T/A College Fields Nursing Home,780.52,Revenue
DIRECT SOCIAL SERVICES,GF ADULT SERVICES,14-May-2019,218419,Hallmark Care Homes (Bute Town) Limited t/a Shire Hall Care Home,784.67,Revenue
DIRECT SOCIAL SERVICES,GF ADULT SERVICES,14-May-2019,218419,Waverley Care Centre Limited,814.04,Revenue
DIRECT SOCIAL SERVICES,GF ADULT SERVICES,14-May-2019,218419,Capital Care Homes Limited t/a Danesbrook House,847.00,Revenue
DIRECT SOCIAL SERVICES,GF ADULT SERVICES,14-May-2019,218419,Forge Care Homes Limited t/a The Forge Care Centre,925.00,Revenue
DIRECT SOCIAL SERVICES,GF ADULT SERVICES,14-May-2019,218419,Hallmark Care Homes (Bute Town) Limited t/a Shire Hall Care Home,"1,215.25",Revenue
DIRECT SOCIAL SERVICES,GF ADULT SERVICES,14-May-2019,218419,Carers Trust South East Wales,"2,362.50",Revenue
DIRECT SOCIAL SERVICES,GF ADULT SERVICES,14-May-2019,218419,Carers Trust South East Wales,"2,362.50",Revenue
DIRECT SOCIAL SERVICES,GF ADULT SERVICES,14-May-2019,218419,Carers Trust South East Wales,"4,150.28",Revenue
DIRECT SOCIAL SERVICES,GF ADULT SERVICES,14-May-2019,218419,Carers Trust South East Wales,"4,150.28",Revenue
DIRECT SOCIAL SERVICES,GF ADULT SERVICES,14-May-2019,218419,Llangoedmor Properties Limited T/A Parkside Residential Home,"7,555.75",Revenue
DIRECT SOCIAL SERVICES,GF ADULT SERVICES,14-May-2019,218419,Llangoedmor Properties Limited T/A Parkside Residential Home,"11,834.07",Revenue
DIRECT SOCIAL SERVICES,GF ADULT SERVICES,14-May-2019,218419,Carers Trust South East Wales,"26,785.20",Revenue
DIRECT SOCIAL SERVICES,GF ADULT SERVICES,14-May-2019,218419,Carers Trust South East Wales,"26,785.20",Revenue
DIRECT SOCIAL SERVICES,GF ADULT SERVICES,14-May-2019,218419,Carers Trust South East Wales,"27,053.05",Revenue
DIRECT LEARNING AND SKILLS,ACHIEVEMENT FOR ALL,14-May-2019,440615,Hebron Hall Limited,692.00,Revenue
DIRECT SOCIAL SERVICES,GF CHILDREN SERVICES,14-May-2019,260130,Walter Standen T/A Standens Contract Hire,504.00,Revenue
DIRECT SOCIAL SERVICES,GF CHILDREN SERVICES,14-May-2019,260265,Walter Standen T/A Standens Contract Hire,506.00,Revenue
DIRECT SOCIAL SERVICES,GF CHILDREN SERVICES,14-May-2019,260265,Walter Standen T/A Standens Contract Hire,792.00,Revenue
DIRECT SOCIAL SERVICES,GF CHILDREN SERVICES,14-May-2019,260265,Walter Standen T/A Standens Contract Hire,"1,078.00",Revenue
DIRECT SOCIAL SERVICES,GF CHILDREN SERVICES,14-May-2019,260265,Walter Standen T/A Standens Contract Hire,"1,131.00",Revenue
DIRECT LEARNING AND SKILLS,SCHOOLS DELEGATED,15-May-2019,101004,Corona Energy Retail 4 Limited,767.91,Revenue
DIRECT LEARNING AND SKILLS,SCHOOLS DELEGATED,15-May-2019,101095,Corona Energy Retail 4 Limited,737.21,Revenue
DIRECT LEARNING AND SKILLS,SCHOOLS DELEGATED,15-May-2019,101134,Ikea Limited T/A Ikea Business,747.53,Revenue
DIRECT LEARNING AND SKILLS,SCHOOLS DELEGATED,15-May-2019,101140,EDF Energy Plc,"1,240.66",Revenue
DIRECT LEARNING AND SKILLS,SCHOOLS DELEGATED,15-May-2019,101171,Corona Energy Retail 4 Limited,577.42,Revenue
DIRECT LEARNING AND SKILLS,SCHOOLS DELEGATED,15-May-2019,101180,EDF Energy Plc,703.53,Revenue
DIRECT LEARNING AND SKILLS,SCHOOLS DELEGATED,15-May-2019,101180,Dwr Cymru Cyf,"2,309.64",Revenue
DIRECT LEARNING AND SKILLS,SCHOOLS DELEGATED,15-May-2019,101195,Corona Energy Retail 4 Limited,647.39,Revenue
DIRECT LEARNING AND SKILLS,SCHOOLS DELEGATED,15-May-2019,101202,Dwr Cymru Cyf,"2,223.51",Revenue
DIRECT LEARNING AND SKILLS,SCHOOLS DELEGATED,15-May-2019,101304,Corona Energy Retail 4 Limited,852.05,Revenue
DIRECT LEARNING AND SKILLS,SCHOOLS DELEGATED,15-May-2019,101308,Corona Energy Retail 4 Limited,634.48,Revenue
DIRECT LEARNING AND SKILLS,SCHOOLS DELEGATED,15-May-2019,101315,Corona Energy Retail 4 Limited,694.02,Revenue
DIRECT LEARNING AND SKILLS,SCHOOLS DELEGATED,15-May-2019,101317,EDF Energy Plc,568.42,Revenue
DIRECT LEARNING AND SKILLS,ACHIEVEMENT FOR ALL,15-May-2019,102632,Inspired Learners Limited,540.00,Revenue
DIRECT LEARNING AND SKILLS,ACHIEVEMENT FOR ALL,15-May-2019,102636,Empowering Learning Limited,521.60,Revenue
DIRECT LEARNING AND SKILLS,ACHIEVEMENT FOR ALL,15-May-2019,102636,Empowering Learning Limited,521.60,Revenue
DIRECT LEARNING AND SKILLS,ACHIEVEMENT FOR ALL,15-May-2019,102636,Empowering Learning Limited,521.60,Revenue
DIRECT LEARNING AND SKILLS,ACHIEVEMENT FOR ALL,15-May-2019,102636,The People Business : Wales Limited,"1,200.00",Revenue
DIRECT LEARNING AND SKILLS,ACHIEVEMENT FOR ALL,15-May-2019,102636,Merricks Private Transport Contractors Limited,"4,302.00",Revenue
DIRECT SOCIAL SERVICES,GF CHILDREN SERVICES,15-May-2019,209151,Gibbonsdown Childrens Centre Limited,624.00,Revenue
DIRECT SOCIAL SERVICES,GF CHILDREN SERVICES,15-May-2019,209151,Gibbonsdown Childrens Centre Limited,"5,832.00",Revenue
DIRECT SOCIAL SERVICES,GF RESOURCES MANAGEMENT & SAFEGUARDING,15-May-2019,212731,Corona Energy Retail 4 Limited,903.68,Revenue
DIRECT SOCIAL SERVICES,GF RESOURCES MANAGEMENT & SAFEGUARDING,15-May-2019,212741,Corona Energy Retail 4 Limited,735.81,Revenue
DIRECT SOCIAL SERVICES,GF RESOURCES MANAGEMENT & SAFEGUARDING,15-May-2019,212781,Corona Energy Retail 4 Limited,"1,337.37",Revenue
DIRECT SOCIAL SERVICES,GF RESOURCES MANAGEMENT & SAFEGUARDING,15-May-2019,212791,Corona Energy Retail 4 Limited,"1,025.22",Revenue
DIRECT SOCIAL SERVICES,GF ADULT SERVICES,15-May-2019,215803,Corona Energy Retail 4 Limited,754.97,Revenue
DIRECT SOCIAL SERVICES,GF CHILDREN SERVICES,15-May-2019,260060,Pathway Care Limited T/A Calon Cymru Fostering,"2,817.86",Revenue
DIRECT SOCIAL SERVICES,GF CHILDREN SERVICES,15-May-2019,260060,Pathway Care Limited T/A Calon Cymru Fostering,"2,899.96",Revenue
DIRECT SOCIAL SERVICES,GF CHILDREN SERVICES,15-May-2019,260060,Pathway Care Limited T/A Calon Cymru Fostering,"2,966.17",Revenue
DIRECT SOCIAL SERVICES,GF CHILDREN SERVICES,15-May-2019,260060,Pathway Care Limited T/A Calon Cymru Fostering,"2,966.17",Revenue
DIRECT SOCIAL SERVICES,GF CHILDREN SERVICES,15-May-2019,260060,Pathway Care Limited T/A Calon Cymru Fostering,"2,968.11",Revenue
DIRECT SOCIAL SERVICES,GF CHILDREN SERVICES,15-May-2019,260060,Pathway Care Limited T/A Calon Cymru Fostering,"3,052.58",Revenue
DIRECT SOCIAL SERVICES,GF CHILDREN SERVICES,15-May-2019,260060,Regional Foster Placements Limited,"3,150.00",Revenue
DIRECT SOCIAL SERVICES,GF CHILDREN SERVICES,15-May-2019,260060,Pathway Care Limited T/A Calon Cymru Fostering,"3,297.17",Revenue
DIRECT SOCIAL SERVICES,GF CHILDREN SERVICES,15-May-2019,260060,Pathway Care Limited T/A Calon Cymru Fostering,"3,297.17",Revenue
DIRECT SOCIAL SERVICES,GF CHILDREN SERVICES,15-May-2019,260060,Pathway Care Limited T/A Calon Cymru Fostering,"3,297.17",Revenue
DIRECT SOCIAL SERVICES,GF CHILDREN SERVICES,15-May-2019,260060,Pathway Care Limited T/A Calon Cymru Fostering,"3,297.17",Revenue
DIRECT SOCIAL SERVICES,GF CHILDREN SERVICES,15-May-2019,260060,Pathway Care Limited T/A Calon Cymru Fostering,"3,297.17",Revenue
DIRECT SOCIAL SERVICES,GF CHILDREN SERVICES,15-May-2019,260060,Pathway Care Limited T/A Calon Cymru Fostering,"3,297.17",Revenue
DIRECT SOCIAL SERVICES,GF CHILDREN SERVICES,15-May-2019,260060,The National Fostering Agency Limited,"3,402.90",Revenue
DIRECT SOCIAL SERVICES,GF CHILDREN SERVICES,15-May-2019,260060,The National Fostering Agency Limited,"3,402.90",Revenue
DIRECT SOCIAL SERVICES,GF CHILDREN SERVICES,15-May-2019,260060,Pathway Care Limited T/A Calon Cymru Fostering,"3,432.32",Revenue
DIRECT SOCIAL SERVICES,GF CHILDREN SERVICES,15-May-2019,260060,The National Fostering Agency Limited,"3,471.30",Revenue
DIRECT SOCIAL SERVICES,GF CHILDREN SERVICES,15-May-2019,260060,Foster Care Associates Limited,"3,506.40",Revenue
DIRECT SOCIAL SERVICES,GF CHILDREN SERVICES,15-May-2019,260060,Foster Care Associates Limited,"3,615.00",Revenue
DIRECT SOCIAL SERVICES,GF CHILDREN SERVICES,15-May-2019,260060,Foster Care Associates Limited,"3,615.00",Revenue
DIRECT SOCIAL SERVICES,GF CHILDREN SERVICES,15-May-2019,260060,Pathway Care Limited T/A Calon Cymru Fostering,"4,212.20",Revenue
DIRECT SOCIAL SERVICES,GF CHILDREN SERVICES,15-May-2019,260060,Foster Care Associates Limited,"8,100.00",Revenue
DIRECT SOCIAL SERVICES,GF CHILDREN SERVICES,15-May-2019,260060,Pathway Care Limited T/A Calon Cymru Fostering,"11,739.39",Revenue
DIRECT SOCIAL SERVICES,GF CHILDREN SERVICES,15-May-2019,260060,Horizon Care & Education Group Limited,"14,835.67",Revenue
DIRECT SOCIAL SERVICES,GF CHILDREN SERVICES,15-May-2019,260060,Landsker Child Care Limited,"18,033.39",Revenue
DIRECT SOCIAL SERVICES,GF CHILDREN SERVICES,15-May-2019,260060,Landsker Child Care Limited,"18,033.39",Revenue
DIRECT SOCIAL SERVICES,GF CHILDREN SERVICES,15-May-2019,260060,Landsker Child Care Limited,"18,086.29",Revenue
DIRECT SOCIAL SERVICES,GF CHILDREN SERVICES,15-May-2019,260060,St Davids ASC (Marlowe) Limited,"19,485.74",Revenue
DIRECT SOCIAL SERVICES,GF CHILDREN SERVICES,15-May-2019,260060,Harmony Children's Services Limited,"22,142.99",Revenue
DIRECT ENVIRONMENT AND HOUSING,OVERHEAD,15-May-2019,301062,Biffa Waste Services Limited,"2,682.50",Revenue
DIRECT ENVIRONMENT AND HOUSING,HOUSING - MRA,15-May-2019,304103,AKW Medi-Care Limited,-610.08,Revenue
DIRECT ENVIRONMENT AND HOUSING,PUBLIC BUILDINGS,15-May-2019,305848,Ran Hire and Sales Limited,837.61,Revenue
DIRECT ENVIRONMENT AND HOUSING,GARAGE,15-May-2019,319010,Dawsonrentals Materials Handling Equipment Limited t/a Dawsonrentals Sweepers,"2,200.00",Revenue
DIRECT ENVIRONMENT AND HOUSING,GARAGE,15-May-2019,319010,Leeds Commercial Limited T/A LC Vehicle Hire,"3,300.00",Revenue
DIRECT ENVIRONMENT AND HOUSING,GARAGE,15-May-2019,319010,Go Plant Fleet Services Limited,"3,750.00",Revenue
DIRECT ENVIRONMENT AND HOUSING,GARAGE,15-May-2019,319010,Go Plant Fleet Services Limited,"3,750.00",Revenue
DIRECT ENVIRONMENT AND HOUSING,GF ENV AND VISIBLE,15-May-2019,325852,Nolan Roadmarking Limited,970.35,Revenue
NEW REGENERATION,REGENERATION & PLANNING,15-May-2019,352730,Hexion UK Limited,"3,623.89",Revenue
NEW REGENERATION,REGENERATION & PLANNING,15-May-2019,352730,Hexion UK Limited,"3,642.59",Revenue
DIRECT ENVIRONMENT AND HOUSING,REGULATORY SERVICES SHARED SERVICES,15-May-2019,403221,Big Green Button Limited T/A Minuteman Press,955.00,Revenue
DIRECT ENVIRONMENT AND HOUSING,HRA MANAGEMENT,15-May-2019,407150,Corona Energy Retail 4 Limited,553.58,Revenue
DIRECT ENVIRONMENT AND HOUSING,HRA SPECIAL SERVICES,15-May-2019,407215,Corona Energy Retail 4 Limited,"1,360.11",Revenue
DIRECT ENVIRONMENT AND HOUSING,HRA SPECIAL SERVICES,15-May-2019,407240,Corona Energy Retail 4 Limited,794.47,Revenue
DIRECT ENVIRONMENT AND HOUSING,HRA SPECIAL SERVICES,15-May-2019,407245,Corona Energy Retail 4 Limited,883.59,Revenue
DIRECT ENVIRONMENT AND HOUSING,HRA SPECIAL SERVICES,15-May-2019,407260,Corona Energy Retail 4 Limited,934.60,Revenue
DIRECT ENVIRONMENT AND HOUSING,HRA MANAGEMENT,15-May-2019,407400,Tindle Newspapers Wales & The Borders Limited,515.00,Revenue
DIRECT ENVIRONMENT AND HOUSING,HRA MANAGEMENT,15-May-2019,407400,Tindle Newspapers Wales & The Borders Limited,515.00,Revenue
DIRECT ENVIRONMENT AND HOUSING,HRA MANAGEMENT,15-May-2019,407400,Tindle Newspapers Wales & The Borders Limited,515.00,Revenue
DIRECT MANAGING DIRECTOR AND RESOURCES,GF RESOURCES,15-May-2019,420221,JC Applications Development Limited,"3,557.00",Revenue
DIRECT MANAGING DIRECTOR AND RESOURCES,GF RESOURCES,15-May-2019,422100,Corona Energy Retail 4 Limited,"2,835.85",Revenue
DIRECT MANAGING DIRECTOR AND RESOURCES,GF RESOURCES,15-May-2019,422201,Corona Energy Retail 4 Limited,881.17,Revenue
DIRECT MANAGING DIRECTOR AND RESOURCES,GF RESOURCES,15-May-2019,422201,Corona Energy Retail 4 Limited,956.82,Revenue
DIRECT MANAGING DIRECTOR AND RESOURCES,GF RESOURCES,15-May-2019,422201,Corona Energy Retail 4 Limited,959.82,Revenue
DIRECT MANAGING DIRECTOR AND RESOURCES,GF RESOURCES,15-May-2019,422201,Corona Energy Retail 4 Limited,997.83,Revenue
DIRECT MANAGING DIRECTOR AND RESOURCES,GF RESOURCES,15-May-2019,422201,Corona Energy Retail 4 Limited,"1,038.53",Revenue
DIRECT MANAGING DIRECTOR AND RESOURCES,GF RESOURCES,15-May-2019,422201,Corona Energy Retail 4 Limited,"1,132.17",Revenue
DIRECT MANAGING DIRECTOR AND RESOURCES,GF CORPORATE AND CUSTOMER SERVICES,15-May-2019,440536,Jamjar PR Limited,"1,200.00",Revenue
DIRECT CAPITAL LEARN AND SKILLS,CAPITAL SCHOOLS,15-May-2019,810119,Morgan Sindall Construction & Infrastructure Limited,"168,732.86",Capital
DIRECT CAPITAL VISIBLE AND HOUSING SERVICES,CAPITAL HIGHWAYS,15-May-2019,831530,Drainforce Limited,"49,812.00",Capital
DIRECT CAPITAL VISIBLE AND HOUSING SERVICES,CAPITAL HIGHWAYS,15-May-2019,831532,Drainforce Limited,"14,314.20",Capital
DIRECT CAPITAL DEVELOPMENT,CAPITAL ECO DEV,15-May-2019,834231,Bruton Knowles LLP,851.50,Capital
DIRECT CAPITAL DEVELOPMENT,CAPITAL ECO DEV,15-May-2019,834231,Capita Property and Infrastructure Limited,"24,057.24",Capital
DIRECT CAPITAL DEVELOPMENT,CAPITAL PLANNING,15-May-2019,837212,Romaquip Limited,"142,656.00",Capital
DIRECT CAPITAL DEVELOPMENT,CAPITAL PLANNING,15-May-2019,837212,Romaquip Limited,"142,656.00",Capital
DIRECT CAPITAL DEVELOPMENT,CAPITAL PLANNING,15-May-2019,837212,Romaquip Limited,"142,656.00",Capital
DIRECT CAPITAL VISIBLE AND HOUSING SERVICES,CAPITAL HRA,15-May-2019,842067,Fusion Electrical & Building Services Engineering Limited,"1,386.00",Capital
DIRECT CAPITAL VISIBLE AND HOUSING SERVICES,CAPITAL HRA,15-May-2019,842067,Fusion Electrical & Building Services Engineering Limited,"1,386.00",Capital
DIRECT CAPITAL VISIBLE AND HOUSING SERVICES,CAPITAL HRA,15-May-2019,842067,Fusion Electrical & Building Services Engineering Limited,"1,386.00",Capital
DIRECT CAPITAL VISIBLE AND HOUSING SERVICES,CAPITAL HRA,15-May-2019,842068,Ian Williams Limited,"6,589.46",Capital
DIRECT CAPITAL VISIBLE AND HOUSING SERVICES,CAPITAL HRA,15-May-2019,842068,Feltfab Facilities Limited,"8,000.00",Capital
DIRECT CAPITAL VISIBLE AND HOUSING SERVICES,CAPITAL HRA,15-May-2019,842068,Ian Williams Limited,"8,449.79",Capital
DIRECT CAPITAL VISIBLE AND HOUSING SERVICES,CAPITAL HRA,15-May-2019,842145,Ian Williams Limited,"8,449.79",Capital
DIRECT CAPITAL VISIBLE AND HOUSING SERVICES,CAPITAL HRA,15-May-2019,842145,Ian Williams Limited,"28,066.65",Capital
DIRECT CAPITAL VISIBLE AND HOUSING SERVICES,CAPITAL HRA,15-May-2019,842164,Pendragon Design and Build Limited,"71,768.45",Capital
DIRECT CAPITAL VISIBLE AND HOUSING SERVICES,CAPITAL HRA,15-May-2019,842166,Jehu Project Services Limited,"197,183.83",Capital
DIRECT CAPITAL VISIBLE AND HOUSING SERVICES,CAPITAL HRA,15-May-2019,842177,Sustainable Building Services (UK) Limited,"24,525.76",Capital
DIRECT CAPITAL VISIBLE AND HOUSING SERVICES,CAPITAL HRA,15-May-2019,842177,Ian Williams Limited,"48,883.20",Capital
DIRECT CAPITAL DEVELOPMENT,CAPITAL PRIV HSG,15-May-2019,845003,R & M Williams Limited,"1,487.93",Capital
DIRECT LEARNING AND SKILLS,SCHOOLS DELEGATED,15-May-2019,101308,Rhondda Cynon Taf County Borough Council,"2,000.00",Revenue
DIRECT LEARNING AND SKILLS,SCHOOLS DELEGATED,15-May-2019,101047,Christopher Mitchell & Ptn T/A M&M Theatrical Productions,899.00,Revenue
DIRECT LEARNING AND SKILLS,SCHOOLS DELEGATED,15-May-2019,101005,Ninian Park Primary School,"19,190.00",Revenue
DIRECT LEARNING AND SKILLS,ACHIEVEMENT FOR ALL,15-May-2019,130271,Welsh Local Government Association,700.00,Revenue
DIRECT LEARNING AND SKILLS,ACHIEVEMENT FOR ALL,15-May-2019,102604,New Directions (Education) Limited,"1,051.48",Revenue
DIRECT LEARNING AND SKILLS,ACHIEVEMENT FOR ALL,15-May-2019,102632,Apollo Teaching Services Limited,670.00,Revenue
DIRECT ENVIRONMENT AND HOUSING,GF ENV AND VISIBLE,15-May-2019,323685,Hays Specialist Recruitment Limited,989.04,Revenue
DIRECT ENVIRONMENT AND HOUSING,GF ENV AND VISIBLE,15-May-2019,323685,Hays Specialist Recruitment Limited,"1,156.40",Revenue
DIRECT ENVIRONMENT AND HOUSING,GF ENV AND VISIBLE,15-May-2019,323685,Hays Specialist Recruitment Limited,"1,548.75",Revenue
DIRECT ENVIRONMENT AND HOUSING,GF ENV AND VISIBLE,15-May-2019,323686,Hays Specialist Recruitment Limited,659.20,Revenue
DIRECT ENVIRONMENT AND HOUSING,GF HOUSING SERVICES,15-May-2019,405001,James Andrews Recruitment Solutions Limited,565.50,Revenue
DIRECT ENVIRONMENT AND HOUSING,HRA MANAGEMENT,15-May-2019,407119,Building Recruitment Company Limited,929.40,Revenue
DIRECT LEARNING AND SKILLS,SCHOOLS DELEGATED,15-May-2019,101025,ABC of Opera Limited,"1,862.00",Revenue
DIRECT SOCIAL SERVICES,GF CHILDREN SERVICES,15-May-2019,260060,Barnardos Cymru,600.86,Revenue
DIRECT SOCIAL SERVICES,GF CHILDREN SERVICES,15-May-2019,260060,The Adolescent & Childrens Trust,"2,020.00",Revenue
DIRECT ENVIRONMENT AND HOUSING,GF HOUSING SERVICES,15-May-2019,405115,Croeso Penarth Community Sponsorship Group,"1,480.00",Revenue
DIRECT POLICY,GF GRANTS,15-May-2019,465201,Castleland Community Association,"1,709.40",Revenue
DIRECT POLICY,GF GRANTS,15-May-2019,465201,Dinas Powys Cricket Club,"5,964.00",Revenue
DIRECT SOCIAL SERVICES,GF ADULT SERVICES,16-May-2019,215489,Parkrow Care Limited,709.46,Revenue
DIRECT SOCIAL SERVICES,GF ADULT SERVICES,16-May-2019,215489,Parkrow Care Limited,717.98,Revenue
DIRECT SOCIAL SERVICES,GF ADULT SERVICES,16-May-2019,218419,Parkrow Care Limited,740.36,Revenue
DIRECT LEARNING AND SKILLS,SCHOOLS DELEGATED,16-May-2019,101006,EDF Energy Plc,715.68,Revenue
DIRECT LEARNING AND SKILLS,SCHOOLS DELEGATED,16-May-2019,101006,Tugbury Electrical Services Limited,"2,110.00",Revenue
DIRECT LEARNING AND SKILLS,SCHOOLS DELEGATED,16-May-2019,101110,PEAC (UK) Limited,962.01,Revenue
DIRECT LEARNING AND SKILLS,SCHOOLS NON DELEGATED,16-May-2019,103202,Academics Limited,685.76,Revenue
DIRECT LEARNING AND SKILLS,GF CATERING,16-May-2019,154401,Veolia ES (UK) Limited,"2,014.02",Revenue
DIRECT ENVIRONMENT AND HOUSING,GARAGE,16-May-2019,319010,Fleetwheel Limited,709.92,Revenue
DIRECT ENVIRONMENT AND HOUSING,GARAGE,16-May-2019,319010,Fuchs Lubricants (UK) Plc,"1,530.00",Revenue
DIRECT ENVIRONMENT AND HOUSING,GARAGE,16-May-2019,319010,Fleetwheel Limited,"4,148.60",Revenue
DIRECT MANAGING DIRECTOR AND RESOURCES,GF LEGAL AND DEMOCRATIC,16-May-2019,400063,Telefonica UK Limited t/a O2,"10,424.93",Revenue
DIRECT ENVIRONMENT AND HOUSING,GF HOUSING SERVICES,16-May-2019,405301,Gofal A Chymorth Gwalia Cyf,"1,414.92",Revenue
DIRECT ENVIRONMENT AND HOUSING,GF HOUSING SERVICES,16-May-2019,405301,Gofal A Chymorth Gwalia Cyf,"1,414.92",Revenue
DIRECT ENVIRONMENT AND HOUSING,GF HOUSING SERVICES,16-May-2019,405301,Gofal A Chymorth Gwalia Cyf,"2,528.64",Revenue
DIRECT ENVIRONMENT AND HOUSING,GF HOUSING SERVICES,16-May-2019,405301,Pobl Group Limited T/A Reach Supported Living,"2,692.28",Revenue
DIRECT ENVIRONMENT AND HOUSING,GF HOUSING SERVICES,16-May-2019,405301,Pobl Group Limited T/A Reach Supported Living,"2,972.60",Revenue
DIRECT ENVIRONMENT AND HOUSING,GF HOUSING SERVICES,16-May-2019,405301,Llamau Limited,"3,837.12",Revenue
DIRECT ENVIRONMENT AND HOUSING,GF HOUSING SERVICES,16-May-2019,405301,Gofal A Chymorth Gwalia Cyf,"5,384.60",Revenue
DIRECT ENVIRONMENT AND HOUSING,GF HOUSING SERVICES,16-May-2019,405301,Gofal A Chymorth Gwalia Cyf,"5,945.20",Revenue
DIRECT ENVIRONMENT AND HOUSING,GF HOUSING SERVICES,16-May-2019,405301,Llamau Limited,"6,182.40",Revenue
DIRECT ENVIRONMENT AND HOUSING,GF HOUSING SERVICES,16-May-2019,405301,Llamau Limited,"6,182.40",Revenue
DIRECT ENVIRONMENT AND HOUSING,GF HOUSING SERVICES,16-May-2019,405301,Gofal A Chymorth Gwalia Cyf,"7,046.40",Revenue
DIRECT ENVIRONMENT AND HOUSING,GF HOUSING SERVICES,16-May-2019,405301,Llamau Limited,"8,835.36",Revenue
DIRECT ENVIRONMENT AND HOUSING,GF HOUSING SERVICES,16-May-2019,405301,Llamau Limited,"8,945.28",Revenue
DIRECT ENVIRONMENT AND HOUSING,GF HOUSING SERVICES,16-May-2019,405301,Gofal A Chymorth Gwalia Cyf,"9,692.80",Revenue
DIRECT ENVIRONMENT AND HOUSING,GF HOUSING SERVICES,16-May-2019,405301,Llamau Limited,"9,720.00",Revenue
DIRECT ENVIRONMENT AND HOUSING,GF HOUSING SERVICES,16-May-2019,405301,Pobl Group Limited T/A Reach Supported Living,"16,045.12",Revenue
DIRECT ENVIRONMENT AND HOUSING,GF HOUSING SERVICES,16-May-2019,405301,Gofal A Chymorth Gwalia Cyf,"20,539.36",Revenue
DIRECT MANAGING DIRECTOR AND RESOURCES,GF RESOURCES,16-May-2019,420221,South West Audit Partnership Limited,"2,010.00",Revenue
DIRECT POLICY,GF MISCELLANEOUS POLICY,16-May-2019,479050,Williams Associates Costs Lawyers Limited,500.00,Revenue
DIRECT POLICY,GF MISCELLANEOUS POLICY,16-May-2019,479050,Marsh Limited,"-11,631.31",Revenue
DIRECT POLICY,GF MISCELLANEOUS POLICY,16-May-2019,479050,Marsh Limited,"11,566.90",Revenue
DIRECT POLICY,GF MISCELLANEOUS POLICY,16-May-2019,479050,Zurich Insurance Plc t/a Zurich Municipal - Imprest,"100,000.00",Revenue
DIRECT LEARNING AND SKILLS,SCHOOLS NON DELEGATED,16-May-2019,100680,Neath & Port Talbot County Borough Council,"2,971.65",Revenue
DIRECT ENVIRONMENT AND HOUSING,GF HOUSING SERVICES,16-May-2019,405301,Cardiff County Council,"5,040.00",Revenue
DIRECT POLICY,GF MISCELLANEOUS POLICY,16-May-2019,479050,Darren Lewis,710.00,Revenue
DIRECT LEARNING AND SKILLS,SCHOOLS DELEGATED,16-May-2019,101140,Millennium Personnel Services (Education) Limited,500.00,Revenue
DIRECT LEARNING AND SKILLS,SCHOOLS DELEGATED,16-May-2019,101145,Celtic Teachers Limited,"1,320.00",Revenue
DIRECT LEARNING AND SKILLS,SCHOOLS DELEGATED,16-May-2019,101216,Millennium Personnel Services (Education) Limited,625.00,Revenue
DIRECT LEARNING AND SKILLS,SCHOOLS NON DELEGATED,16-May-2019,103227,New Directions (Education) Limited,665.00,Revenue
DIRECT MANAGING DIRECTOR AND RESOURCES,GF HUMAN RESOURCES,16-May-2019,140131,Randstad Solutions Limited,"108,262.02",Revenue
DIRECT ENVIRONMENT AND HOUSING,GF HOUSING SERVICES,16-May-2019,405301,Hafod Care Association Limited,"1,991.00",Revenue
DIRECT ENVIRONMENT AND HOUSING,GF HOUSING SERVICES,16-May-2019,405301,Hafod Care Association Limited,"2,732.16",Revenue
DIRECT ENVIRONMENT AND HOUSING,GF HOUSING SERVICES,16-May-2019,405301,Hafod Care Association Limited,"4,541.40",Revenue
DIRECT ENVIRONMENT AND HOUSING,GF HOUSING SERVICES,16-May-2019,405301,Hafod Care Association Limited,"9,523.20",Revenue
DIRECT LEARNING AND SKILLS,SCHOOLS DELEGATED,16-May-2019,101145,Darren Beach T/A Answer Property Management,"4,035.00",Revenue
DIRECT ENVIRONMENT AND HOUSING,GARAGE,16-May-2019,319010,Ceri Williams t/a Mobile Tyre Services,"2,003.06",Revenue
DIRECT SOCIAL SERVICES,GF RESOURCES MANAGEMENT & SAFEGUARDING,16-May-2019,215011,Care & Repair Cardiff and the Vale,"3,648.25",Revenue
DIRECT ENVIRONMENT AND HOUSING,GF HOUSING SERVICES,16-May-2019,405301,Gofal Cymru,"1,759.92",Revenue
DIRECT ENVIRONMENT AND HOUSING,GF HOUSING SERVICES,16-May-2019,405301,Gofal Cymru,"2,536.80",Revenue
DIRECT ENVIRONMENT AND HOUSING,GF HOUSING SERVICES,16-May-2019,405301,Taff Housing Association,"2,654.08",Revenue
DIRECT ENVIRONMENT AND HOUSING,GF HOUSING SERVICES,16-May-2019,405301,Gofal Cymru,"2,757.40",Revenue
DIRECT ENVIRONMENT AND HOUSING,GF HOUSING SERVICES,16-May-2019,405301,Atal Y Fro,"2,801.52",Revenue
DIRECT ENVIRONMENT AND HOUSING,GF HOUSING SERVICES,16-May-2019,405301,Gofal Cymru,"3,564.80",Revenue
DIRECT ENVIRONMENT AND HOUSING,GF HOUSING SERVICES,16-May-2019,405301,Gofal Cymru,"3,957.60",Revenue
DIRECT ENVIRONMENT AND HOUSING,GF HOUSING SERVICES,16-May-2019,405301,Taff Housing Association,"4,456.20",Revenue
DIRECT ENVIRONMENT AND HOUSING,GF HOUSING SERVICES,16-May-2019,405301,Atal Y Fro,"6,352.00",Revenue
DIRECT ENVIRONMENT AND HOUSING,GF HOUSING SERVICES,16-May-2019,405301,Atal Y Fro,"6,587.00",Revenue
DIRECT ENVIRONMENT AND HOUSING,GF HOUSING SERVICES,16-May-2019,405301,Taff Housing Association,"10,459.40",Revenue
DIRECT SOCIAL SERVICES,GF ADULT SERVICES,17-May-2019,215489,Cardiff & Vale Caring 4 U Limited T/A Caremark Cardiff & The Vale of Glamorgan,675.36,Revenue
DIRECT SOCIAL SERVICES,GF ADULT SERVICES,17-May-2019,215489,Willowmere Home Care Agency Limited,685.88,Revenue
DIRECT SOCIAL SERVICES,GF ADULT SERVICES,17-May-2019,215489,Cardiff & Vale Caring 4 U Limited T/A Caremark Cardiff & The Vale of Glamorgan,700.28,Revenue
DIRECT SOCIAL SERVICES,GF ADULT SERVICES,17-May-2019,215489,Willowmere Home Care Agency Limited,714.40,Revenue
DIRECT SOCIAL SERVICES,GF ADULT SERVICES,17-May-2019,215489,Willowmere Home Care Agency Limited,714.40,Revenue
DIRECT SOCIAL SERVICES,GF ADULT SERVICES,17-May-2019,215489,Willowmere Home Care Agency Limited,714.40,Revenue
DIRECT SOCIAL SERVICES,GF ADULT SERVICES,17-May-2019,215489,Cardiff & Vale Caring 4 U Limited T/A Caremark Cardiff & The Vale of Glamorgan,743.12,Revenue
DIRECT SOCIAL SERVICES,GF ADULT SERVICES,17-May-2019,215489,Cardiff & Vale Caring 4 U Limited T/A Caremark Cardiff & The Vale of Glamorgan,743.12,Revenue
DIRECT SOCIAL SERVICES,GF ADULT SERVICES,17-May-2019,215489,Willowmere Home Care Agency Limited,752.96,Revenue
DIRECT SOCIAL SERVICES,GF ADULT SERVICES,17-May-2019,215489,Willowmere Home Care Agency Limited,757.80,Revenue
DIRECT SOCIAL SERVICES,GF ADULT SERVICES,17-May-2019,215489,Willowmere Home Care Agency Limited,768.43,Revenue
DIRECT SOCIAL SERVICES,GF ADULT SERVICES,17-May-2019,215489,Cardiff & Vale Caring 4 U Limited T/A Caremark Cardiff & The Vale of Glamorgan,778.84,Revenue
DIRECT SOCIAL SERVICES,GF ADULT SERVICES,17-May-2019,215489,Cardiff & Vale Caring 4 U Limited T/A Caremark Cardiff & The Vale of Glamorgan,778.84,Revenue
DIRECT SOCIAL SERVICES,GF ADULT SERVICES,17-May-2019,215489,Willowmere Home Care Agency Limited,791.75,Revenue
DIRECT SOCIAL SERVICES,GF ADULT SERVICES,17-May-2019,215489,Willowmere Home Care Agency Limited,791.75,Revenue
DIRECT SOCIAL SERVICES,GF ADULT SERVICES,17-May-2019,215489,Willowmere Home Care Agency Limited,833.92,Revenue
DIRECT SOCIAL SERVICES,GF ADULT SERVICES,17-May-2019,215489,Willowmere Home Care Agency Limited,968.22,Revenue
DIRECT SOCIAL SERVICES,GF ADULT SERVICES,17-May-2019,215489,Willowmere Home Care Agency Limited,"1,145.87",Revenue
DIRECT SOCIAL SERVICES,GF ADULT SERVICES,17-May-2019,215489,Cardiff & Vale Caring 4 U Limited T/A Caremark Cardiff & The Vale of Glamorgan,"1,245.66",Revenue
DIRECT SOCIAL SERVICES,GF ADULT SERVICES,17-May-2019,216179,Cardiff & Vale Caring 4 U Limited T/A Caremark Cardiff & The Vale of Glamorgan,903.52,Revenue
DIRECT SOCIAL SERVICES,GF ADULT SERVICES,17-May-2019,217909,Cardiff & Vale Caring 4 U Limited T/A Caremark Cardiff & The Vale of Glamorgan,877.07,Revenue
DIRECT SOCIAL SERVICES,GF ADULT SERVICES,17-May-2019,217909,Cardiff & Vale Caring 4 U Limited T/A Caremark Cardiff & The Vale of Glamorgan,932.34,Revenue
DIRECT SOCIAL SERVICES,GF ADULT SERVICES,17-May-2019,218419,Willowmere Home Care Agency Limited,816.76,Revenue
DIRECT LEARNING AND SKILLS,SCHOOLS DELEGATED,17-May-2019,100802,Collective Learning Limited,510.00,Revenue
DIRECT LEARNING AND SKILLS,SCHOOLS DELEGATED,17-May-2019,101047,CHG-MERIDIAN Computer Leasing UK Limited,"1,104.60",Revenue
DIRECT LEARNING AND SKILLS,SCHOOLS DELEGATED,17-May-2019,101047,CHG-MERIDIAN Computer Leasing UK Limited,"2,280.00",Revenue
DIRECT LEARNING AND SKILLS,SCHOOLS DELEGATED,17-May-2019,101065,Glen Cleaning Company Limited,"3,379.78",Revenue
DIRECT LEARNING AND SKILLS,SCHOOLS DELEGATED,17-May-2019,101110,The Consortium for Purchasing and Distribution Limited,690.43,Revenue
DIRECT LEARNING AND SKILLS,SCHOOLS DELEGATED,17-May-2019,101110,A & R Contract Cleaning Specialist Limited,"2,375.00",Revenue
DIRECT SOCIAL SERVICES,GF ADULT SERVICES,17-May-2019,217909,Merricks Private Transport Contractors Limited,806.80,Revenue
DIRECT SOCIAL SERVICES,GF CHILDREN SERVICES,17-May-2019,260150,Computacenter (UK) Limited,569.09,Revenue
DIRECT SOCIAL SERVICES,GF CHILDREN SERVICES,17-May-2019,260210,Computacenter (UK) Limited,569.09,Revenue
DIRECT ENVIRONMENT AND HOUSING,TRADING - BUILDING,17-May-2019,303000,Open Text UK Limited,"1,051.66",Revenue
DIRECT ENVIRONMENT AND HOUSING,TRADING - BUILDING,17-May-2019,303000,Open Text UK Limited,"1,116.44",Revenue
DIRECT ENVIRONMENT AND HOUSING,HOUSING - HRA,17-May-2019,303910,SMK Building & Maintenance Limited,842.59,Revenue
DIRECT ENVIRONMENT AND HOUSING,HOUSING - HRA,17-May-2019,303910,SMK Building & Maintenance Limited,871.97,Revenue
DIRECT ENVIRONMENT AND HOUSING,HOUSING - HRA,17-May-2019,303910,Woodland Electrical Barry Limited,"1,139.00",Revenue
DIRECT ENVIRONMENT AND HOUSING,HOUSING - HRA,17-May-2019,303910,SMK Building & Maintenance Limited,"10,375.07",Revenue
DIRECT ENVIRONMENT AND HOUSING,HOUSING - HRA,17-May-2019,303910,SMK Building & Maintenance Limited,"22,231.95",Revenue
DIRECT ENVIRONMENT AND HOUSING,HOUSING - MRA,17-May-2019,304103,SMK Building & Maintenance Limited,517.73,Revenue
DIRECT ENVIRONMENT AND HOUSING,HOUSING - MRA,17-May-2019,304103,AKW Medi-Care Limited,610.08,Revenue
DIRECT ENVIRONMENT AND HOUSING,HOUSING - MRA,17-May-2019,304103,Channel Electrical Systems Limited,"3,850.00",Revenue
DIRECT ENVIRONMENT AND HOUSING,HOUSING - MRA,17-May-2019,304103,Channel Electrical Systems Limited,"3,850.00",Revenue
DIRECT ENVIRONMENT AND HOUSING,HOUSING - MRA,17-May-2019,304103,Channel Electrical Systems Limited,"3,850.00",Revenue
DIRECT ENVIRONMENT AND HOUSING,HOUSING - MRA,17-May-2019,304103,Channel Electrical Systems Limited,"3,850.00",Revenue
DIRECT ENVIRONMENT AND HOUSING,HOUSING - MRA,17-May-2019,304103,Channel Electrical Systems Limited,"3,850.00",Revenue
DIRECT ENVIRONMENT AND HOUSING,HOUSING - MRA,17-May-2019,305797,SMK Building & Maintenance Limited,882.76,Revenue
DIRECT ENVIRONMENT AND HOUSING,HOUSING - MRA,17-May-2019,305810,SMK Building & Maintenance Limited,"9,963.72",Revenue
NEW REGENERATION,REGENERATION & PLANNING,17-May-2019,359750,APL Media Limited,"1,300.00",Revenue
DIRECT ENVIRONMENT AND HOUSING,REGULATORY SERVICES SHARED SERVICES,17-May-2019,403102,Diamond People Limited,892.50,Revenue
DIRECT ENVIRONMENT AND HOUSING,GF HOUSING SERVICES,17-May-2019,405100,Masons Moving Group Limited,593.36,Revenue
DIRECT ENVIRONMENT AND HOUSING,HRA SPECIAL SERVICES,17-May-2019,407200,"3 Blinds, Nice! Limited",606.00,Revenue
DIRECT MANAGING DIRECTOR AND RESOURCES,GF RESOURCES,17-May-2019,421230,Q Associates Limited,"4,963.20",Revenue
DIRECT POLICY,GF CORPORATE POLICY MAKING,17-May-2019,460500,Computacenter (UK) Limited,"1,138.18",Revenue
DIRECT CAPITAL LEARN AND SKILLS,AR CAPITAL SCHOOLS,17-May-2019,812277,Thornlink Limited T/A Vale Consultancy,"-1,837.50",Capital
DIRECT CAPITAL VISIBLE AND HOUSING SERVICES,CAPITAL HRA,17-May-2019,842068,Central Roofing and Building Services Limited,"47,821.45",Capital
DIRECT ENVIRONMENT AND HOUSING,GF ENV AND VISIBLE,17-May-2019,341123,Cardiff County Council,"19,984.44",Revenue
DIRECT ENVIRONMENT AND HOUSING,GF ENV AND VISIBLE,17-May-2019,341180,Cardiff County Council,"117,366.93",Revenue
DIRECT ENVIRONMENT AND HOUSING,GF ENV AND VISIBLE,17-May-2019,341182,Cardiff County Council,"18,205.02",Revenue
DIRECT ENVIRONMENT AND HOUSING,GF ENV AND VISIBLE,17-May-2019,341500,Cardiff County Council,"25,623.91",Revenue
DIRECT ENVIRONMENT AND HOUSING,GF HOUSING SERVICES,17-May-2019,405100,Duncan M Evans,971.90,Revenue
DIRECT ENVIRONMENT AND HOUSING,HOUSING - HRA,17-May-2019,303910,Hays Specialist Recruitment Limited,521.87,Revenue
DIRECT ENVIRONMENT AND HOUSING,HOUSING - HRA,17-May-2019,303910,Hays Specialist Recruitment Limited,559.09,Revenue
DIRECT ENVIRONMENT AND HOUSING,HOUSING - HRA,17-May-2019,303910,Hays Specialist Recruitment Limited,654.55,Revenue
DIRECT ENVIRONMENT AND HOUSING,HOUSING - HRA,17-May-2019,303910,Hays Specialist Recruitment Limited,673.05,Revenue
DIRECT ENVIRONMENT AND HOUSING,HOUSING - HRA,17-May-2019,303910,Hays Specialist Recruitment Limited,710.40,Revenue
DIRECT ENVIRONMENT AND HOUSING,HRA MANAGEMENT,17-May-2019,407119,Building Recruitment Company Limited,"1,091.50",Revenue
DIRECT ENVIRONMENT AND HOUSING,HRA MANAGEMENT,17-May-2019,407119,Building Recruitment Company Limited,"1,146.26",Revenue
DIRECT ENVIRONMENT AND HOUSING,HRA SPECIAL SERVICES,17-May-2019,407201,Building Recruitment Company Limited,758.48,Revenue
DIRECT SOCIAL SERVICES,GF ADULT SERVICES,17-May-2019,215489,MiHomecare Limited T/A MiHomecare St Nicholas,518.28,Revenue
DIRECT SOCIAL SERVICES,GF ADULT SERVICES,17-May-2019,215489,MiHomecare Limited T/A MiHomecare St Nicholas,530.02,Revenue
DIRECT SOCIAL SERVICES,GF ADULT SERVICES,17-May-2019,215489,MiHomecare Limited T/A MiHomecare St Nicholas,549.64,Revenue
DIRECT SOCIAL SERVICES,GF ADULT SERVICES,17-May-2019,215489,MiHomecare Limited T/A MiHomecare St Nicholas,549.64,Revenue
DIRECT SOCIAL SERVICES,GF ADULT SERVICES,17-May-2019,215489,MiHomecare Limited T/A MiHomecare St Nicholas,549.64,Revenue
DIRECT POLICY,GF GRANTS,17-May-2019,465201,Wild About Nature Dinas Powys,"1,500.00",Revenue
DIRECT SOCIAL SERVICES,GF ADULT SERVICES,20-May-2019,215489,Caring Companions Limited,531.55,Revenue
DIRECT SOCIAL SERVICES,GF ADULT SERVICES,20-May-2019,215489,Caring Companions Limited,569.80,Revenue
DIRECT SOCIAL SERVICES,GF ADULT SERVICES,20-May-2019,215489,Caring Companions Limited,569.80,Revenue
DIRECT SOCIAL SERVICES,GF ADULT SERVICES,20-May-2019,215489,Caring Companions Limited,598.57,Revenue
DIRECT SOCIAL SERVICES,GF ADULT SERVICES,20-May-2019,215489,Hallows Care Limited T/A Hallows Care,619.36,Revenue
DIRECT SOCIAL SERVICES,GF ADULT SERVICES,20-May-2019,215489,Hallows Care Limited T/A Hallows Care,619.36,Revenue
DIRECT SOCIAL SERVICES,GF ADULT SERVICES,20-May-2019,215489,Caring Companions Limited,627.48,Revenue
DIRECT SOCIAL SERVICES,GF ADULT SERVICES,20-May-2019,215489,Hallows Care Limited T/A Hallows Care,647.41,Revenue
DIRECT SOCIAL SERVICES,GF ADULT SERVICES,20-May-2019,215489,Hallows Care Limited T/A Hallows Care,647.93,Revenue
DIRECT SOCIAL SERVICES,GF ADULT SERVICES,20-May-2019,215489,Hallows Care Limited T/A Hallows Care,665.28,Revenue
DIRECT SOCIAL SERVICES,GF ADULT SERVICES,20-May-2019,215489,Hallows Care Limited T/A Hallows Care,665.28,Revenue
DIRECT SOCIAL SERVICES,GF ADULT SERVICES,20-May-2019,215489,Hallows Care Limited T/A Hallows Care,723.57,Revenue
DIRECT SOCIAL SERVICES,GF ADULT SERVICES,20-May-2019,215489,Caring Companions Limited,786.10,Revenue
DIRECT LEARNING AND SKILLS,SCHOOLS DELEGATED,20-May-2019,101025,Investec Asset Finance Plc,"1,061.27",Revenue
DIRECT LEARNING AND SKILLS,SCHOOLS DELEGATED,20-May-2019,101025,Wardle (Painters) Limited,"3,000.00",Revenue
DIRECT LEARNING AND SKILLS,SCHOOLS DELEGATED,20-May-2019,101025,Unique Flooring (Wales) Limited,"4,650.00",Revenue
DIRECT LEARNING AND SKILLS,SCHOOLS DELEGATED,20-May-2019,101055,eBuyer UK Limited,"7,066.90",Revenue
DIRECT LEARNING AND SKILLS,SCHOOLS DELEGATED,20-May-2019,101300,Millstone Construction (Wales) Limited,672.05,Revenue
DIRECT LEARNING AND SKILLS,SCHOOLS DELEGATED,20-May-2019,101308,Dragon Play & Sports Limited,"10,200.00",Revenue
DIRECT LEARNING AND SKILLS,SCHOOLS DELEGATED,20-May-2019,102593,Veolia ES (UK) Limited,570.78,Revenue
DIRECT LEARNING AND SKILLS,ACHIEVEMENT FOR ALL,20-May-2019,102703,Computacenter (UK) Limited,"1,138.18",Revenue
DIRECT LEARNING AND SKILLS,SCHOOLS NON DELEGATED,20-May-2019,103005,Academics Limited,651.49,Revenue
DIRECT LEARNING AND SKILLS,STRATEGY COMMUNITY LEARNING & RESOURCES,20-May-2019,120080,Askews & Holts Library Services Limited,537.01,Revenue
DIRECT LEARNING AND SKILLS,STRATEGY COMMUNITY LEARNING & RESOURCES,20-May-2019,120080,Askews & Holts Library Services Limited,579.80,Revenue
DIRECT LEARNING AND SKILLS,STRATEGY COMMUNITY LEARNING & RESOURCES,20-May-2019,120080,Askews & Holts Library Services Limited,587.38,Revenue
DIRECT LEARNING AND SKILLS,STRATEGY COMMUNITY LEARNING & RESOURCES,20-May-2019,120080,WF Howes Limited,"2,162.00",Revenue
DIRECT LEARNING AND SKILLS,STRATEGY COMMUNITY LEARNING & RESOURCES,20-May-2019,120080,WF Howes Limited,"2,448.00",Revenue
DIRECT SOCIAL SERVICES,GF CHILDREN SERVICES,20-May-2019,209157,Yogi Communications Limited,585.00,Revenue
DIRECT SOCIAL SERVICES,GF ADULT SERVICES,20-May-2019,217909,National Star Foundation T/A National Star College,"20,728.60",Revenue
DIRECT SOCIAL SERVICES,GF RESOURCES MANAGEMENT & SAFEGUARDING,20-May-2019,218302,Mental Health Matters Wales Limited,625.95,Revenue
DIRECT SOCIAL SERVICES,GF ADULT SERVICES,20-May-2019,218419,Cwtch Care Limited,"1,201.65",Revenue
DIRECT SOCIAL SERVICES,GF CHILDREN SERVICES,20-May-2019,260060,ATS Care Limited,"16,500.00",Revenue
DIRECT SOCIAL SERVICES,GF CHILDREN SERVICES,20-May-2019,260060,Harmony Children's Services Limited,"4,820.09",Revenue
DIRECT SOCIAL SERVICES,GF CHILDREN SERVICES,20-May-2019,260120,Car Hire (Days of Swansea) Limited T/A Days Rental,"1,043.23",Revenue
DIRECT ENVIRONMENT AND HOUSING,GF ENV AND VISIBLE,20-May-2019,323680,Marton Civil Engineering Limited,605.00,Revenue
DIRECT ENVIRONMENT AND HOUSING,GF PARKS AND GROUNDS,20-May-2019,333019,Ustigate Limited,500.00,Revenue
DIRECT ENVIRONMENT AND HOUSING,GF PARKS AND GROUNDS,20-May-2019,333019,Ustigate Limited,"4,692.00",Revenue
DIRECT ENVIRONMENT AND HOUSING,GF PARKS AND GROUNDS,20-May-2019,333218,ADC Fire Systems Limited,852.16,Revenue
NEW REGENERATION,REGENERATION & PLANNING,20-May-2019,352730,Hexion UK Limited,"11,890.58",Revenue
NEW REGENERATION,REGENERATION & PLANNING,20-May-2019,355716,NHBS Limited,610.35,Revenue
NEW REGENERATION,REGENERATION & PLANNING,20-May-2019,356021,NHBS Limited,742.87,Revenue
NEW REGENERATION,REGENERATION & PLANNING,20-May-2019,359750,Kingfisher Media Limited,"2,600.00",Revenue
NEW REGENERATION,REGENERATION & PLANNING,20-May-2019,365763,Glamorgan Gem Limited,782.00,Revenue
DIRECT ENVIRONMENT AND HOUSING,VISIBLE SERVICES,20-May-2019,365786,First Cymru Buses Limited,"7,802.14",Revenue
DIRECT ENVIRONMENT AND HOUSING,VISIBLE SERVICES,20-May-2019,365787,First Cymru Buses Limited,"3,480.20",Revenue
DIRECT ENVIRONMENT AND HOUSING,VISIBLE SERVICES,20-May-2019,365803,Tasmim Limited,"15,314.11",Revenue
DIRECT MANAGING DIRECTOR AND RESOURCES,GF LEGAL AND DEMOCRATIC,20-May-2019,400050,Glamorgan Gem Limited,610.50,Revenue
DIRECT MANAGING DIRECTOR AND RESOURCES,GF LEGAL AND DEMOCRATIC,20-May-2019,400050,Glamorgan Gem Limited,943.50,Revenue
DIRECT MANAGING DIRECTOR AND RESOURCES,GF LEGAL AND DEMOCRATIC,20-May-2019,400063,Virgin Media Business Limited,765.63,Revenue
DIRECT ENVIRONMENT AND HOUSING,REGULATORY SERVICES SHARED SERVICES,20-May-2019,403227,RH Environmental Limited,"4,951.00",Revenue
DIRECT ENVIRONMENT AND HOUSING,HRA MANAGEMENT,20-May-2019,407111,O'Brien & Price (Stroud) Limited,"1,190.00",Revenue
DIRECT MANAGING DIRECTOR AND RESOURCES,GF RESOURCES,20-May-2019,420220,Capita Business Services Limited,657.00,Revenue
DIRECT MANAGING DIRECTOR AND RESOURCES,GF RESOURCES,20-May-2019,422100,OCS Group UK Limited,612.85,Revenue
DIRECT MANAGING DIRECTOR AND RESOURCES,GF CORPORATE AND CUSTOMER SERVICES,20-May-2019,440530,Valtech Limited,603.20,Revenue
DIRECT POLICY,GF ELECTIONS,20-May-2019,463052,Royal Mail Group Limited,"2,468.98",Revenue
DIRECT POLICY,GF ELECTIONS,20-May-2019,463052,MPS Marketing Services Limited,"3,527.56",Revenue
DIRECT CAPITAL LEARN AND SKILLS,AR CAPITAL SCHOOLS,20-May-2019,812277,Thornlink Limited T/A Vale Consultancy,"1,587.50",Capital
DIRECT CAPITAL DEVELOPMENT,CAPITAL PLANNING,20-May-2019,837212,Innovative Safety Systems Limited,"3,575.00",Capital
DIRECT CAPITAL DEVELOPMENT,CAPITAL PLANNING,20-May-2019,837212,Innovative Safety Systems Limited,"10,990.00",Capital
DIRECT CAPITAL VISIBLE AND HOUSING SERVICES,CAPITAL HRA,20-May-2019,842177,VOG Fire & Security Limited,500.00,Capital
DIRECT SOCIAL SERVICES,GF CHILDREN SERVICES,20-May-2019,260150,Helena Jones,"1,600.00",Revenue
DIRECT ENVIRONMENT AND HOUSING,GF HOUSING SERVICES,20-May-2019,405001,Nicholas Moore,550.00,Revenue
DIRECT ENVIRONMENT AND HOUSING,GF HOUSING SERVICES,20-May-2019,405001,Nicholas Moore,550.00,Revenue
DIRECT ENVIRONMENT AND HOUSING,GF HOUSING SERVICES,20-May-2019,405001,Qingfeng Ji,595.00,Revenue
DIRECT SOCIAL SERVICES,GF CHILDREN SERVICES,20-May-2019,260130,Abersychan Comprehensive School,"1,400.00",Revenue
DIRECT ENVIRONMENT AND HOUSING,VISIBLE SERVICES,20-May-2019,365802,Bridgend College,"14,537.10",Revenue
DIRECT LEARNING AND SKILLS,SCHOOLS DELEGATED,20-May-2019,101005,New Directions (Education) Limited,516.00,Revenue
DIRECT SOCIAL SERVICES,GF CHILDREN SERVICES,20-May-2019,260150,Sanctuary Personnel Limited,"1,276.50",Revenue
DIRECT ENVIRONMENT AND HOUSING,HRA MANAGEMENT,20-May-2019,407118,James Andrews Recruitment Solutions Limited,919.20,Revenue
DIRECT ENVIRONMENT AND HOUSING,HRA MANAGEMENT,20-May-2019,407118,James Andrews Recruitment Solutions Limited,"1,057.50",Revenue
DIRECT ENVIRONMENT AND HOUSING,HRA MANAGEMENT,20-May-2019,407119,James Andrews Recruitment Solutions Limited,672.30,Revenue
DIRECT ENVIRONMENT AND HOUSING,HRA MANAGEMENT,20-May-2019,407119,Hays Specialist Recruitment Limited,"1,090.04",Revenue
DIRECT ENVIRONMENT AND HOUSING,HRA MANAGEMENT,20-May-2019,407119,Hays Specialist Recruitment Limited,"1,108.52",Revenue
DIRECT ENVIRONMENT AND HOUSING,HRA MANAGEMENT,20-May-2019,407119,Hays Specialist Recruitment Limited,"1,367.17",Revenue
DIRECT ENVIRONMENT AND HOUSING,HRA MANAGEMENT,20-May-2019,407119,Hays Specialist Recruitment Limited,"1,367.17",Revenue
DIRECT ENVIRONMENT AND HOUSING,HRA MANAGEMENT,20-May-2019,407119,Hays Specialist Recruitment Limited,"1,680.71",Revenue
DIRECT LEARNING AND SKILLS,ACHIEVEMENT FOR ALL,20-May-2019,130222,Hebron Hall Limited,"2,957.92",Revenue
DIRECT SOCIAL SERVICES,GF ADULT SERVICES,20-May-2019,217909,Consensus Support Services Limited t/a Ty Hendy,"1,868.52",Revenue
DIRECT SOCIAL SERVICES,GF ADULT SERVICES,20-May-2019,217909,Consensus Support Services Limited t/a Ty Hendy,"7,272.00",Revenue
DIRECT SOCIAL SERVICES,GF ADULT SERVICES,20-May-2019,217909,Consensus Support Services Limited t/a Ty Hendy,"11,244.00",Revenue
DIRECT SOCIAL SERVICES,GF ADULT SERVICES,20-May-2019,217909,Consensus Support Services Limited t/a Ty Hendy,"11,244.00",Revenue
DIRECT SOCIAL SERVICES,GF ADULT SERVICES,20-May-2019,217909,Edith Adey-Jones T/A Galltfaenan Hall Group,"2,712.00",Revenue
DIRECT SOCIAL SERVICES,GF ADULT SERVICES,20-May-2019,217909,Edith Adey-Jones T/A Galltfaenan Hall Group,"2,802.40",Revenue
DIRECT SOCIAL SERVICES,GF ADULT SERVICES,20-May-2019,239029,Dinas Powys Voluntary Concern,"11,380.00",Revenue
DIRECT SOCIAL SERVICES,GF ADULT SERVICES,21-May-2019,215489,Care In Wales Limited T/A Care in the Vale,542.07,Revenue
DIRECT SOCIAL SERVICES,GF ADULT SERVICES,21-May-2019,215489,Care In Wales Limited T/A Care in the Vale,551.20,Revenue
DIRECT SOCIAL SERVICES,GF ADULT SERVICES,21-May-2019,215489,Hallows Care Limited T/A Hallows Care,552.25,Revenue
DIRECT SOCIAL SERVICES,GF ADULT SERVICES,21-May-2019,215489,Cherish Cymru Limited,560.98,Revenue
DIRECT SOCIAL SERVICES,GF ADULT SERVICES,21-May-2019,215489,Care In Wales Limited T/A Care in the Vale,572.64,Revenue
DIRECT SOCIAL SERVICES,GF ADULT SERVICES,21-May-2019,215489,Cherish Cymru Limited,576.43,Revenue
DIRECT SOCIAL SERVICES,GF ADULT SERVICES,21-May-2019,215489,All Saints DC Limited,616.66,Revenue
DIRECT SOCIAL SERVICES,GF ADULT SERVICES,21-May-2019,215489,Parkrow Care Limited,624.64,Revenue
DIRECT SOCIAL SERVICES,GF ADULT SERVICES,21-May-2019,215489,Parkrow Care Limited,629.06,Revenue
DIRECT SOCIAL SERVICES,GF ADULT SERVICES,21-May-2019,215489,All Care (South Wales) Limited,643.14,Revenue
DIRECT SOCIAL SERVICES,GF ADULT SERVICES,21-May-2019,215489,Cherish Cymru Limited,647.16,Revenue
DIRECT SOCIAL SERVICES,GF ADULT SERVICES,21-May-2019,215489,All Care (South Wales) Limited,648.34,Revenue
DIRECT SOCIAL SERVICES,GF ADULT SERVICES,21-May-2019,215489,Cherish Cymru Limited,667.18,Revenue
DIRECT SOCIAL SERVICES,GF ADULT SERVICES,21-May-2019,215489,All Care (South Wales) Limited,671.16,Revenue
DIRECT SOCIAL SERVICES,GF ADULT SERVICES,21-May-2019,215489,All Saints DC Limited,682.20,Revenue
DIRECT SOCIAL SERVICES,GF ADULT SERVICES,21-May-2019,215489,Hallows Care Limited T/A Hallows Care,707.84,Revenue
DIRECT SOCIAL SERVICES,GF ADULT SERVICES,21-May-2019,215489,Hallows Care Limited T/A Hallows Care,707.84,Revenue
DIRECT SOCIAL SERVICES,GF ADULT SERVICES,21-May-2019,215489,All Saints DC Limited,732.39,Revenue
DIRECT SOCIAL SERVICES,GF ADULT SERVICES,21-May-2019,215489,Hallows Care Limited T/A Hallows Care,736.41,Revenue
DIRECT SOCIAL SERVICES,GF ADULT SERVICES,21-May-2019,215489,Hallows Care Limited T/A Hallows Care,737.69,Revenue
DIRECT SOCIAL SERVICES,GF ADULT SERVICES,21-May-2019,215489,Care In Wales Limited T/A Care in the Vale,746.04,Revenue
DIRECT SOCIAL SERVICES,GF ADULT SERVICES,21-May-2019,215489,Hallows Care Limited T/A Hallows Care,760.32,Revenue
DIRECT SOCIAL SERVICES,GF ADULT SERVICES,21-May-2019,215489,Hallows Care Limited T/A Hallows Care,760.32,Revenue
DIRECT SOCIAL SERVICES,GF ADULT SERVICES,21-May-2019,215489,Care In Wales Limited T/A Care in the Vale,763.68,Revenue
DIRECT SOCIAL SERVICES,GF ADULT SERVICES,21-May-2019,215489,Care In Wales Limited T/A Care in the Vale,778.24,Revenue
DIRECT SOCIAL SERVICES,GF ADULT SERVICES,21-May-2019,215489,Hallows Care Limited T/A Hallows Care,824.53,Revenue
DIRECT SOCIAL SERVICES,GF ADULT SERVICES,21-May-2019,215489,Care In Wales Limited T/A Care in the Vale,833.21,Revenue
DIRECT SOCIAL SERVICES,GF ADULT SERVICES,21-May-2019,215489,Care In Wales Limited T/A Care in the Vale,840.04,Revenue
DIRECT SOCIAL SERVICES,GF ADULT SERVICES,21-May-2019,215489,Care In Wales Limited T/A Care in the Vale,856.83,Revenue
DIRECT SOCIAL SERVICES,GF ADULT SERVICES,21-May-2019,215489,Care In Wales Limited T/A Care in the Vale,865.76,Revenue
DIRECT SOCIAL SERVICES,GF ADULT SERVICES,21-May-2019,215489,Care In Wales Limited T/A Care in the Vale,867.84,Revenue
DIRECT SOCIAL SERVICES,GF ADULT SERVICES,21-May-2019,215489,Care In Wales Limited T/A Care in the Vale,935.24,Revenue
DIRECT SOCIAL SERVICES,GF ADULT SERVICES,21-May-2019,215489,Care In Wales Limited T/A Care in the Vale,957.90,Revenue
DIRECT SOCIAL SERVICES,GF ADULT SERVICES,21-May-2019,215489,Cherish Cymru Limited,"1,768.10",Revenue
DIRECT SOCIAL SERVICES,GF ADULT SERVICES,21-May-2019,216179,All Care (South Wales) Limited,633.45,Revenue
DIRECT SOCIAL SERVICES,GF ADULT SERVICES,21-May-2019,216179,Care In Wales Limited T/A Care in the Vale,750.44,Revenue
DIRECT SOCIAL SERVICES,GF ADULT SERVICES,21-May-2019,216179,All Care (South Wales) Limited,759.37,Revenue
DIRECT SOCIAL SERVICES,GF ADULT SERVICES,21-May-2019,216179,All Care (South Wales) Limited,"1,507.75",Revenue
DIRECT SOCIAL SERVICES,GF ADULT SERVICES,21-May-2019,218419,Care In Wales Limited T/A Care in the Vale,527.51,Revenue
DIRECT SOCIAL SERVICES,GF ADULT SERVICES,21-May-2019,218419,Hallows Care Limited T/A Hallows Care,528.57,Revenue
DIRECT SOCIAL SERVICES,GF ADULT SERVICES,21-May-2019,218419,Parkrow Care Limited,655.54,Revenue
DIRECT SOCIAL SERVICES,GF ADULT SERVICES,21-May-2019,218419,Care In Wales Limited T/A Care in the Vale,805.71,Revenue
DIRECT SOCIAL SERVICES,GF ADULT SERVICES,21-May-2019,218419,Care In Wales Limited T/A Care in the Vale,819.96,Revenue
DIRECT LEARNING AND SKILLS,SCHOOLS DELEGATED,21-May-2019,101007,Siemens Financial Services Limited,"1,045.00",Revenue
DIRECT LEARNING AND SKILLS,SCHOOLS DELEGATED,21-May-2019,101007,PEAC (UK) Limited,"1,280.00",Revenue
DIRECT LEARNING AND SKILLS,SCHOOLS DELEGATED,21-May-2019,101030,Academics Limited,"1,113.07",Revenue
DIRECT LEARNING AND SKILLS,SCHOOLS DELEGATED,21-May-2019,101031,Harrow Business Services Limited,685.62,Revenue
DIRECT LEARNING AND SKILLS,SCHOOLS DELEGATED,21-May-2019,101031,Thermoplastic Designs & Lines Limited,"4,913.90",Revenue
DIRECT LEARNING AND SKILLS,SCHOOLS DELEGATED,21-May-2019,101063,Giglets Limited t/a Giglets Education,"1,800.00",Revenue
DIRECT LEARNING AND SKILLS,SCHOOLS DELEGATED,21-May-2019,101095,GBM Digital Technologies Limited,500.00,Revenue
DIRECT LEARNING AND SKILLS,SCHOOLS DELEGATED,21-May-2019,101095,The Consortium for Purchasing and Distribution Limited,534.19,Revenue
DIRECT LEARNING AND SKILLS,SCHOOLS DELEGATED,21-May-2019,101095,Sovereign Design Play Systems Limited,"2,337.62",Revenue
DIRECT LEARNING AND SKILLS,SCHOOLS DELEGATED,21-May-2019,101145,Lexia UK Limited,"1,350.00",Revenue
DIRECT LEARNING AND SKILLS,SCHOOLS DELEGATED,21-May-2019,101171,Rentokil Initial UK Limited,"1,497.26",Revenue
DIRECT LEARNING AND SKILLS,SCHOOLS DELEGATED,21-May-2019,101306,One Team Logic Limited,548.00,Revenue
DIRECT LEARNING AND SKILLS,SCHOOLS DELEGATED,21-May-2019,102593,Welsh Dance Theatre Trust Limited,"1,377.50",Revenue
DIRECT LEARNING AND SKILLS,SCHOOLS DELEGATED,21-May-2019,102593,Glass World (Cardiff) Limited T/A Treforest Glass,"2,157.00",Revenue
DIRECT LEARNING AND SKILLS,SCHOOLS DELEGATED,21-May-2019,102593,PEAC (UK) Limited,"2,170.00",Revenue
DIRECT LEARNING AND SKILLS,ACHIEVEMENT FOR ALL,21-May-2019,102652,Autism Bristol Limited,800.00,Revenue
DIRECT LEARNING AND SKILLS,GF CATERING,21-May-2019,150401,WR Bishop (Tonyrefail) Limited,"2,732.90",Revenue
DIRECT LEARNING AND SKILLS,GF CATERING,21-May-2019,150401,Brake Bros Limited,"9,183.06",Revenue
DIRECT LEARNING AND SKILLS,GF CATERING,21-May-2019,150401,Castell Howell Foods Limited,"11,720.13",Revenue
DIRECT LEARNING AND SKILLS,GF CATERING,21-May-2019,150671,Peter's Food Service Limited,"1,038.65",Revenue
DIRECT LEARNING AND SKILLS,GF CATERING,21-May-2019,150671,Chapple & Jenkins Limited,"1,474.36",Revenue
DIRECT LEARNING AND SKILLS,GF CATERING,21-May-2019,150671,Castell Howell Foods Limited,"2,641.83",Revenue
DIRECT LEARNING AND SKILLS,GF CATERING,21-May-2019,150671,Brake Bros Limited,"4,443.95",Revenue
DIRECT SOCIAL SERVICES,GF ADULT SERVICES,21-May-2019,215025,Vale People First Limited,"3,792.98",Revenue
DIRECT SOCIAL SERVICES,GF ADULT SERVICES,21-May-2019,215025,Mind in the Vale of Glamorgan Limited,"7,260.56",Revenue
DIRECT SOCIAL SERVICES,GF ADULT SERVICES,21-May-2019,215025,Mind in the Vale of Glamorgan Limited,"13,496.43",Revenue
DIRECT SOCIAL SERVICES,GF ADULT SERVICES,21-May-2019,215489,Grangelodge Residential Home Limited t/a Grangelodge,533.36,Revenue
DIRECT SOCIAL SERVICES,GF ADULT SERVICES,21-May-2019,215489,Linc-Cymru Housing Association Limited t/a Ty Coch Care Home,662.58,Revenue
DIRECT SOCIAL SERVICES,GF ADULT SERVICES,21-May-2019,215489,Linc-Cymru Housing Association Limited t/a Ty Coch Care Home,"13,671.66",Revenue
DIRECT SOCIAL SERVICES,GF ADULT SERVICES,21-May-2019,216179,Grangelodge Residential Home Limited t/a Grangelodge,851.05,Revenue
DIRECT SOCIAL SERVICES,GF ADULT SERVICES,21-May-2019,217909,Consensus Support Services Limited t/a Ty Machen,"2,353.68",Revenue
DIRECT SOCIAL SERVICES,GF ADULT SERVICES,21-May-2019,218419,Cwtch Care Limited,"1,186.43",Revenue
DIRECT SOCIAL SERVICES,GF CHILDREN SERVICES,21-May-2019,260130,Stepping Stones (Child Therapy Cons) Limited,560.00,Revenue
DIRECT SOCIAL SERVICES,GF CHILDREN SERVICES,21-May-2019,260140,Llamau Limited,814.80,Revenue
DIRECT ENVIRONMENT AND HOUSING,GARAGE,21-May-2019,319010,M & M Commercials Limited,575.00,Revenue
DIRECT ENVIRONMENT AND HOUSING,GARAGE,21-May-2019,319010,M & M Commercials Limited,750.00,Revenue
DIRECT ENVIRONMENT AND HOUSING,GARAGE,21-May-2019,319010,M & M Commercials Limited,"1,930.00",Revenue
DIRECT ENVIRONMENT AND HOUSING,GF ENV AND VISIBLE,21-May-2019,325852,Nolan Roadmarking Limited,533.50,Revenue
DIRECT ENVIRONMENT AND HOUSING,GF ENV AND VISIBLE,21-May-2019,325852,Nolan Roadmarking Limited,"1,464.48",Revenue
